Workbook

Sheet バッチシート
G1: 〈使い方〉 ①ProPlus/業務共通/レポート一覧から"CO調整額"をCSV形式で出力（抽出条件なし） ②出力したデータを"台帳"シートに貼付(X列の差額計算式を消さないよう注意) ③新規の大規模修繕があれば、"集計"シートP列に内容を入力(R3テキスト欄に反映) ④"バッチシート更新"ボタンを押して転記日を入力 ⑤"ファイル作成"ボタンを押してR3へ取り込むデータを作成 注意：大型修繕はProPlus登録時に償却費目を0にしておくこと
A2: 会社コード | B2: 転記日付 | C2: 勘定コード | D2: 利益センタ | E2: 明細額 | F2: テキスト
A3: NS | B3: 2023.06.30 | C3: 7700205 | D3: NS-0255 | E3: 24462 | F3: 減価償却費：管理-財務差額
C4: 7700205 | D4: NS-0376 | E4: -434632 | F4: 減価償却費：管理-財務差額
C5: 7700205 | D5: NS-0377 | E5: 168399 | F5: 減価償却費：管理-財務差額
C6: 7700205 | D6: NS-0414 | E6: 600033 | F6: 減価償却費：管理-財務差額
C7: 7700205 | D7: NS-0420 | E7: 250915 | F7: 減価償却費：管理-財務差額
C8: 7700205 | D8: NS-0478 | E8: -8000 | F8: 減価償却費：管理-財務差額
C9: 7700205 | D9: NS-0515 | E9: 433139 | F9: 減価償却費：管理-財務差額
C10: 7700205 | D10: NS-0516 | E10: -25264 | F10: 減価償却費：管理-財務差額
C11: 7700205 | D11: NS-0529 | E11: 63920 | F11: 減価償却費：管理-財務差額
C12: 7700205 | D12: NS-0544 | E12: 4796456 | F12: 減価償却費：管理-財務差額
C13: 7700205 | D13: NS-0589 | E13: 278185 | F13: 減価償却費：管理-財務差額
C14: 7700205 | D14: NS-0659 | E14: 82526 | F14: 減価償却費：管理-財務差額
C15: 7700205 | D15: NS-0100 | E15: -6230139 | F15: 減価償却費：管理-財務差額
C16: 7700204 | D16: NS-0414 | E16: 710712 | F16: 新興倉庫大規模修繕繰延（2018-経11）
C17: 7700204 | D17: NS-0420 | E17: 1271977 | F17: 大規模修繕繰延（2017-経28、2019-75-1,2020-45）
C18: 7700204 | D18: NS-0474 | E18: 437501
C19: 7700204 | D19: NS-0584 | E19: 255128
C20: 7700204 | D20: NS-0585 | E20: 139290 | F20: 汐見1号倉庫(2016-92)、汐見事務所（2019-200）
C21: 7700204 | D21: NS-0589 | E21: 249086
C22: 7700204 | D22: NS-0598 | E22: 76167 | F22: 南港貨物センター外壁塗装繰延(2017-156)
C23: 7700204 | D23: NS-0698 | E23: 640363 | F23: 成田ロジスティクスセンター外壁塗装繰延(2018-経16)
C24: 7700204 | D24: NS-0100 | E24: -3780224 | F24: 大規模修繕繰延
A25: eof

Sheet 集計
A1: ProPlus | C1: 減価償却費(作業費) | H1: 減価償却費(経費) | M1: 修繕費
A2: 部課コード | C2: 勘定コード | D2: 利益センタ | E2: 金額 | F2: テキスト | H2: 勘定コード | I2: 利益センタ | J2: 金額 | K2: テキスト | M2: 勘定コード | N2: 利益センタ | O2: 金額 | P2: テキスト
A3: NS/0100 | C3: 7700205 | D3: NS-0100 | E3: =SUMIFS(台帳!$X:$X,台帳!$Q:$Q,集計!$A3,台帳!$D:$D,1) -> 0 | F3: 減価償却費：管理-財務差額 | H3: 7700417 | I3: NS-0100 | J3: =SUMIFS(台帳!$X:$X,台帳!$Q:$Q,集計!$A3,台帳!$D:$D,2)+SUMIFS(台帳!$X:$X,台帳!$Q:$Q,集計!$A3,台帳!$D:$D,3) -> 0 | K3: 減価償却費：管理-財務差額 | M3: 7700204 | N3: NS-0100 | O3: =SUMIFS(台帳!$X:$X,台帳!$Q:$Q,集計!$A3,台帳!$D:$D,0) -> 0
A4: NS/0101 | C4: 7700205 | D4: NS-0101 | E4: =SUMIFS(台帳!$X:$X,台帳!$Q:$Q,集計!$A4,台帳!$D:$D,1) -> 0 | F4: 減価償却費：管理-財務差額 | H4: 7700417 | I4: NS-0101 | J4: =SUMIFS(台帳!$X:$X,台帳!$Q:$Q,集計!$A4,台帳!$D:$D,2)+SUMIFS(台帳!$X:$X,台帳!$Q:$Q,集計!$A4,台帳!$D:$D,3) -> 0 | K4: 減価償却費：管理-財務差額 | M4: 7700204 | N4: NS-0101 | O4: =SUMIFS(台帳!$X:$X,台帳!$Q:$Q,集計!$A4,台帳!$D:$D,0) -> 0
A5: NS/0102 | C5: 7700205 | D5: NS-0102 | E5: =SUMIFS(台帳!$X:$X,台帳!$Q:$Q,集計!$A5,台帳!$D:$D,1) -> 0 | F5: 減価償却費：管理-財務差額 | H5: 7700417 | I5: NS-0102 | J5: =SUMIFS(台帳!$X:$X,台帳!$Q:$Q,集計!$A5,台帳!$D:$D,2)+SUMIFS(台帳!$X:$X,台帳!$Q:$Q,集計!$A5,台帳!$D:$D,3) -> 0 | K5: 減価償却費：管理-財務差額 | M5: 7700204 | N5: NS-0102 | O5: =SUMIFS(台帳!$X:$X,台帳!$Q:$Q,集計!$A5,台帳!$D:$D,0) -> 0
A6: NS/0103 | C6: 7700205 | D6: NS-0103 | E6: =SUMIFS(台帳!$X:$X,台帳!$Q:$Q,集計!$A6,台帳!$D:$D,1) -> 0 | F6: 減価償却費：管理-財務差額 | H6: 7700417 | I6: NS-0103 | J6: =SUMIFS(台帳!$X:$X,台帳!$Q:$Q,集計!$A6,台帳!$D:$D,2)+SUMIFS(台帳!$X:$X,台帳!$Q:$Q,集計!$A6,台帳!$D:$D,3) -> 0 | K6: 減価償却費：管理-財務差額 | M6: 7700204 | N6: NS-0103 | O6: =SUMIFS(台帳!$X:$X,台帳!$Q:$Q,集計!$A6,台帳!$D:$D,0) -> 0
A7: NS/0104 | C7: 7700205 | D7: NS-0104 | E7: =SUMIFS(台帳!$X:$X,台帳!$Q:$Q,集計!$A7,台帳!$D:$D,1) -> 0 | F7: 減価償却費：管理-財務差額 | H7: 7700417 | I7: NS-0104 | J7: =SUMIFS(台帳!$X:$X,台帳!$Q:$Q,集計!$A7,台帳!$D:$D,2)+SUMIFS(台帳!$X:$X,台帳!$Q:$Q,集計!$A7,台帳!$D:$D,3) -> 0 | K7: 減価償却費：管理-財務差額 | M7: 7700204 | N7: NS-0104 | O7: =SUMIFS(台帳!$X:$X,台帳!$Q:$Q,集計!$A7,台帳!$D:$D,0) -> 0
A8: NS/0105 | C8: 7700205 | D8: NS-0105 | E8: =SUMIFS(台帳!$X:$X,台帳!$Q:$Q,集計!$A8,台帳!$D:$D,1) -> 0 | F8: 減価償却費：管理-財務差額 | H8: 7700417 | I8: NS-0105 | J8: =SUMIFS(台帳!$X:$X,台帳!$Q:$Q,集計!$A8,台帳!$D:$D,2)+SUMIFS(台帳!$X:$X,台帳!$Q:$Q,集計!$A8,台帳!$D:$D,3) -> 0 | K8: 減価償却費：管理-財務差額 | M8: 7700204 | N8: NS-0105 | O8: =SUMIFS(台帳!$X:$X,台帳!$Q:$Q,集計!$A8,台帳!$D:$D,0) -> 0
A9: NS/0106 | C9: 7700205 | D9: NS-0106 | E9: =SUMIFS(台帳!$X:$X,台帳!$Q:$Q,集計!$A9,台帳!$D:$D,1) -> 0 | F9: 減価償却費：管理-財務差額 | H9: 7700417 | I9: NS-0106 | J9: =SUMIFS(台帳!$X:$X,台帳!$Q:$Q,集計!$A9,台帳!$D:$D,2)+SUMIFS(台帳!$X:$X,台帳!$Q:$Q,集計!$A9,台帳!$D:$D,3) -> 0 | K9: 減価償却費：管理-財務差額 | M9: 7700204 | N9: NS-0106 | O9: =SUMIFS(台帳!$X:$X,台帳!$Q:$Q,集計!$A9,台帳!$D:$D,0) -> 0
A10: NS/0107 | C10: 7700205 | D10: NS-0107 | E10: =SUMIFS(台帳!$X:$X,台帳!$Q:$Q,集計!$A10,台帳!$D:$D,1) -> 0 | F10: 減価償却費：管理-財務差額 | H10: 7700417 | I10: NS-0107 | J10: =SUMIFS(台帳!$X:$X,台帳!$Q:$Q,集計!$A10,台帳!$D:$D,2)+SUMIFS(台帳!$X:$X,台帳!$Q:$Q,集計!$A10,台帳!$D:$D,3) -> 0 | K10: 減価償却費：管理-財務差額 | M10: 7700204 | N10: NS-0107 | O10: =SUMIFS(台帳!$X:$X,台帳!$Q:$Q,集計!$A10,台帳!$D:$D,0) -> 0
A11: NS/0108 | C11: 7700205 | D11: NS-0108 | E11: =SUMIFS(台帳!$X:$X,台帳!$Q:$Q,集計!$A11,台帳!$D:$D,1) -> 0 | F11: 減価償却費：管理-財務差額 | H11: 7700417 | I11: NS-0108 | J11: =SUMIFS(台帳!$X:$X,台帳!$Q:$Q,集計!$A11,台帳!$D:$D,2)+SUMIFS(台帳!$X:$X,台帳!$Q:$Q,集計!$A11,台帳!$D:$D,3) -> 0 | K11: 減価償却費：管理-財務差額 | M11: 7700204 | N11: NS-0108 | O11: =SUMIFS(台帳!$X:$X,台帳!$Q:$Q,集計!$A11,台帳!$D:$D,0) -> 0
A12: NS/0109 | C12: 7700205 | D12: NS-0109 | E12: =SUMIFS(台帳!$X:$X,台帳!$Q:$Q,集計!$A12,台帳!$D:$D,1) -> 0 | F12: 減価償却費：管理-財務差額 | H12: 7700417 | I12: NS-0109 | J12: =SUMIFS(台帳!$X:$X,台帳!$Q:$Q,集計!$A12,台帳!$D:$D,2)+SUMIFS(台帳!$X:$X,台帳!$Q:$Q,集計!$A12,台帳!$D:$D,3) -> 0 | K12: 減価償却費：管理-財務差額 | M12: 7700204 | N12: NS-0109 | O12: =SUMIFS(台帳!$X:$X,台帳!$Q:$Q,集計!$A12,台帳!$D:$D,0) -> 0
A13: NS/0110 | C13: 7700205 | D13: NS-0110 | E13: =SUMIFS(台帳!$X:$X,台帳!$Q:$Q,集計!$A13,台帳!$D:$D,1) -> 0 | F13: 減価償却費：管理-財務差額 | H13: 7700417 | I13: NS-0110 | J13: =SUMIFS(台帳!$X:$X,台帳!$Q:$Q,集計!$A13,台帳!$D:$D,2)+SUMIFS(台帳!$X:$X,台帳!$Q:$Q,集計!$A13,台帳!$D:$D,3) -> 0 | K13: 減価償却費：管理-財務差額 | M13: 7700204 | N13: NS-0110 | O13: =SUMIFS(台帳!$X:$X,台帳!$Q:$Q,集計!$A13,台帳!$D:$D,0) -> 0
A14: NS/0111 | C14: 7700205 | D14: NS-0111 | E14: =SUMIFS(台帳!$X:$X,台帳!$Q:$Q,集計!$A14,台帳!$D:$D,1) -> 0 | F14: 減価償却費：管理-財務差額 | H14: 7700417 | I14: NS-0111 | J14: =SUMIFS(台帳!$X:$X,台帳!$Q:$Q,集計!$A14,台帳!$D:$D,2)+SUMIFS(台帳!$X:$X,台帳!$Q:$Q,集計!$A14,台帳!$D:$D,3) -> 0 | K14: 減価償却費：管理-財務差額 | M14: 7700204 | N14: NS-0111 | O14: =SUMIFS(台帳!$X:$X,台帳!$Q:$Q,集計!$A14,台帳!$D:$D,0) -> 0
A15: NS/0112 | C15: 7700205 | D15: NS-0112 | E15: =SUMIFS(台帳!$X:$X,台帳!$Q:$Q,集計!$A15,台帳!$D:$D,1) -> 0 | F15: 減価償却費：管理-財務差額 | H15: 7700417 | I15: NS-0112 | J15: =SUMIFS(台帳!$X:$X,台帳!$Q:$Q,集計!$A15,台帳!$D:$D,2)+SUMIFS(台帳!$X:$X,台帳!$Q:$Q,集計!$A15,台帳!$D:$D,3) -> 0 | K15: 減価償却費：管理-財務差額 | M15: 7700204 | N15: NS-0112 | O15: =SUMIFS(台帳!$X:$X,台帳!$Q:$Q,集計!$A15,台帳!$D:$D,0) -> 0
A16: NS/0113 | C16: 7700205 | D16: NS-0113 | E16: =SUMIFS(台帳!$X:$X,台帳!$Q:$Q,集計!$A16,台帳!$D:$D,1) -> 0 | F16: 減価償却費：管理-財務差額 | H16: 7700417 | I16: NS-0113 | J16: =SUMIFS(台帳!$X:$X,台帳!$Q:$Q,集計!$A16,台帳!$D:$D,2)+SUMIFS(台帳!$X:$X,台帳!$Q:$Q,集計!$A16,台帳!$D:$D,3) -> 0 | K16: 減価償却費：管理-財務差額 | M16: 7700204 | N16: NS-0113 | O16: =SUMIFS(台帳!$X:$X,台帳!$Q:$Q,集計!$A16,台帳!$D:$D,0) -> 0
A17: NS/0114 | C17: 7700205 | D17: NS-0114 | E17: =SUMIFS(台帳!$X:$X,台帳!$Q:$Q,集計!$A17,台帳!$D:$D,1) -> 0 | F17: 減価償却費：管理-財務差額 | H17: 7700417 | I17: NS-0114 | J17: =SUMIFS(台帳!$X:$X,台帳!$Q:$Q,集計!$A17,台帳!$D:$D,2)+SUMIFS(台帳!$X:$X,台帳!$Q:$Q,集計!$A17,台帳!$D:$D,3) -> 0 | K17: 減価償却費：管理-財務差額 | M17: 7700204 | N17: NS-0114 | O17: =SUMIFS(台帳!$X:$X,台帳!$Q:$Q,集計!$A17,台帳!$D:$D,0) -> 0
A18: NS/0115 | C18: 7700205 | D18: NS-0115 | E18: =SUMIFS(台帳!$X:$X,台帳!$Q:$Q,集計!$A18,台帳!$D:$D,1) -> 0 | F18: 減価償却費：管理-財務差額 | H18: 7700417 | I18: NS-0115 | J18: =SUMIFS(台帳!$X:$X,台帳!$Q:$Q,集計!$A18,台帳!$D:$D,2)+SUMIFS(台帳!$X:$X,台帳!$Q:$Q,集計!$A18,台帳!$D:$D,3) -> 0 | K18: 減価償却費：管理-財務差額 | M18: 7700204 | N18: NS-0115 | O18: =SUMIFS(台帳!$X:$X,台帳!$Q:$Q,集計!$A18,台帳!$D:$D,0) -> 0
A19: NS/0116 | C19: 7700205 | D19: NS-0116 | E19: =SUMIFS(台帳!$X:$X,台帳!$Q:$Q,集計!$A19,台帳!$D:$D,1) -> 0 | F19: 減価償却費：管理-財務差額 | H19: 7700417 | I19: NS-0116 | J19: =SUMIFS(台帳!$X:$X,台帳!$Q:$Q,集計!$A19,台帳!$D:$D,2)+SUMIFS(台帳!$X:$X,台帳!$Q:$Q,集計!$A19,台帳!$D:$D,3) -> 0 | K19: 減価償却費：管理-財務差額 | M19: 7700204 | N19: NS-0116 | O19: =SUMIFS(台帳!$X:$X,台帳!$Q:$Q,集計!$A19,台帳!$D:$D,0) -> 0
A20: NS/0117 | C20: 7700205 | D20: NS-0117 | E20: =SUMIFS(台帳!$X:$X,台帳!$Q:$Q,集計!$A20,台帳!$D:$D,1) -> 0 | F20: 減価償却費：管理-財務差額 | H20: 7700417 | I20: NS-0117 | J20: =SUMIFS(台帳!$X:$X,台帳!$Q:$Q,集計!$A20,台帳!$D:$D,2)+SUMIFS(台帳!$X:$X,台帳!$Q:$Q,集計!$A20,台帳!$D:$D,3) -> 0 | K20: 減価償却費：管理-財務差額 | M20: 7700204 | N20: NS-0117 | O20: =SUMIFS(台帳!$X:$X,台帳!$Q:$Q,集計!$A20,台帳!$D:$D,0) -> 0
A21: NS/0118 | C21: 7700205 | D21: NS-0118 | E21: =SUMIFS(台帳!$X:$X,台帳!$Q:$Q,集計!$A21,台帳!$D:$D,1) -> 0 | F21: 減価償却費：管理-財務差額 | H21: 7700417 | I21: NS-0118 | J21: =SUMIFS(台帳!$X:$X,台帳!$Q:$Q,集計!$A21,台帳!$D:$D,2)+SUMIFS(台帳!$X:$X,台帳!$Q:$Q,集計!$A21,台帳!$D:$D,3) -> 0 | K21: 減価償却費：管理-財務差額 | M21: 7700204 | N21: NS-0118 | O21: =SUMIFS(台帳!$X:$X,台帳!$Q:$Q,集計!$A21,台帳!$D:$D,0) -> 0
A22: NS/0119 | C22: 7700205 | D22: NS-0119 | E22: =SUMIFS(台帳!$X:$X,台帳!$Q:$Q,集計!$A22,台帳!$D:$D,1) -> 0 | F22: 減価償却費：管理-財務差額 | H22: 7700417 | I22: NS-0119 | J22: =SUMIFS(台帳!$X:$X,台帳!$Q:$Q,集計!$A22,台帳!$D:$D,2)+SUMIFS(台帳!$X:$X,台帳!$Q:$Q,集計!$A22,台帳!$D:$D,3) -> 0 | K22: 減価償却費：管理-財務差額 | M22: 7700204 | N22: NS-0119 | O22: =SUMIFS(台帳!$X:$X,台帳!$Q:$Q,集計!$A22,台帳!$D:$D,0) -> 0
A23: NS/0120 | C23: 7700205 | D23: NS-0120 | E23: =SUMIFS(台帳!$X:$X,台帳!$Q:$Q,集計!$A23,台帳!$D:$D,1) -> 0 | F23: 減価償却費：管理-財務差額 | H23: 7700417 | I23: NS-0120 | J23: =SUMIFS(台帳!$X:$X,台帳!$Q:$Q,集計!$A23,台帳!$D:$D,2)+SUMIFS(台帳!$X:$X,台帳!$Q:$Q,集計!$A23,台帳!$D:$D,3) -> 0 | K23: 減価償却費：管理-財務差額 | M23: 7700204 | N23: NS-0120 | O23: =SUMIFS(台帳!$X:$X,台帳!$Q:$Q,集計!$A23,台帳!$D:$D,0) -> 0
A24: NS/0121 | C24: 7700205 | D24: NS-0121 | E24: =SUMIFS(台帳!$X:$X,台帳!$Q:$Q,集計!$A24,台帳!$D:$D,1) -> 0 | F24: 減価償却費：管理-財務差額 | H24: 7700417 | I24: NS-0121 | J24: =SUMIFS(台帳!$X:$X,台帳!$Q:$Q,集計!$A24,台帳!$D:$D,2)+SUMIFS(台帳!$X:$X,台帳!$Q:$Q,集計!$A24,台帳!$D:$D,3) -> 0 | K24: 減価償却費：管理-財務差額 | M24: 7700204 | N24: NS-0121 | O24: =SUMIFS(台帳!$X:$X,台帳!$Q:$Q,集計!$A24,台帳!$D:$D,0) -> 0
A25: NS/0122 | C25: 7700205 | D25: NS-0122 | E25: =SUMIFS(台帳!$X:$X,台帳!$Q:$Q,集計!$A25,台帳!$D:$D,1) -> 0 | F25: 減価償却費：管理-財務差額 | H25: 7700417 | I25: NS-0122 | J25: =SUMIFS(台帳!$X:$X,台帳!$Q:$Q,集計!$A25,台帳!$D:$D,2)+SUMIFS(台帳!$X:$X,台帳!$Q:$Q,集計!$A25,台帳!$D:$D,3) -> 0 | K25: 減価償却費：管理-財務差額 | M25: 7700204 | N25: NS-0122 | O25: =SUMIFS(台帳!$X:$X,台帳!$Q:$Q,集計!$A25,台帳!$D:$D,0) -> 0
A26: NS/0123 | C26: 7700205 | D26: NS-0123 | E26: =SUMIFS(台帳!$X:$X,台帳!$Q:$Q,集計!$A26,台帳!$D:$D,1) -> 0 | F26: 減価償却費：管理-財務差額 | H26: 7700417 | I26: NS-0123 | J26: =SUMIFS(台帳!$X:$X,台帳!$Q:$Q,集計!$A26,台帳!$D:$D,2)+SUMIFS(台帳!$X:$X,台帳!$Q:$Q,集計!$A26,台帳!$D:$D,3) -> 0 | K26: 減価償却費：管理-財務差額 | M26: 7700204 | N26: NS-0123 | O26: =SUMIFS(台帳!$X:$X,台帳!$Q:$Q,集計!$A26,台帳!$D:$D,0) -> 0
A27: NS/0124 | C27: 7700205 | D27: NS-0124 | E27: =SUMIFS(台帳!$X:$X,台帳!$Q:$Q,集計!$A27,台帳!$D:$D,1) -> 0 | F27: 減価償却費：管理-財務差額 | H27: 7700417 | I27: NS-0124 | J27: =SUMIFS(台帳!$X:$X,台帳!$Q:$Q,集計!$A27,台帳!$D:$D,2)+SUMIFS(台帳!$X:$X,台帳!$Q:$Q,集計!$A27,台帳!$D:$D,3) -> 0 | K27: 減価償却費：管理-財務差額 | M27: 7700204 | N27: NS-0124 | O27: =SUMIFS(台帳!$X:$X,台帳!$Q:$Q,集計!$A27,台帳!$D:$D,0) -> 0
A28: NS/0125 | C28: 7700205 | D28: NS-0125 | E28: =SUMIFS(台帳!$X:$X,台帳!$Q:$Q,集計!$A28,台帳!$D:$D,1) -> 0 | F28: 減価償却費：管理-財務差額 | H28: 7700417 | I28: NS-0125 | J28: =SUMIFS(台帳!$X:$X,台帳!$Q:$Q,集計!$A28,台帳!$D:$D,2)+SUMIFS(台帳!$X:$X,台帳!$Q:$Q,集計!$A28,台帳!$D:$D,3) -> 0 | K28: 減価償却費：管理-財務差額 | M28: 7700204 | N28: NS-0125 | O28: =SUMIFS(台帳!$X:$X,台帳!$Q:$Q,集計!$A28,台帳!$D:$D,0) -> 0
A29: NS/0126 | C29: 7700205 | D29: NS-0126 | E29: =SUMIFS(台帳!$X:$X,台帳!$Q:$Q,集計!$A29,台帳!$D:$D,1) -> 0 | F29: 減価償却費：管理-財務差額 | H29: 7700417 | I29: NS-0126 | J29: =SUMIFS(台帳!$X:$X,台帳!$Q:$Q,集計!$A29,台帳!$D:$D,2)+SUMIFS(台帳!$X:$X,台帳!$Q:$Q,集計!$A29,台帳!$D:$D,3) -> 0 | K29: 減価償却費：管理-財務差額 | M29: 7700204 | N29: NS-0126 | O29: =SUMIFS(台帳!$X:$X,台帳!$Q:$Q,集計!$A29,台帳!$D:$D,0) -> 0
A30: NS/0127 | C30: 7700205 | D30: NS-0127 | E30: =SUMIFS(台帳!$X:$X,台帳!$Q:$Q,集計!$A30,台帳!$D:$D,1) -> 0 | F30: 減価償却費：管理-財務差額 | H30: 7700417 | I30: NS-0127 | J30: =SUMIFS(台帳!$X:$X,台帳!$Q:$Q,集計!$A30,台帳!$D:$D,2)+SUMIFS(台帳!$X:$X,台帳!$Q:$Q,集計!$A30,台帳!$D:$D,3) -> 0 | K30: 減価償却費：管理-財務差額 | M30: 7700204 | N30: NS-0127 | O30: =SUMIFS(台帳!$X:$X,台帳!$Q:$Q,集計!$A30,台帳!$D:$D,0) -> 0
A31: NS/0128 | C31: 7700205 | D31: NS-0128 | E31: =SUMIFS(台帳!$X:$X,台帳!$Q:$Q,集計!$A31,台帳!$D:$D,1) -> 0 | F31: 減価償却費：管理-財務差額 | H31: 7700417 | I31: NS-0128 | J31: =SUMIFS(台帳!$X:$X,台帳!$Q:$Q,集計!$A31,台帳!$D:$D,2)+SUMIFS(台帳!$X:$X,台帳!$Q:$Q,集計!$A31,台帳!$D:$D,3) -> 0 | K31: 減価償却費：管理-財務差額 | M31: 7700204 | N31: NS-0128 | O31: =SUMIFS(台帳!$X:$X,台帳!$Q:$Q,集計!$A31,台帳!$D:$D,0) -> 0
A32: NS/0129 | C32: 7700205 | D32: NS-0129 | E32: =SUMIFS(台帳!$X:$X,台帳!$Q:$Q,集計!$A32,台帳!$D:$D,1) -> 0 | F32: 減価償却費：管理-財務差額 | H32: 7700417 | I32: NS-0129 | J32: =SUMIFS(台帳!$X:$X,台帳!$Q:$Q,集計!$A32,台帳!$D:$D,2)+SUMIFS(台帳!$X:$X,台帳!$Q:$Q,集計!$A32,台帳!$D:$D,3) -> 0 | K32: 減価償却費：管理-財務差額 | M32: 7700204 | N32: NS-0129 | O32: =SUMIFS(台帳!$X:$X,台帳!$Q:$Q,集計!$A32,台帳!$D:$D,0) -> 0
A33: NS/0130 | C33: 7700205 | D33: NS-0130 | E33: =SUMIFS(台帳!$X:$X,台帳!$Q:$Q,集計!$A33,台帳!$D:$D,1) -> 0 | F33: 減価償却費：管理-財務差額 | H33: 7700417 | I33: NS-0130 | J33: =SUMIFS(台帳!$X:$X,台帳!$Q:$Q,集計!$A33,台帳!$D:$D,2)+SUMIFS(台帳!$X:$X,台帳!$Q:$Q,集計!$A33,台帳!$D:$D,3) -> 0 | K33: 減価償却費：管理-財務差額 | M33: 7700204 | N33: NS-0130 | O33: =SUMIFS(台帳!$X:$X,台帳!$Q:$Q,集計!$A33,台帳!$D:$D,0) -> 0
A34: NS/0131 | C34: 7700205 | D34: NS-0131 | E34: =SUMIFS(台帳!$X:$X,台帳!$Q:$Q,集計!$A34,台帳!$D:$D,1) -> 0 | F34: 減価償却費：管理-財務差額 | H34: 7700417 | I34: NS-0131 | J34: =SUMIFS(台帳!$X:$X,台帳!$Q:$Q,集計!$A34,台帳!$D:$D,2)+SUMIFS(台帳!$X:$X,台帳!$Q:$Q,集計!$A34,台帳!$D:$D,3) -> 0 | K34: 減価償却費：管理-財務差額 | M34: 7700204 | N34: NS-0131 | O34: =SUMIFS(台帳!$X:$X,台帳!$Q:$Q,集計!$A34,台帳!$D:$D,0) -> 0
A35: NS/0132 | C35: 7700205 | D35: NS-0132 | E35: =SUMIFS(台帳!$X:$X,台帳!$Q:$Q,集計!$A35,台帳!$D:$D,1) -> 0 | F35: 減価償却費：管理-財務差額 | H35: 7700417 | I35: NS-0132 | J35: =SUMIFS(台帳!$X:$X,台帳!$Q:$Q,集計!$A35,台帳!$D:$D,2)+SUMIFS(台帳!$X:$X,台帳!$Q:$Q,集計!$A35,台帳!$D:$D,3) -> 0 | K35: 減価償却費：管理-財務差額 | M35: 7700204 | N35: NS-0132 | O35: =SUMIFS(台帳!$X:$X,台帳!$Q:$Q,集計!$A35,台帳!$D:$D,0) -> 0
A36: NS/0133 | C36: 7700205 | D36: NS-0133 | E36: =SUMIFS(台帳!$X:$X,台帳!$Q:$Q,集計!$A36,台帳!$D:$D,1) -> 0 | F36: 減価償却費：管理-財務差額 | H36: 7700417 | I36: NS-0133 | J36: =SUMIFS(台帳!$X:$X,台帳!$Q:$Q,集計!$A36,台帳!$D:$D,2)+SUMIFS(台帳!$X:$X,台帳!$Q:$Q,集計!$A36,台帳!$D:$D,3) -> 0 | K36: 減価償却費：管理-財務差額 | M36: 7700204 | N36: NS-0133 | O36: =SUMIFS(台帳!$X:$X,台帳!$Q:$Q,集計!$A36,台帳!$D:$D,0) -> 0
A37: NS/0134 | C37: 7700205 | D37: NS-0134 | E37: =SUMIFS(台帳!$X:$X,台帳!$Q:$Q,集計!$A37,台帳!$D:$D,1) -> 0 | F37: 減価償却費：管理-財務差額 | H37: 7700417 | I37: NS-0134 | J37: =SUMIFS(台帳!$X:$X,台帳!$Q:$Q,集計!$A37,台帳!$D:$D,2)+SUMIFS(台帳!$X:$X,台帳!$Q:$Q,集計!$A37,台帳!$D:$D,3) -> 0 | K37: 減価償却費：管理-財務差額 | M37: 7700204 | N37: NS-0134 | O37: =SUMIFS(台帳!$X:$X,台帳!$Q:$Q,集計!$A37,台帳!$D:$D,0) -> 0
A38: NS/0135 | C38: 7700205 | D38: NS-0135 | E38: =SUMIFS(台帳!$X:$X,台帳!$Q:$Q,集計!$A38,台帳!$D:$D,1) -> 0 | F38: 減価償却費：管理-財務差額 | H38: 7700417 | I38: NS-0135 | J38: =SUMIFS(台帳!$X:$X,台帳!$Q:$Q,集計!$A38,台帳!$D:$D,2)+SUMIFS(台帳!$X:$X,台帳!$Q:$Q,集計!$A38,台帳!$D:$D,3) -> 0 | K38: 減価償却費：管理-財務差額 | M38: 7700204 | N38: NS-0135 | O38: =SUMIFS(台帳!$X:$X,台帳!$Q:$Q,集計!$A38,台帳!$D:$D,0) -> 0
A39: NS/0136 | C39: 7700205 | D39: NS-0136 | E39: =SUMIFS(台帳!$X:$X,台帳!$Q:$Q,集計!$A39,台帳!$D:$D,1) -> 0 | F39: 減価償却費：管理-財務差額 | H39: 7700417 | I39: NS-0136 | J39: =SUMIFS(台帳!$X:$X,台帳!$Q:$Q,集計!$A39,台帳!$D:$D,2)+SUMIFS(台帳!$X:$X,台帳!$Q:$Q,集計!$A39,台帳!$D:$D,3) -> 0 | K39: 減価償却費：管理-財務差額 | M39: 7700204 | N39: NS-0136 | O39: =SUMIFS(台帳!$X:$X,台帳!$Q:$Q,集計!$A39,台帳!$D:$D,0) -> 0
A40: NS/0137 | C40: 7700205 | D40: NS-0137 | E40: =SUMIFS(台帳!$X:$X,台帳!$Q:$Q,集計!$A40,台帳!$D:$D,1) -> 0 | F40: 減価償却費：管理-財務差額 | H40: 7700417 | I40: NS-0137 | J40: =SUMIFS(台帳!$X:$X,台帳!$Q:$Q,集計!$A40,台帳!$D:$D,2)+SUMIFS(台帳!$X:$X,台帳!$Q:$Q,集計!$A40,台帳!$D:$D,3) -> 0 | K40: 減価償却費：管理-財務差額 | M40: 7700204 | N40: NS-0137 | O40: =SUMIFS(台帳!$X:$X,台帳!$Q:$Q,集計!$A40,台帳!$D:$D,0) -> 0
A41: NS/0138 | C41: 7700205 | D41: NS-0138 | E41: =SUMIFS(台帳!$X:$X,台帳!$Q:$Q,集計!$A41,台帳!$D:$D,1) -> 0 | F41: 減価償却費：管理-財務差額 | H41: 7700417 | I41: NS-0138 | J41: =SUMIFS(台帳!$X:$X,台帳!$Q:$Q,集計!$A41,台帳!$D:$D,2)+SUMIFS(台帳!$X:$X,台帳!$Q:$Q,集計!$A41,台帳!$D:$D,3) -> 0 | K41: 減価償却費：管理-財務差額 | M41: 7700204 | N41: NS-0138 | O41: =SUMIFS(台帳!$X:$X,台帳!$Q:$Q,集計!$A41,台帳!$D:$D,0) -> 0
A42: NS/0139 | C42: 7700205 | D42: NS-0139 | E42: =SUMIFS(台帳!$X:$X,台帳!$Q:$Q,集計!$A42,台帳!$D:$D,1) -> 0 | F42: 減価償却費：管理-財務差額 | H42: 7700417 | I42: NS-0139 | J42: =SUMIFS(台帳!$X:$X,台帳!$Q:$Q,集計!$A42,台帳!$D:$D,2)+SUMIFS(台帳!$X:$X,台帳!$Q:$Q,集計!$A42,台帳!$D:$D,3) -> 0 | K42: 減価償却費：管理-財務差額 | M42: 7700204 | N42: NS-0139 | O42: =SUMIFS(台帳!$X:$X,台帳!$Q:$Q,集計!$A42,台帳!$D:$D,0) -> 0
A43: NS/0140 | C43: 7700205 | D43: NS-0140 | E43: =SUMIFS(台帳!$X:$X,台帳!$Q:$Q,集計!$A43,台帳!$D:$D,1) -> 0 | F43: 減価償却費：管理-財務差額 | H43: 7700417 | I43: NS-0140 | J43: =SUMIFS(台帳!$X:$X,台帳!$Q:$Q,集計!$A43,台帳!$D:$D,2)+SUMIFS(台帳!$X:$X,台帳!$Q:$Q,集計!$A43,台帳!$D:$D,3) -> 0 | K43: 減価償却費：管理-財務差額 | M43: 7700204 | N43: NS-0140 | O43: =SUMIFS(台帳!$X:$X,台帳!$Q:$Q,集計!$A43,台帳!$D:$D,0) -> 0
A44: NS/0141 | C44: 7700205 | D44: NS-0141 | E44: =SUMIFS(台帳!$X:$X,台帳!$Q:$Q,集計!$A44,台帳!$D:$D,1) -> 0 | F44: 減価償却費：管理-財務差額 | H44: 7700417 | I44: NS-0141 | J44: =SUMIFS(台帳!$X:$X,台帳!$Q:$Q,集計!$A44,台帳!$D:$D,2)+SUMIFS(台帳!$X:$X,台帳!$Q:$Q,集計!$A44,台帳!$D:$D,3) -> 0 | K44: 減価償却費：管理-財務差額 | M44: 7700204 | N44: NS-0141 | O44: =SUMIFS(台帳!$X:$X,台帳!$Q:$Q,集計!$A44,台帳!$D:$D,0) -> 0
A45: NS/0142 | C45: 7700205 | D45: NS-0142 | E45: =SUMIFS(台帳!$X:$X,台帳!$Q:$Q,集計!$A45,台帳!$D:$D,1) -> 0 | F45: 減価償却費：管理-財務差額 | H45: 7700417 | I45: NS-0142 | J45: =SUMIFS(台帳!$X:$X,台帳!$Q:$Q,集計!$A45,台帳!$D:$D,2)+SUMIFS(台帳!$X:$X,台帳!$Q:$Q,集計!$A45,台帳!$D:$D,3) -> 0 | K45: 減価償却費：管理-財務差額 | M45: 7700204 | N45: NS-0142 | O45: =SUMIFS(台帳!$X:$X,台帳!$Q:$Q,集計!$A45,台帳!$D:$D,0) -> 0
A46: NS/0143 | C46: 7700205 | D46: NS-0143 | E46: =SUMIFS(台帳!$X:$X,台帳!$Q:$Q,集計!$A46,台帳!$D:$D,1) -> 0 | F46: 減価償却費：管理-財務差額 | H46: 7700417 | I46: NS-0143 | J46: =SUMIFS(台帳!$X:$X,台帳!$Q:$Q,集計!$A46,台帳!$D:$D,2)+SUMIFS(台帳!$X:$X,台帳!$Q:$Q,集計!$A46,台帳!$D:$D,3) -> 0 | K46: 減価償却費：管理-財務差額 | M46: 7700204 | N46: NS-0143 | O46: =SUMIFS(台帳!$X:$X,台帳!$Q:$Q,集計!$A46,台帳!$D:$D,0) -> 0
A47: NS/0144 | C47: 7700205 | D47: NS-0144 | E47: =SUMIFS(台帳!$X:$X,台帳!$Q:$Q,集計!$A47,台帳!$D:$D,1) -> 0 | F47: 減価償却費：管理-財務差額 | H47: 7700417 | I47: NS-0144 | J47: =SUMIFS(台帳!$X:$X,台帳!$Q:$Q,集計!$A47,台帳!$D:$D,2)+SUMIFS(台帳!$X:$X,台帳!$Q:$Q,集計!$A47,台帳!$D:$D,3) -> 0 | K47: 減価償却費：管理-財務差額 | M47: 7700204 | N47: NS-0144 | O47: =SUMIFS(台帳!$X:$X,台帳!$Q:$Q,集計!$A47,台帳!$D:$D,0) -> 0
A48: NS/0145 | C48: 7700205 | D48: NS-0145 | E48: =SUMIFS(台帳!$X:$X,台帳!$Q:$Q,集計!$A48,台帳!$D:$D,1) -> 0 | F48: 減価償却費：管理-財務差額 | H48: 7700417 | I48: NS-0145 | J48: =SUMIFS(台帳!$X:$X,台帳!$Q:$Q,集計!$A48,台帳!$D:$D,2)+SUMIFS(台帳!$X:$X,台帳!$Q:$Q,集計!$A48,台帳!$D:$D,3) -> 0 | K48: 減価償却費：管理-財務差額 | M48: 7700204 | N48: NS-0145 | O48: =SUMIFS(台帳!$X:$X,台帳!$Q:$Q,集計!$A48,台帳!$D:$D,0) -> 0
A49: NS/0146 | C49: 7700205 | D49: NS-0146 | E49: =SUMIFS(台帳!$X:$X,台帳!$Q:$Q,集計!$A49,台帳!$D:$D,1) -> 0 | F49: 減価償却費：管理-財務差額 | H49: 7700417 | I49: NS-0146 | J49: =SUMIFS(台帳!$X:$X,台帳!$Q:$Q,集計!$A49,台帳!$D:$D,2)+SUMIFS(台帳!$X:$X,台帳!$Q:$Q,集計!$A49,台帳!$D:$D,3) -> 0 | K49: 減価償却費：管理-財務差額 | M49: 7700204 | N49: NS-0146 | O49: =SUMIFS(台帳!$X:$X,台帳!$Q:$Q,集計!$A49,台帳!$D:$D,0) -> 0
A50: NS/0147 | C50: 7700205 | D50: NS-0147 | E50: =SUMIFS(台帳!$X:$X,台帳!$Q:$Q,集計!$A50,台帳!$D:$D,1) -> 0 | F50: 減価償却費：管理-財務差額 | H50: 7700417 | I50: NS-0147 | J50: =SUMIFS(台帳!$X:$X,台帳!$Q:$Q,集計!$A50,台帳!$D:$D,2)+SUMIFS(台帳!$X:$X,台帳!$Q:$Q,集計!$A50,台帳!$D:$D,3) -> 0 | K50: 減価償却費：管理-財務差額 | M50: 7700204 | N50: NS-0147 | O50: =SUMIFS(台帳!$X:$X,台帳!$Q:$Q,集計!$A50,台帳!$D:$D,0) -> 0
A51: NS/0148 | C51: 7700205 | D51: NS-0148 | E51: =SUMIFS(台帳!$X:$X,台帳!$Q:$Q,集計!$A51,台帳!$D:$D,1) -> 0 | F51: 減価償却費：管理-財務差額 | H51: 7700417 | I51: NS-0148 | J51: =SUMIFS(台帳!$X:$X,台帳!$Q:$Q,集計!$A51,台帳!$D:$D,2)+SUMIFS(台帳!$X:$X,台帳!$Q:$Q,集計!$A51,台帳!$D:$D,3) -> 0 | K51: 減価償却費：管理-財務差額 | M51: 7700204 | N51: NS-0148 | O51: =SUMIFS(台帳!$X:$X,台帳!$Q:$Q,集計!$A51,台帳!$D:$D,0) -> 0
A52: NS/0149 | C52: 7700205 | D52: NS-0149 | E52: =SUMIFS(台帳!$X:$X,台帳!$Q:$Q,集計!$A52,台帳!$D:$D,1) -> 0 | F52: 減価償却費：管理-財務差額 | H52: 7700417 | I52: NS-0149 | J52: =SUMIFS(台帳!$X:$X,台帳!$Q:$Q,集計!$A52,台帳!$D:$D,2)+SUMIFS(台帳!$X:$X,台帳!$Q:$Q,集計!$A52,台帳!$D:$D,3) -> 0 | K52: 減価償却費：管理-財務差額 | M52: 7700204 | N52: NS-0149 | O52: =SUMIFS(台帳!$X:$X,台帳!$Q:$Q,集計!$A52,台帳!$D:$D,0) -> 0
A53: NS/0150 | C53: 7700205 | D53: NS-0150 | E53: =SUMIFS(台帳!$X:$X,台帳!$Q:$Q,集計!$A53,台帳!$D:$D,1) -> 0 | F53: 減価償却費：管理-財務差額 | H53: 7700417 | I53: NS-0150 | J53: =SUMIFS(台帳!$X:$X,台帳!$Q:$Q,集計!$A53,台帳!$D:$D,2)+SUMIFS(台帳!$X:$X,台帳!$Q:$Q,集計!$A53,台帳!$D:$D,3) -> 0 | K53: 減価償却費：管理-財務差額 | M53: 7700204 | N53: NS-0150 | O53: =SUMIFS(台帳!$X:$X,台帳!$Q:$Q,集計!$A53,台帳!$D:$D,0) -> 0
A54: NS/0151 | C54: 7700205 | D54: NS-0151 | E54: =SUMIFS(台帳!$X:$X,台帳!$Q:$Q,集計!$A54,台帳!$D:$D,1) -> 0 | F54: 減価償却費：管理-財務差額 | H54: 7700417 | I54: NS-0151 | J54: =SUMIFS(台帳!$X:$X,台帳!$Q:$Q,集計!$A54,台帳!$D:$D,2)+SUMIFS(台帳!$X:$X,台帳!$Q:$Q,集計!$A54,台帳!$D:$D,3) -> 0 | K54: 減価償却費：管理-財務差額 | M54: 7700204 | N54: NS-0151 | O54: =SUMIFS(台帳!$X:$X,台帳!$Q:$Q,集計!$A54,台帳!$D:$D,0) -> 0
A55: NS/0152 | C55: 7700205 | D55: NS-0152 | E55: =SUMIFS(台帳!$X:$X,台帳!$Q:$Q,集計!$A55,台帳!$D:$D,1) -> 0 | F55: 減価償却費：管理-財務差額 | H55: 7700417 | I55: NS-0152 | J55: =SUMIFS(台帳!$X:$X,台帳!$Q:$Q,集計!$A55,台帳!$D:$D,2)+SUMIFS(台帳!$X:$X,台帳!$Q:$Q,集計!$A55,台帳!$D:$D,3) -> 0 | K55: 減価償却費：管理-財務差額 | M55: 7700204 | N55: NS-0152 | O55: =SUMIFS(台帳!$X:$X,台帳!$Q:$Q,集計!$A55,台帳!$D:$D,0) -> 0
A56: NS/0153 | C56: 7700205 | D56: NS-0153 | E56: =SUMIFS(台帳!$X:$X,台帳!$Q:$Q,集計!$A56,台帳!$D:$D,1) -> 0 | F56: 減価償却費：管理-財務差額 | H56: 7700417 | I56: NS-0153 | J56: =SUMIFS(台帳!$X:$X,台帳!$Q:$Q,集計!$A56,台帳!$D:$D,2)+SUMIFS(台帳!$X:$X,台帳!$Q:$Q,集計!$A56,台帳!$D:$D,3) -> 0 | K56: 減価償却費：管理-財務差額 | M56: 7700204 | N56: NS-0153 | O56: =SUMIFS(台帳!$X:$X,台帳!$Q:$Q,集計!$A56,台帳!$D:$D,0) -> 0
A57: NS/0154 | C57: 7700205 | D57: NS-0154 | E57: =SUMIFS(台帳!$X:$X,台帳!$Q:$Q,集計!$A57,台帳!$D:$D,1) -> 0 | F57: 減価償却費：管理-財務差額 | H57: 7700417 | I57: NS-0154 | J57: =SUMIFS(台帳!$X:$X,台帳!$Q:$Q,集計!$A57,台帳!$D:$D,2)+SUMIFS(台帳!$X:$X,台帳!$Q:$Q,集計!$A57,台帳!$D:$D,3) -> 0 | K57: 減価償却費：管理-財務差額 | M57: 7700204 | N57: NS-0154 | O57: =SUMIFS(台帳!$X:$X,台帳!$Q:$Q,集計!$A57,台帳!$D:$D,0) -> 0
A58: NS/0155 | C58: 7700205 | D58: NS-0155 | E58: =SUMIFS(台帳!$X:$X,台帳!$Q:$Q,集計!$A58,台帳!$D:$D,1) -> 0 | F58: 減価償却費：管理-財務差額 | H58: 7700417 | I58: NS-0155 | J58: =SUMIFS(台帳!$X:$X,台帳!$Q:$Q,集計!$A58,台帳!$D:$D,2)+SUMIFS(台帳!$X:$X,台帳!$Q:$Q,集計!$A58,台帳!$D:$D,3) -> 0 | K58: 減価償却費：管理-財務差額 | M58: 7700204 | N58: NS-0155 | O58: =SUMIFS(台帳!$X:$X,台帳!$Q:$Q,集計!$A58,台帳!$D:$D,0) -> 0
A59: NS/0156 | C59: 7700205 | D59: NS-0156 | E59: =SUMIFS(台帳!$X:$X,台帳!$Q:$Q,集計!$A59,台帳!$D:$D,1) -> 0 | F59: 減価償却費：管理-財務差額 | H59: 7700417 | I59: NS-0156 | J59: =SUMIFS(台帳!$X:$X,台帳!$Q:$Q,集計!$A59,台帳!$D:$D,2)+SUMIFS(台帳!$X:$X,台帳!$Q:$Q,集計!$A59,台帳!$D:$D,3) -> 0 | K59: 減価償却費：管理-財務差額 | M59: 7700204 | N59: NS-0156 | O59: =SUMIFS(台帳!$X:$X,台帳!$Q:$Q,集計!$A59,台帳!$D:$D,0) -> 0
A60: NS/0157 | C60: 7700205 | D60: NS-0157 | E60: =SUMIFS(台帳!$X:$X,台帳!$Q:$Q,集計!$A60,台帳!$D:$D,1) -> 0 | F60: 減価償却費：管理-財務差額 | H60: 7700417 | I60: NS-0157 | J60: =SUMIFS(台帳!$X:$X,台帳!$Q:$Q,集計!$A60,台帳!$D:$D,2)+SUMIFS(台帳!$X:$X,台帳!$Q:$Q,集計!$A60,台帳!$D:$D,3) -> 0 | K60: 減価償却費：管理-財務差額 | M60: 7700204 | N60: NS-0157 | O60: =SUMIFS(台帳!$X:$X,台帳!$Q:$Q,集計!$A60,台帳!$D:$D,0) -> 0
A61: NS/0158 | C61: 7700205 | D61: NS-0158 | E61: =SUMIFS(台帳!$X:$X,台帳!$Q:$Q,集計!$A61,台帳!$D:$D,1) -> 0 | F61: 減価償却費：管理-財務差額 | H61: 7700417 | I61: NS-0158 | J61: =SUMIFS(台帳!$X:$X,台帳!$Q:$Q,集計!$A61,台帳!$D:$D,2)+SUMIFS(台帳!$X:$X,台帳!$Q:$Q,集計!$A61,台帳!$D:$D,3) -> 0 | K61: 減価償却費：管理-財務差額 | M61: 7700204 | N61: NS-0158 | O61: =SUMIFS(台帳!$X:$X,台帳!$Q:$Q,集計!$A61,台帳!$D:$D,0) -> 0
A62: NS/0159 | C62: 7700205 | D62: NS-0159 | E62: =SUMIFS(台帳!$X:$X,台帳!$Q:$Q,集計!$A62,台帳!$D:$D,1) -> 0 | F62: 減価償却費：管理-財務差額 | H62: 7700417 | I62: NS-0159 | J62: =SUMIFS(台帳!$X:$X,台帳!$Q:$Q,集計!$A62,台帳!$D:$D,2)+SUMIFS(台帳!$X:$X,台帳!$Q:$Q,集計!$A62,台帳!$D:$D,3) -> 0 | K62: 減価償却費：管理-財務差額 | M62: 7700204 | N62: NS-0159 | O62: =SUMIFS(台帳!$X:$X,台帳!$Q:$Q,集計!$A62,台帳!$D:$D,0) -> 0
A63: NS/0160 | C63: 7700205 | D63: NS-0160 | E63: =SUMIFS(台帳!$X:$X,台帳!$Q:$Q,集計!$A63,台帳!$D:$D,1) -> 0 | F63: 減価償却費：管理-財務差額 | H63: 7700417 | I63: NS-0160 | J63: =SUMIFS(台帳!$X:$X,台帳!$Q:$Q,集計!$A63,台帳!$D:$D,2)+SUMIFS(台帳!$X:$X,台帳!$Q:$Q,集計!$A63,台帳!$D:$D,3) -> 0 | K63: 減価償却費：管理-財務差額 | M63: 7700204 | N63: NS-0160 | O63: =SUMIFS(台帳!$X:$X,台帳!$Q:$Q,集計!$A63,台帳!$D:$D,0) -> 0
A64: NS/0161 | C64: 7700205 | D64: NS-0161 | E64: =SUMIFS(台帳!$X:$X,台帳!$Q:$Q,集計!$A64,台帳!$D:$D,1) -> 0 | F64: 減価償却費：管理-財務差額 | H64: 7700417 | I64: NS-0161 | J64: =SUMIFS(台帳!$X:$X,台帳!$Q:$Q,集計!$A64,台帳!$D:$D,2)+SUMIFS(台帳!$X:$X,台帳!$Q:$Q,集計!$A64,台帳!$D:$D,3) -> 0 | K64: 減価償却費：管理-財務差額 | M64: 7700204 | N64: NS-0161 | O64: =SUMIFS(台帳!$X:$X,台帳!$Q:$Q,集計!$A64,台帳!$D:$D,0) -> 0
A65: NS/0162 | C65: 7700205 | D65: NS-0162 | E65: =SUMIFS(台帳!$X:$X,台帳!$Q:$Q,集計!$A65,台帳!$D:$D,1) -> 0 | F65: 減価償却費：管理-財務差額 | H65: 7700417 | I65: NS-0162 | J65: =SUMIFS(台帳!$X:$X,台帳!$Q:$Q,集計!$A65,台帳!$D:$D,2)+SUMIFS(台帳!$X:$X,台帳!$Q:$Q,集計!$A65,台帳!$D:$D,3) -> 0 | K65: 減価償却費：管理-財務差額 | M65: 7700204 | N65: NS-0162 | O65: =SUMIFS(台帳!$X:$X,台帳!$Q:$Q,集計!$A65,台帳!$D:$D,0) -> 0
A66: NS/0163 | C66: 7700205 | D66: NS-0163 | E66: =SUMIFS(台帳!$X:$X,台帳!$Q:$Q,集計!$A66,台帳!$D:$D,1) -> 0 | F66: 減価償却費：管理-財務差額 | H66: 7700417 | I66: NS-0163 | J66: =SUMIFS(台帳!$X:$X,台帳!$Q:$Q,集計!$A66,台帳!$D:$D,2)+SUMIFS(台帳!$X:$X,台帳!$Q:$Q,集計!$A66,台帳!$D:$D,3) -> 0 | K66: 減価償却費：管理-財務差額 | M66: 7700204 | N66: NS-0163 | O66: =SUMIFS(台帳!$X:$X,台帳!$Q:$Q,集計!$A66,台帳!$D:$D,0) -> 0
A67: NS/0164 | C67: 7700205 | D67: NS-0164 | E67: =SUMIFS(台帳!$X:$X,台帳!$Q:$Q,集計!$A67,台帳!$D:$D,1) -> 0 | F67: 減価償却費：管理-財務差額 | H67: 7700417 | I67: NS-0164 | J67: =SUMIFS(台帳!$X:$X,台帳!$Q:$Q,集計!$A67,台帳!$D:$D,2)+SUMIFS(台帳!$X:$X,台帳!$Q:$Q,集計!$A67,台帳!$D:$D,3) -> 0 | K67: 減価償却費：管理-財務差額 | M67: 7700204 | N67: NS-0164 | O67: =SUMIFS(台帳!$X:$X,台帳!$Q:$Q,集計!$A67,台帳!$D:$D,0) -> 0
A68: NS/0165 | C68: 7700205 | D68: NS-0165 | E68: =SUMIFS(台帳!$X:$X,台帳!$Q:$Q,集計!$A68,台帳!$D:$D,1) -> 0 | F68: 減価償却費：管理-財務差額 | H68: 7700417 | I68: NS-0165 | J68: =SUMIFS(台帳!$X:$X,台帳!$Q:$Q,集計!$A68,台帳!$D:$D,2)+SUMIFS(台帳!$X:$X,台帳!$Q:$Q,集計!$A68,台帳!$D:$D,3) -> 0 | K68: 減価償却費：管理-財務差額 | M68: 7700204 | N68: NS-0165 | O68: =SUMIFS(台帳!$X:$X,台帳!$Q:$Q,集計!$A68,台帳!$D:$D,0) -> 0
A69: NS/0166 | C69: 7700205 | D69: NS-0166 | E69: =SUMIFS(台帳!$X:$X,台帳!$Q:$Q,集計!$A69,台帳!$D:$D,1) -> 0 | F69: 減価償却費：管理-財務差額 | H69: 7700417 | I69: NS-0166 | J69: =SUMIFS(台帳!$X:$X,台帳!$Q:$Q,集計!$A69,台帳!$D:$D,2)+SUMIFS(台帳!$X:$X,台帳!$Q:$Q,集計!$A69,台帳!$D:$D,3) -> 0 | K69: 減価償却費：管理-財務差額 | M69: 7700204 | N69: NS-0166 | O69: =SUMIFS(台帳!$X:$X,台帳!$Q:$Q,集計!$A69,台帳!$D:$D,0) -> 0
A70: NS/0167 | C70: 7700205 | D70: NS-0167 | E70: =SUMIFS(台帳!$X:$X,台帳!$Q:$Q,集計!$A70,台帳!$D:$D,1) -> 0 | F70: 減価償却費：管理-財務差額 | H70: 7700417 | I70: NS-0167 | J70: =SUMIFS(台帳!$X:$X,台帳!$Q:$Q,集計!$A70,台帳!$D:$D,2)+SUMIFS(台帳!$X:$X,台帳!$Q:$Q,集計!$A70,台帳!$D:$D,3) -> 0 | K70: 減価償却費：管理-財務差額 | M70: 7700204 | N70: NS-0167 | O70: =SUMIFS(台帳!$X:$X,台帳!$Q:$Q,集計!$A70,台帳!$D:$D,0) -> 0
A71: NS/0168 | C71: 7700205 | D71: NS-0168 | E71: =SUMIFS(台帳!$X:$X,台帳!$Q:$Q,集計!$A71,台帳!$D:$D,1) -> 0 | F71: 減価償却費：管理-財務差額 | H71: 7700417 | I71: NS-0168 | J71: =SUMIFS(台帳!$X:$X,台帳!$Q:$Q,集計!$A71,台帳!$D:$D,2)+SUMIFS(台帳!$X:$X,台帳!$Q:$Q,集計!$A71,台帳!$D:$D,3) -> 0 | K71: 減価償却費：管理-財務差額 | M71: 7700204 | N71: NS-0168 | O71: =SUMIFS(台帳!$X:$X,台帳!$Q:$Q,集計!$A71,台帳!$D:$D,0) -> 0
A72: NS/0169 | C72: 7700205 | D72: NS-0169 | E72: =SUMIFS(台帳!$X:$X,台帳!$Q:$Q,集計!$A72,台帳!$D:$D,1) -> 0 | F72: 減価償却費：管理-財務差額 | H72: 7700417 | I72: NS-0169 | J72: =SUMIFS(台帳!$X:$X,台帳!$Q:$Q,集計!$A72,台帳!$D:$D,2)+SUMIFS(台帳!$X:$X,台帳!$Q:$Q,集計!$A72,台帳!$D:$D,3) -> 0 | K72: 減価償却費：管理-財務差額 | M72: 7700204 | N72: NS-0169 | O72: =SUMIFS(台帳!$X:$X,台帳!$Q:$Q,集計!$A72,台帳!$D:$D,0) -> 0
A73: NS/0170 | C73: 7700205 | D73: NS-0170 | E73: =SUMIFS(台帳!$X:$X,台帳!$Q:$Q,集計!$A73,台帳!$D:$D,1) -> 0 | F73: 減価償却費：管理-財務差額 | H73: 7700417 | I73: NS-0170 | J73: =SUMIFS(台帳!$X:$X,台帳!$Q:$Q,集計!$A73,台帳!$D:$D,2)+SUMIFS(台帳!$X:$X,台帳!$Q:$Q,集計!$A73,台帳!$D:$D,3) -> 0 | K73: 減価償却費：管理-財務差額 | M73: 7700204 | N73: NS-0170 | O73: =SUMIFS(台帳!$X:$X,台帳!$Q:$Q,集計!$A73,台帳!$D:$D,0) -> 0
A74: NS/0171 | C74: 7700205 | D74: NS-0171 | E74: =SUMIFS(台帳!$X:$X,台帳!$Q:$Q,集計!$A74,台帳!$D:$D,1) -> 0 | F74: 減価償却費：管理-財務差額 | H74: 7700417 | I74: NS-0171 | J74: =SUMIFS(台帳!$X:$X,台帳!$Q:$Q,集計!$A74,台帳!$D:$D,2)+SUMIFS(台帳!$X:$X,台帳!$Q:$Q,集計!$A74,台帳!$D:$D,3) -> 0 | K74: 減価償却費：管理-財務差額 | M74: 7700204 | N74: NS-0171 | O74: =SUMIFS(台帳!$X:$X,台帳!$Q:$Q,集計!$A74,台帳!$D:$D,0) -> 0
A75: NS/0172 | C75: 7700205 | D75: NS-0172 | E75: =SUMIFS(台帳!$X:$X,台帳!$Q:$Q,集計!$A75,台帳!$D:$D,1) -> 0 | F75: 減価償却費：管理-財務差額 | H75: 7700417 | I75: NS-0172 | J75: =SUMIFS(台帳!$X:$X,台帳!$Q:$Q,集計!$A75,台帳!$D:$D,2)+SUMIFS(台帳!$X:$X,台帳!$Q:$Q,集計!$A75,台帳!$D:$D,3) -> 0 | K75: 減価償却費：管理-財務差額 | M75: 7700204 | N75: NS-0172 | O75: =SUMIFS(台帳!$X:$X,台帳!$Q:$Q,集計!$A75,台帳!$D:$D,0) -> 0
A76: NS/0173 | C76: 7700205 | D76: NS-0173 | E76: =SUMIFS(台帳!$X:$X,台帳!$Q:$Q,集計!$A76,台帳!$D:$D,1) -> 0 | F76: 減価償却費：管理-財務差額 | H76: 7700417 | I76: NS-0173 | J76: =SUMIFS(台帳!$X:$X,台帳!$Q:$Q,集計!$A76,台帳!$D:$D,2)+SUMIFS(台帳!$X:$X,台帳!$Q:$Q,集計!$A76,台帳!$D:$D,3) -> 0 | K76: 減価償却費：管理-財務差額 | M76: 7700204 | N76: NS-0173 | O76: =SUMIFS(台帳!$X:$X,台帳!$Q:$Q,集計!$A76,台帳!$D:$D,0) -> 0
A77: NS/0174 | C77: 7700205 | D77: NS-0174 | E77: =SUMIFS(台帳!$X:$X,台帳!$Q:$Q,集計!$A77,台帳!$D:$D,1) -> 0 | F77: 減価償却費：管理-財務差額 | H77: 7700417 | I77: NS-0174 | J77: =SUMIFS(台帳!$X:$X,台帳!$Q:$Q,集計!$A77,台帳!$D:$D,2)+SUMIFS(台帳!$X:$X,台帳!$Q:$Q,集計!$A77,台帳!$D:$D,3) -> 0 | K77: 減価償却費：管理-財務差額 | M77: 7700204 | N77: NS-0174 | O77: =SUMIFS(台帳!$X:$X,台帳!$Q:$Q,集計!$A77,台帳!$D:$D,0) -> 0
A78: NS/0175 | C78: 7700205 | D78: NS-0175 | E78: =SUMIFS(台帳!$X:$X,台帳!$Q:$Q,集計!$A78,台帳!$D:$D,1) -> 0 | F78: 減価償却費：管理-財務差額 | H78: 7700417 | I78: NS-0175 | J78: =SUMIFS(台帳!$X:$X,台帳!$Q:$Q,集計!$A78,台帳!$D:$D,2)+SUMIFS(台帳!$X:$X,台帳!$Q:$Q,集計!$A78,台帳!$D:$D,3) -> 0 | K78: 減価償却費：管理-財務差額 | M78: 7700204 | N78: NS-0175 | O78: =SUMIFS(台帳!$X:$X,台帳!$Q:$Q,集計!$A78,台帳!$D:$D,0) -> 0
A79: NS/0176 | C79: 7700205 | D79: NS-0176 | E79: =SUMIFS(台帳!$X:$X,台帳!$Q:$Q,集計!$A79,台帳!$D:$D,1) -> 0 | F79: 減価償却費：管理-財務差額 | H79: 7700417 | I79: NS-0176 | J79: =SUMIFS(台帳!$X:$X,台帳!$Q:$Q,集計!$A79,台帳!$D:$D,2)+SUMIFS(台帳!$X:$X,台帳!$Q:$Q,集計!$A79,台帳!$D:$D,3) -> 0 | K79: 減価償却費：管理-財務差額 | M79: 7700204 | N79: NS-0176 | O79: =SUMIFS(台帳!$X:$X,台帳!$Q:$Q,集計!$A79,台帳!$D:$D,0) -> 0
A80: NS/0177 | C80: 7700205 | D80: NS-0177 | E80: =SUMIFS(台帳!$X:$X,台帳!$Q:$Q,集計!$A80,台帳!$D:$D,1) -> 0 | F80: 減価償却費：管理-財務差額 | H80: 7700417 | I80: NS-0177 | J80: =SUMIFS(台帳!$X:$X,台帳!$Q:$Q,集計!$A80,台帳!$D:$D,2)+SUMIFS(台帳!$X:$X,台帳!$Q:$Q,集計!$A80,台帳!$D:$D,3) -> 0 | K80: 減価償却費：管理-財務差額 | M80: 7700204 | N80: NS-0177 | O80: =SUMIFS(台帳!$X:$X,台帳!$Q:$Q,集計!$A80,台帳!$D:$D,0) -> 0
A81: NS/0178 | C81: 7700205 | D81: NS-0178 | E81: =SUMIFS(台帳!$X:$X,台帳!$Q:$Q,集計!$A81,台帳!$D:$D,1) -> 0 | F81: 減価償却費：管理-財務差額 | H81: 7700417 | I81: NS-0178 | J81: =SUMIFS(台帳!$X:$X,台帳!$Q:$Q,集計!$A81,台帳!$D:$D,2)+SUMIFS(台帳!$X:$X,台帳!$Q:$Q,集計!$A81,台帳!$D:$D,3) -> 0 | K81: 減価償却費：管理-財務差額 | M81: 7700204 | N81: NS-0178 | O81: =SUMIFS(台帳!$X:$X,台帳!$Q:$Q,集計!$A81,台帳!$D:$D,0) -> 0
A82: NS/0179 | C82: 7700205 | D82: NS-0179 | E82: =SUMIFS(台帳!$X:$X,台帳!$Q:$Q,集計!$A82,台帳!$D:$D,1) -> 0 | F82: 減価償却費：管理-財務差額 | H82: 7700417 | I82: NS-0179 | J82: =SUMIFS(台帳!$X:$X,台帳!$Q:$Q,集計!$A82,台帳!$D:$D,2)+SUMIFS(台帳!$X:$X,台帳!$Q:$Q,集計!$A82,台帳!$D:$D,3) -> 0 | K82: 減価償却費：管理-財務差額 | M82: 7700204 | N82: NS-0179 | O82: =SUMIFS(台帳!$X:$X,台帳!$Q:$Q,集計!$A82,台帳!$D:$D,0) -> 0
A83: NS/0180 | C83: 7700205 | D83: NS-0180 | E83: =SUMIFS(台帳!$X:$X,台帳!$Q:$Q,集計!$A83,台帳!$D:$D,1) -> 0 | F83: 減価償却費：管理-財務差額 | H83: 7700417 | I83: NS-0180 | J83: =SUMIFS(台帳!$X:$X,台帳!$Q:$Q,集計!$A83,台帳!$D:$D,2)+SUMIFS(台帳!$X:$X,台帳!$Q:$Q,集計!$A83,台帳!$D:$D,3) -> 0 | K83: 減価償却費：管理-財務差額 | M83: 7700204 | N83: NS-0180 | O83: =SUMIFS(台帳!$X:$X,台帳!$Q:$Q,集計!$A83,台帳!$D:$D,0) -> 0
A84: NS/0181 | C84: 7700205 | D84: NS-0181 | E84: =SUMIFS(台帳!$X:$X,台帳!$Q:$Q,集計!$A84,台帳!$D:$D,1) -> 0 | F84: 減価償却費：管理-財務差額 | H84: 7700417 | I84: NS-0181 | J84: =SUMIFS(台帳!$X:$X,台帳!$Q:$Q,集計!$A84,台帳!$D:$D,2)+SUMIFS(台帳!$X:$X,台帳!$Q:$Q,集計!$A84,台帳!$D:$D,3) -> 0 | K84: 減価償却費：管理-財務差額 | M84: 7700204 | N84: NS-0181 | O84: =SUMIFS(台帳!$X:$X,台帳!$Q:$Q,集計!$A84,台帳!$D:$D,0) -> 0
A85: NS/0182 | C85: 7700205 | D85: NS-0182 | E85: =SUMIFS(台帳!$X:$X,台帳!$Q:$Q,集計!$A85,台帳!$D:$D,1) -> 0 | F85: 減価償却費：管理-財務差額 | H85: 7700417 | I85: NS-0182 | J85: =SUMIFS(台帳!$X:$X,台帳!$Q:$Q,集計!$A85,台帳!$D:$D,2)+SUMIFS(台帳!$X:$X,台帳!$Q:$Q,集計!$A85,台帳!$D:$D,3) -> 0 | K85: 減価償却費：管理-財務差額 | M85: 7700204 | N85: NS-0182 | O85: =SUMIFS(台帳!$X:$X,台帳!$Q:$Q,集計!$A85,台帳!$D:$D,0) -> 0
A86: NS/0183 | C86: 7700205 | D86: NS-0183 | E86: =SUMIFS(台帳!$X:$X,台帳!$Q:$Q,集計!$A86,台帳!$D:$D,1) -> 0 | F86: 減価償却費：管理-財務差額 | H86: 7700417 | I86: NS-0183 | J86: =SUMIFS(台帳!$X:$X,台帳!$Q:$Q,集計!$A86,台帳!$D:$D,2)+SUMIFS(台帳!$X:$X,台帳!$Q:$Q,集計!$A86,台帳!$D:$D,3) -> 0 | K86: 減価償却費：管理-財務差額 | M86: 7700204 | N86: NS-0183 | O86: =SUMIFS(台帳!$X:$X,台帳!$Q:$Q,集計!$A86,台帳!$D:$D,0) -> 0
A87: NS/0184 | C87: 7700205 | D87: NS-0184 | E87: =SUMIFS(台帳!$X:$X,台帳!$Q:$Q,集計!$A87,台帳!$D:$D,1) -> 0 | F87: 減価償却費：管理-財務差額 | H87: 7700417 | I87: NS-0184 | J87: =SUMIFS(台帳!$X:$X,台帳!$Q:$Q,集計!$A87,台帳!$D:$D,2)+SUMIFS(台帳!$X:$X,台帳!$Q:$Q,集計!$A87,台帳!$D:$D,3) -> 0 | K87: 減価償却費：管理-財務差額 | M87: 7700204 | N87: NS-0184 | O87: =SUMIFS(台帳!$X:$X,台帳!$Q:$Q,集計!$A87,台帳!$D:$D,0) -> 0
A88: NS/0185 | C88: 7700205 | D88: NS-0185 | E88: =SUMIFS(台帳!$X:$X,台帳!$Q:$Q,集計!$A88,台帳!$D:$D,1) -> 0 | F88: 減価償却費：管理-財務差額 | H88: 7700417 | I88: NS-0185 | J88: =SUMIFS(台帳!$X:$X,台帳!$Q:$Q,集計!$A88,台帳!$D:$D,2)+SUMIFS(台帳!$X:$X,台帳!$Q:$Q,集計!$A88,台帳!$D:$D,3) -> 0 | K88: 減価償却費：管理-財務差額 | M88: 7700204 | N88: NS-0185 | O88: =SUMIFS(台帳!$X:$X,台帳!$Q:$Q,集計!$A88,台帳!$D:$D,0) -> 0
A89: NS/0186 | C89: 7700205 | D89: NS-0186 | E89: =SUMIFS(台帳!$X:$X,台帳!$Q:$Q,集計!$A89,台帳!$D:$D,1) -> 0 | F89: 減価償却費：管理-財務差額 | H89: 7700417 | I89: NS-0186 | J89: =SUMIFS(台帳!$X:$X,台帳!$Q:$Q,集計!$A89,台帳!$D:$D,2)+SUMIFS(台帳!$X:$X,台帳!$Q:$Q,集計!$A89,台帳!$D:$D,3) -> 0 | K89: 減価償却費：管理-財務差額 | M89: 7700204 | N89: NS-0186 | O89: =SUMIFS(台帳!$X:$X,台帳!$Q:$Q,集計!$A89,台帳!$D:$D,0) -> 0
A90: NS/0187 | C90: 7700205 | D90: NS-0187 | E90: =SUMIFS(台帳!$X:$X,台帳!$Q:$Q,集計!$A90,台帳!$D:$D,1) -> 0 | F90: 減価償却費：管理-財務差額 | H90: 7700417 | I90: NS-0187 | J90: =SUMIFS(台帳!$X:$X,台帳!$Q:$Q,集計!$A90,台帳!$D:$D,2)+SUMIFS(台帳!$X:$X,台帳!$Q:$Q,集計!$A90,台帳!$D:$D,3) -> 0 | K90: 減価償却費：管理-財務差額 | M90: 7700204 | N90: NS-0187 | O90: =SUMIFS(台帳!$X:$X,台帳!$Q:$Q,集計!$A90,台帳!$D:$D,0) -> 0
A91: NS/0188 | C91: 7700205 | D91: NS-0188 | E91: =SUMIFS(台帳!$X:$X,台帳!$Q:$Q,集計!$A91,台帳!$D:$D,1) -> 0 | F91: 減価償却費：管理-財務差額 | H91: 7700417 | I91: NS-0188 | J91: =SUMIFS(台帳!$X:$X,台帳!$Q:$Q,集計!$A91,台帳!$D:$D,2)+SUMIFS(台帳!$X:$X,台帳!$Q:$Q,集計!$A91,台帳!$D:$D,3) -> 0 | K91: 減価償却費：管理-財務差額 | M91: 7700204 | N91: NS-0188 | O91: =SUMIFS(台帳!$X:$X,台帳!$Q:$Q,集計!$A91,台帳!$D:$D,0) -> 0
A92: NS/0189 | C92: 7700205 | D92: NS-0189 | E92: =SUMIFS(台帳!$X:$X,台帳!$Q:$Q,集計!$A92,台帳!$D:$D,1) -> 0 | F92: 減価償却費：管理-財務差額 | H92: 7700417 | I92: NS-0189 | J92: =SUMIFS(台帳!$X:$X,台帳!$Q:$Q,集計!$A92,台帳!$D:$D,2)+SUMIFS(台帳!$X:$X,台帳!$Q:$Q,集計!$A92,台帳!$D:$D,3) -> 0 | K92: 減価償却費：管理-財務差額 | M92: 7700204 | N92: NS-0189 | O92: =SUMIFS(台帳!$X:$X,台帳!$Q:$Q,集計!$A92,台帳!$D:$D,0) -> 0
A93: NS/0190 | C93: 7700205 | D93: NS-0190 | E93: =SUMIFS(台帳!$X:$X,台帳!$Q:$Q,集計!$A93,台帳!$D:$D,1) -> 0 | F93: 減価償却費：管理-財務差額 | H93: 7700417 | I93: NS-0190 | J93: =SUMIFS(台帳!$X:$X,台帳!$Q:$Q,集計!$A93,台帳!$D:$D,2)+SUMIFS(台帳!$X:$X,台帳!$Q:$Q,集計!$A93,台帳!$D:$D,3) -> 0 | K93: 減価償却費：管理-財務差額 | M93: 7700204 | N93: NS-0190 | O93: =SUMIFS(台帳!$X:$X,台帳!$Q:$Q,集計!$A93,台帳!$D:$D,0) -> 0
A94: NS/0191 | C94: 7700205 | D94: NS-0191 | E94: =SUMIFS(台帳!$X:$X,台帳!$Q:$Q,集計!$A94,台帳!$D:$D,1) -> 0 | F94: 減価償却費：管理-財務差額 | H94: 7700417 | I94: NS-0191 | J94: =SUMIFS(台帳!$X:$X,台帳!$Q:$Q,集計!$A94,台帳!$D:$D,2)+SUMIFS(台帳!$X:$X,台帳!$Q:$Q,集計!$A94,台帳!$D:$D,3) -> 0 | K94: 減価償却費：管理-財務差額 | M94: 7700204 | N94: NS-0191 | O94: =SUMIFS(台帳!$X:$X,台帳!$Q:$Q,集計!$A94,台帳!$D:$D,0) -> 0
A95: NS/0192 | C95: 7700205 | D95: NS-0192 | E95: =SUMIFS(台帳!$X:$X,台帳!$Q:$Q,集計!$A95,台帳!$D:$D,1) -> 0 | F95: 減価償却費：管理-財務差額 | H95: 7700417 | I95: NS-0192 | J95: =SUMIFS(台帳!$X:$X,台帳!$Q:$Q,集計!$A95,台帳!$D:$D,2)+SUMIFS(台帳!$X:$X,台帳!$Q:$Q,集計!$A95,台帳!$D:$D,3) -> 0 | K95: 減価償却費：管理-財務差額 | M95: 7700204 | N95: NS-0192 | O95: =SUMIFS(台帳!$X:$X,台帳!$Q:$Q,集計!$A95,台帳!$D:$D,0) -> 0
A96: NS/0193 | C96: 7700205 | D96: NS-0193 | E96: =SUMIFS(台帳!$X:$X,台帳!$Q:$Q,集計!$A96,台帳!$D:$D,1) -> 0 | F96: 減価償却費：管理-財務差額 | H96: 7700417 | I96: NS-0193 | J96: =SUMIFS(台帳!$X:$X,台帳!$Q:$Q,集計!$A96,台帳!$D:$D,2)+SUMIFS(台帳!$X:$X,台帳!$Q:$Q,集計!$A96,台帳!$D:$D,3) -> 0 | K96: 減価償却費：管理-財務差額 | M96: 7700204 | N96: NS-0193 | O96: =SUMIFS(台帳!$X:$X,台帳!$Q:$Q,集計!$A96,台帳!$D:$D,0) -> 0
A97: NS/0194 | C97: 7700205 | D97: NS-0194 | E97: =SUMIFS(台帳!$X:$X,台帳!$Q:$Q,集計!$A97,台帳!$D:$D,1) -> 0 | F97: 減価償却費：管理-財務差額 | H97: 7700417 | I97: NS-0194 | J97: =SUMIFS(台帳!$X:$X,台帳!$Q:$Q,集計!$A97,台帳!$D:$D,2)+SUMIFS(台帳!$X:$X,台帳!$Q:$Q,集計!$A97,台帳!$D:$D,3) -> 0 | K97: 減価償却費：管理-財務差額 | M97: 7700204 | N97: NS-0194 | O97: =SUMIFS(台帳!$X:$X,台帳!$Q:$Q,集計!$A97,台帳!$D:$D,0) -> 0
A98: NS/0195 | C98: 7700205 | D98: NS-0195 | E98: =SUMIFS(台帳!$X:$X,台帳!$Q:$Q,集計!$A98,台帳!$D:$D,1) -> 0 | F98: 減価償却費：管理-財務差額 | H98: 7700417 | I98: NS-0195 | J98: =SUMIFS(台帳!$X:$X,台帳!$Q:$Q,集計!$A98,台帳!$D:$D,2)+SUMIFS(台帳!$X:$X,台帳!$Q:$Q,集計!$A98,台帳!$D:$D,3) -> 0 | K98: 減価償却費：管理-財務差額 | M98: 7700204 | N98: NS-0195 | O98: =SUMIFS(台帳!$X:$X,台帳!$Q:$Q,集計!$A98,台帳!$D:$D,0) -> 0
A99: NS/0196 | C99: 7700205 | D99: NS-0196 | E99: =SUMIFS(台帳!$X:$X,台帳!$Q:$Q,集計!$A99,台帳!$D:$D,1) -> 0 | F99: 減価償却費：管理-財務差額 | H99: 7700417 | I99: NS-0196 | J99: =SUMIFS(台帳!$X:$X,台帳!$Q:$Q,集計!$A99,台帳!$D:$D,2)+SUMIFS(台帳!$X:$X,台帳!$Q:$Q,集計!$A99,台帳!$D:$D,3) -> 0 | K99: 減価償却費：管理-財務差額 | M99: 7700204 | N99: NS-0196 | O99: =SUMIFS(台帳!$X:$X,台帳!$Q:$Q,集計!$A99,台帳!$D:$D,0) -> 0
A100: NS/0197 | C100: 7700205 | D100: NS-0197 | E100: =SUMIFS(台帳!$X:$X,台帳!$Q:$Q,集計!$A100,台帳!$D:$D,1) -> 0 | F100: 減価償却費：管理-財務差額 | H100: 7700417 | I100: NS-0197 | J100: =SUMIFS(台帳!$X:$X,台帳!$Q:$Q,集計!$A100,台帳!$D:$D,2)+SUMIFS(台帳!$X:$X,台帳!$Q:$Q,集計!$A100,台帳!$D:$D,3) -> 0 | K100: 減価償却費：管理-財務差額 | M100: 7700204 | N100: NS-0197 | O100: =SUMIFS(台帳!$X:$X,台帳!$Q:$Q,集計!$A100,台帳!$D:$D,0) -> 0
A101: NS/0198 | C101: 7700205 | D101: NS-0198 | E101: =SUMIFS(台帳!$X:$X,台帳!$Q:$Q,集計!$A101,台帳!$D:$D,1) -> 0 | F101: 減価償却費：管理-財務差額 | H101: 7700417 | I101: NS-0198 | J101: =SUMIFS(台帳!$X:$X,台帳!$Q:$Q,集計!$A101,台帳!$D:$D,2)+SUMIFS(台帳!$X:$X,台帳!$Q:$Q,集計!$A101,台帳!$D:$D,3) -> 0 | K101: 減価償却費：管理-財務差額 | M101: 7700204 | N101: NS-0198 | O101: =SUMIFS(台帳!$X:$X,台帳!$Q:$Q,集計!$A101,台帳!$D:$D,0) -> 0
A102: NS/0199 | C102: 7700205 | D102: NS-0199 | E102: =SUMIFS(台帳!$X:$X,台帳!$Q:$Q,集計!$A102,台帳!$D:$D,1) -> 0 | F102: 減価償却費：管理-財務差額 | H102: 7700417 | I102: NS-0199 | J102: =SUMIFS(台帳!$X:$X,台帳!$Q:$Q,集計!$A102,台帳!$D:$D,2)+SUMIFS(台帳!$X:$X,台帳!$Q:$Q,集計!$A102,台帳!$D:$D,3) -> 0 | K102: 減価償却費：管理-財務差額 | M102: 7700204 | N102: NS-0199 | O102: =SUMIFS(台帳!$X:$X,台帳!$Q:$Q,集計!$A102,台帳!$D:$D,0) -> 0
A103: NS/0200 | C103: 7700205 | D103: NS-0200 | E103: =SUMIFS(台帳!$X:$X,台帳!$Q:$Q,集計!$A103,台帳!$D:$D,1) -> 0 | F103: 減価償却費：管理-財務差額 | H103: 7700417 | I103: NS-0200 | J103: =SUMIFS(台帳!$X:$X,台帳!$Q:$Q,集計!$A103,台帳!$D:$D,2)+SUMIFS(台帳!$X:$X,台帳!$Q:$Q,集計!$A103,台帳!$D:$D,3) -> 0 | K103: 減価償却費：管理-財務差額 | M103: 7700204 | N103: NS-0200 | O103: =SUMIFS(台帳!$X:$X,台帳!$Q:$Q,集計!$A103,台帳!$D:$D,0) -> 0
A104: NS/0201 | C104: 7700205 | D104: NS-0201 | E104: =SUMIFS(台帳!$X:$X,台帳!$Q:$Q,集計!$A104,台帳!$D:$D,1) -> 0 | F104: 減価償却費：管理-財務差額 | H104: 7700417 | I104: NS-0201 | J104: =SUMIFS(台帳!$X:$X,台帳!$Q:$Q,集計!$A104,台帳!$D:$D,2)+SUMIFS(台帳!$X:$X,台帳!$Q:$Q,集計!$A104,台帳!$D:$D,3) -> 0 | K104: 減価償却費：管理-財務差額 | M104: 7700204 | N104: NS-0201 | O104: =SUMIFS(台帳!$X:$X,台帳!$Q:$Q,集計!$A104,台帳!$D:$D,0) -> 0
A105: NS/0202 | C105: 7700205 | D105: NS-0202 | E105: =SUMIFS(台帳!$X:$X,台帳!$Q:$Q,集計!$A105,台帳!$D:$D,1) -> 0 | F105: 減価償却費：管理-財務差額 | H105: 7700417 | I105: NS-0202 | J105: =SUMIFS(台帳!$X:$X,台帳!$Q:$Q,集計!$A105,台帳!$D:$D,2)+SUMIFS(台帳!$X:$X,台帳!$Q:$Q,集計!$A105,台帳!$D:$D,3) -> 0 | K105: 減価償却費：管理-財務差額 | M105: 7700204 | N105: NS-0202 | O105: =SUMIFS(台帳!$X:$X,台帳!$Q:$Q,集計!$A105,台帳!$D:$D,0) -> 0
A106: NS/0203 | C106: 7700205 | D106: NS-0203 | E106: =SUMIFS(台帳!$X:$X,台帳!$Q:$Q,集計!$A106,台帳!$D:$D,1) -> 0 | F106: 減価償却費：管理-財務差額 | H106: 7700417 | I106: NS-0203 | J106: =SUMIFS(台帳!$X:$X,台帳!$Q:$Q,集計!$A106,台帳!$D:$D,2)+SUMIFS(台帳!$X:$X,台帳!$Q:$Q,集計!$A106,台帳!$D:$D,3) -> 0 | K106: 減価償却費：管理-財務差額 | M106: 7700204 | N106: NS-0203 | O106: =SUMIFS(台帳!$X:$X,台帳!$Q:$Q,集計!$A106,台帳!$D:$D,0) -> 0
A107: NS/0204 | C107: 7700205 | D107: NS-0204 | E107: =SUMIFS(台帳!$X:$X,台帳!$Q:$Q,集計!$A107,台帳!$D:$D,1) -> 0 | F107: 減価償却費：管理-財務差額 | H107: 7700417 | I107: NS-0204 | J107: =SUMIFS(台帳!$X:$X,台帳!$Q:$Q,集計!$A107,台帳!$D:$D,2)+SUMIFS(台帳!$X:$X,台帳!$Q:$Q,集計!$A107,台帳!$D:$D,3) -> 0 | K107: 減価償却費：管理-財務差額 | M107: 7700204 | N107: NS-0204 | O107: =SUMIFS(台帳!$X:$X,台帳!$Q:$Q,集計!$A107,台帳!$D:$D,0) -> 0
A108: NS/0205 | C108: 7700205 | D108: NS-0205 | E108: =SUMIFS(台帳!$X:$X,台帳!$Q:$Q,集計!$A108,台帳!$D:$D,1) -> 0 | F108: 減価償却費：管理-財務差額 | H108: 7700417 | I108: NS-0205 | J108: =SUMIFS(台帳!$X:$X,台帳!$Q:$Q,集計!$A108,台帳!$D:$D,2)+SUMIFS(台帳!$X:$X,台帳!$Q:$Q,集計!$A108,台帳!$D:$D,3) -> 0 | K108: 減価償却費：管理-財務差額 | M108: 7700204 | N108: NS-0205 | O108: =SUMIFS(台帳!$X:$X,台帳!$Q:$Q,集計!$A108,台帳!$D:$D,0) -> 0
A109: NS/0206 | C109: 7700205 | D109: NS-0206 | E109: =SUMIFS(台帳!$X:$X,台帳!$Q:$Q,集計!$A109,台帳!$D:$D,1) -> 0 | F109: 減価償却費：管理-財務差額 | H109: 7700417 | I109: NS-0206 | J109: =SUMIFS(台帳!$X:$X,台帳!$Q:$Q,集計!$A109,台帳!$D:$D,2)+SUMIFS(台帳!$X:$X,台帳!$Q:$Q,集計!$A109,台帳!$D:$D,3) -> 0 | K109: 減価償却費：管理-財務差額 | M109: 7700204 | N109: NS-0206 | O109: =SUMIFS(台帳!$X:$X,台帳!$Q:$Q,集計!$A109,台帳!$D:$D,0) -> 0
A110: NS/0207 | C110: 7700205 | D110: NS-0207 | E110: =SUMIFS(台帳!$X:$X,台帳!$Q:$Q,集計!$A110,台帳!$D:$D,1) -> 0 | F110: 減価償却費：管理-財務差額 | H110: 7700417 | I110: NS-0207 | J110: =SUMIFS(台帳!$X:$X,台帳!$Q:$Q,集計!$A110,台帳!$D:$D,2)+SUMIFS(台帳!$X:$X,台帳!$Q:$Q,集計!$A110,台帳!$D:$D,3) -> 0 | K110: 減価償却費：管理-財務差額 | M110: 7700204 | N110: NS-0207 | O110: =SUMIFS(台帳!$X:$X,台帳!$Q:$Q,集計!$A110,台帳!$D:$D,0) -> 0
A111: NS/0208 | C111: 7700205 | D111: NS-0208 | E111: =SUMIFS(台帳!$X:$X,台帳!$Q:$Q,集計!$A111,台帳!$D:$D,1) -> 0 | F111: 減価償却費：管理-財務差額 | H111: 7700417 | I111: NS-0208 | J111: =SUMIFS(台帳!$X:$X,台帳!$Q:$Q,集計!$A111,台帳!$D:$D,2)+SUMIFS(台帳!$X:$X,台帳!$Q:$Q,集計!$A111,台帳!$D:$D,3) -> 0 | K111: 減価償却費：管理-財務差額 | M111: 7700204 | N111: NS-0208 | O111: =SUMIFS(台帳!$X:$X,台帳!$Q:$Q,集計!$A111,台帳!$D:$D,0) -> 0
A112: NS/0209 | C112: 7700205 | D112: NS-0209 | E112: =SUMIFS(台帳!$X:$X,台帳!$Q:$Q,集計!$A112,台帳!$D:$D,1) -> 0 | F112: 減価償却費：管理-財務差額 | H112: 7700417 | I112: NS-0209 | J112: =SUMIFS(台帳!$X:$X,台帳!$Q:$Q,集計!$A112,台帳!$D:$D,2)+SUMIFS(台帳!$X:$X,台帳!$Q:$Q,集計!$A112,台帳!$D:$D,3) -> 0 | K112: 減価償却費：管理-財務差額 | M112: 7700204 | N112: NS-0209 | O112: =SUMIFS(台帳!$X:$X,台帳!$Q:$Q,集計!$A112,台帳!$D:$D,0) -> 0
A113: NS/0210 | C113: 7700205 | D113: NS-0210 | E113: =SUMIFS(台帳!$X:$X,台帳!$Q:$Q,集計!$A113,台帳!$D:$D,1) -> 0 | F113: 減価償却費：管理-財務差額 | H113: 7700417 | I113: NS-0210 | J113: =SUMIFS(台帳!$X:$X,台帳!$Q:$Q,集計!$A113,台帳!$D:$D,2)+SUMIFS(台帳!$X:$X,台帳!$Q:$Q,集計!$A113,台帳!$D:$D,3) -> 0 | K113: 減価償却費：管理-財務差額 | M113: 7700204 | N113: NS-0210 | O113: =SUMIFS(台帳!$X:$X,台帳!$Q:$Q,集計!$A113,台帳!$D:$D,0) -> 0
A114: NS/0211 | C114: 7700205 | D114: NS-0211 | E114: =SUMIFS(台帳!$X:$X,台帳!$Q:$Q,集計!$A114,台帳!$D:$D,1) -> 0 | F114: 減価償却費：管理-財務差額 | H114: 7700417 | I114: NS-0211 | J114: =SUMIFS(台帳!$X:$X,台帳!$Q:$Q,集計!$A114,台帳!$D:$D,2)+SUMIFS(台帳!$X:$X,台帳!$Q:$Q,集計!$A114,台帳!$D:$D,3) -> 0 | K114: 減価償却費：管理-財務差額 | M114: 7700204 | N114: NS-0211 | O114: =SUMIFS(台帳!$X:$X,台帳!$Q:$Q,集計!$A114,台帳!$D:$D,0) -> 0
A115: NS/0212 | C115: 7700205 | D115: NS-0212 | E115: =SUMIFS(台帳!$X:$X,台帳!$Q:$Q,集計!$A115,台帳!$D:$D,1) -> 0 | F115: 減価償却費：管理-財務差額 | H115: 7700417 | I115: NS-0212 | J115: =SUMIFS(台帳!$X:$X,台帳!$Q:$Q,集計!$A115,台帳!$D:$D,2)+SUMIFS(台帳!$X:$X,台帳!$Q:$Q,集計!$A115,台帳!$D:$D,3) -> 0 | K115: 減価償却費：管理-財務差額 | M115: 7700204 | N115: NS-0212 | O115: =SUMIFS(台帳!$X:$X,台帳!$Q:$Q,集計!$A115,台帳!$D:$D,0) -> 0
A116: NS/0213 | C116: 7700205 | D116: NS-0213 | E116: =SUMIFS(台帳!$X:$X,台帳!$Q:$Q,集計!$A116,台帳!$D:$D,1) -> 0 | F116: 減価償却費：管理-財務差額 | H116: 7700417 | I116: NS-0213 | J116: =SUMIFS(台帳!$X:$X,台帳!$Q:$Q,集計!$A116,台帳!$D:$D,2)+SUMIFS(台帳!$X:$X,台帳!$Q:$Q,集計!$A116,台帳!$D:$D,3) -> 0 | K116: 減価償却費：管理-財務差額 | M116: 7700204 | N116: NS-0213 | O116: =SUMIFS(台帳!$X:$X,台帳!$Q:$Q,集計!$A116,台帳!$D:$D,0) -> 0
A117: NS/0214 | C117: 7700205 | D117: NS-0214 | E117: =SUMIFS(台帳!$X:$X,台帳!$Q:$Q,集計!$A117,台帳!$D:$D,1) -> 0 | F117: 減価償却費：管理-財務差額 | H117: 7700417 | I117: NS-0214 | J117: =SUMIFS(台帳!$X:$X,台帳!$Q:$Q,集計!$A117,台帳!$D:$D,2)+SUMIFS(台帳!$X:$X,台帳!$Q:$Q,集計!$A117,台帳!$D:$D,3) -> 0 | K117: 減価償却費：管理-財務差額 | M117: 7700204 | N117: NS-0214 | O117: =SUMIFS(台帳!$X:$X,台帳!$Q:$Q,集計!$A117,台帳!$D:$D,0) -> 0
A118: NS/0215 | C118: 7700205 | D118: NS-0215 | E118: =SUMIFS(台帳!$X:$X,台帳!$Q:$Q,集計!$A118,台帳!$D:$D,1) -> 0 | F118: 減価償却費：管理-財務差額 | H118: 7700417 | I118: NS-0215 | J118: =SUMIFS(台帳!$X:$X,台帳!$Q:$Q,集計!$A118,台帳!$D:$D,2)+SUMIFS(台帳!$X:$X,台帳!$Q:$Q,集計!$A118,台帳!$D:$D,3) -> 0 | K118: 減価償却費：管理-財務差額 | M118: 7700204 | N118: NS-0215 | O118: =SUMIFS(台帳!$X:$X,台帳!$Q:$Q,集計!$A118,台帳!$D:$D,0) -> 0
A119: NS/0216 | C119: 7700205 | D119: NS-0216 | E119: =SUMIFS(台帳!$X:$X,台帳!$Q:$Q,集計!$A119,台帳!$D:$D,1) -> 0 | F119: 減価償却費：管理-財務差額 | H119: 7700417 | I119: NS-0216 | J119: =SUMIFS(台帳!$X:$X,台帳!$Q:$Q,集計!$A119,台帳!$D:$D,2)+SUMIFS(台帳!$X:$X,台帳!$Q:$Q,集計!$A119,台帳!$D:$D,3) -> 0 | K119: 減価償却費：管理-財務差額 | M119: 7700204 | N119: NS-0216 | O119: =SUMIFS(台帳!$X:$X,台帳!$Q:$Q,集計!$A119,台帳!$D:$D,0) -> 0
A120: NS/0217 | C120: 7700205 | D120: NS-0217 | E120: =SUMIFS(台帳!$X:$X,台帳!$Q:$Q,集計!$A120,台帳!$D:$D,1) -> 0 | F120: 減価償却費：管理-財務差額 | H120: 7700417 | I120: NS-0217 | J120: =SUMIFS(台帳!$X:$X,台帳!$Q:$Q,集計!$A120,台帳!$D:$D,2)+SUMIFS(台帳!$X:$X,台帳!$Q:$Q,集計!$A120,台帳!$D:$D,3) -> 0 | K120: 減価償却費：管理-財務差額 | M120: 7700204 | N120: NS-0217 | O120: =SUMIFS(台帳!$X:$X,台帳!$Q:$Q,集計!$A120,台帳!$D:$D,0) -> 0
A121: NS/0218 | C121: 7700205 | D121: NS-0218 | E121: =SUMIFS(台帳!$X:$X,台帳!$Q:$Q,集計!$A121,台帳!$D:$D,1) -> 0 | F121: 減価償却費：管理-財務差額 | H121: 7700417 | I121: NS-0218 | J121: =SUMIFS(台帳!$X:$X,台帳!$Q:$Q,集計!$A121,台帳!$D:$D,2)+SUMIFS(台帳!$X:$X,台帳!$Q:$Q,集計!$A121,台帳!$D:$D,3) -> 0 | K121: 減価償却費：管理-財務差額 | M121: 7700204 | N121: NS-0218 | O121: =SUMIFS(台帳!$X:$X,台帳!$Q:$Q,集計!$A121,台帳!$D:$D,0) -> 0
A122: NS/0219 | C122: 7700205 | D122: NS-0219 | E122: =SUMIFS(台帳!$X:$X,台帳!$Q:$Q,集計!$A122,台帳!$D:$D,1) -> 0 | F122: 減価償却費：管理-財務差額 | H122: 7700417 | I122: NS-0219 | J122: =SUMIFS(台帳!$X:$X,台帳!$Q:$Q,集計!$A122,台帳!$D:$D,2)+SUMIFS(台帳!$X:$X,台帳!$Q:$Q,集計!$A122,台帳!$D:$D,3) -> 0 | K122: 減価償却費：管理-財務差額 | M122: 7700204 | N122: NS-0219 | O122: =SUMIFS(台帳!$X:$X,台帳!$Q:$Q,集計!$A122,台帳!$D:$D,0) -> 0
A123: NS/0220 | C123: 7700205 | D123: NS-0220 | E123: =SUMIFS(台帳!$X:$X,台帳!$Q:$Q,集計!$A123,台帳!$D:$D,1) -> 0 | F123: 減価償却費：管理-財務差額 | H123: 7700417 | I123: NS-0220 | J123: =SUMIFS(台帳!$X:$X,台帳!$Q:$Q,集計!$A123,台帳!$D:$D,2)+SUMIFS(台帳!$X:$X,台帳!$Q:$Q,集計!$A123,台帳!$D:$D,3) -> 0 | K123: 減価償却費：管理-財務差額 | M123: 7700204 | N123: NS-0220 | O123: =SUMIFS(台帳!$X:$X,台帳!$Q:$Q,集計!$A123,台帳!$D:$D,0) -> 0
A124: NS/0221 | C124: 7700205 | D124: NS-0221 | E124: =SUMIFS(台帳!$X:$X,台帳!$Q:$Q,集計!$A124,台帳!$D:$D,1) -> 0 | F124: 減価償却費：管理-財務差額 | H124: 7700417 | I124: NS-0221 | J124: =SUMIFS(台帳!$X:$X,台帳!$Q:$Q,集計!$A124,台帳!$D:$D,2)+SUMIFS(台帳!$X:$X,台帳!$Q:$Q,集計!$A124,台帳!$D:$D,3) -> 0 | K124: 減価償却費：管理-財務差額 | M124: 7700204 | N124: NS-0221 | O124: =SUMIFS(台帳!$X:$X,台帳!$Q:$Q,集計!$A124,台帳!$D:$D,0) -> 0
A125: NS/0222 | C125: 7700205 | D125: NS-0222 | E125: =SUMIFS(台帳!$X:$X,台帳!$Q:$Q,集計!$A125,台帳!$D:$D,1) -> 0 | F125: 減価償却費：管理-財務差額 | H125: 7700417 | I125: NS-0222 | J125: =SUMIFS(台帳!$X:$X,台帳!$Q:$Q,集計!$A125,台帳!$D:$D,2)+SUMIFS(台帳!$X:$X,台帳!$Q:$Q,集計!$A125,台帳!$D:$D,3) -> 0 | K125: 減価償却費：管理-財務差額 | M125: 7700204 | N125: NS-0222 | O125: =SUMIFS(台帳!$X:$X,台帳!$Q:$Q,集計!$A125,台帳!$D:$D,0) -> 0
A126: NS/0223 | C126: 7700205 | D126: NS-0223 | E126: =SUMIFS(台帳!$X:$X,台帳!$Q:$Q,集計!$A126,台帳!$D:$D,1) -> 0 | F126: 減価償却費：管理-財務差額 | H126: 7700417 | I126: NS-0223 | J126: =SUMIFS(台帳!$X:$X,台帳!$Q:$Q,集計!$A126,台帳!$D:$D,2)+SUMIFS(台帳!$X:$X,台帳!$Q:$Q,集計!$A126,台帳!$D:$D,3) -> 0 | K126: 減価償却費：管理-財務差額 | M126: 7700204 | N126: NS-0223 | O126: =SUMIFS(台帳!$X:$X,台帳!$Q:$Q,集計!$A126,台帳!$D:$D,0) -> 0
A127: NS/0224 | C127: 7700205 | D127: NS-0224 | E127: =SUMIFS(台帳!$X:$X,台帳!$Q:$Q,集計!$A127,台帳!$D:$D,1) -> 0 | F127: 減価償却費：管理-財務差額 | H127: 7700417 | I127: NS-0224 | J127: =SUMIFS(台帳!$X:$X,台帳!$Q:$Q,集計!$A127,台帳!$D:$D,2)+SUMIFS(台帳!$X:$X,台帳!$Q:$Q,集計!$A127,台帳!$D:$D,3) -> 0 | K127: 減価償却費：管理-財務差額 | M127: 7700204 | N127: NS-0224 | O127: =SUMIFS(台帳!$X:$X,台帳!$Q:$Q,集計!$A127,台帳!$D:$D,0) -> 0
A128: NS/0225 | C128: 7700205 | D128: NS-0225 | E128: =SUMIFS(台帳!$X:$X,台帳!$Q:$Q,集計!$A128,台帳!$D:$D,1) -> 0 | F128: 減価償却費：管理-財務差額 | H128: 7700417 | I128: NS-0225 | J128: =SUMIFS(台帳!$X:$X,台帳!$Q:$Q,集計!$A128,台帳!$D:$D,2)+SUMIFS(台帳!$X:$X,台帳!$Q:$Q,集計!$A128,台帳!$D:$D,3) -> 0 | K128: 減価償却費：管理-財務差額 | M128: 7700204 | N128: NS-0225 | O128: =SUMIFS(台帳!$X:$X,台帳!$Q:$Q,集計!$A128,台帳!$D:$D,0) -> 0
A129: NS/0226 | C129: 7700205 | D129: NS-0226 | E129: =SUMIFS(台帳!$X:$X,台帳!$Q:$Q,集計!$A129,台帳!$D:$D,1) -> 0 | F129: 減価償却費：管理-財務差額 | H129: 7700417 | I129: NS-0226 | J129: =SUMIFS(台帳!$X:$X,台帳!$Q:$Q,集計!$A129,台帳!$D:$D,2)+SUMIFS(台帳!$X:$X,台帳!$Q:$Q,集計!$A129,台帳!$D:$D,3) -> 0 | K129: 減価償却費：管理-財務差額 | M129: 7700204 | N129: NS-0226 | O129: =SUMIFS(台帳!$X:$X,台帳!$Q:$Q,集計!$A129,台帳!$D:$D,0) -> 0
A130: NS/0227 | C130: 7700205 | D130: NS-0227 | E130: =SUMIFS(台帳!$X:$X,台帳!$Q:$Q,集計!$A130,台帳!$D:$D,1) -> 0 | F130: 減価償却費：管理-財務差額 | H130: 7700417 | I130: NS-0227 | J130: =SUMIFS(台帳!$X:$X,台帳!$Q:$Q,集計!$A130,台帳!$D:$D,2)+SUMIFS(台帳!$X:$X,台帳!$Q:$Q,集計!$A130,台帳!$D:$D,3) -> 0 | K130: 減価償却費：管理-財務差額 | M130: 7700204 | N130: NS-0227 | O130: =SUMIFS(台帳!$X:$X,台帳!$Q:$Q,集計!$A130,台帳!$D:$D,0) -> 0
A131: NS/0228 | C131: 7700205 | D131: NS-0228 | E131: =SUMIFS(台帳!$X:$X,台帳!$Q:$Q,集計!$A131,台帳!$D:$D,1) -> 0 | F131: 減価償却費：管理-財務差額 | H131: 7700417 | I131: NS-0228 | J131: =SUMIFS(台帳!$X:$X,台帳!$Q:$Q,集計!$A131,台帳!$D:$D,2)+SUMIFS(台帳!$X:$X,台帳!$Q:$Q,集計!$A131,台帳!$D:$D,3) -> 0 | K131: 減価償却費：管理-財務差額 | M131: 7700204 | N131: NS-0228 | O131: =SUMIFS(台帳!$X:$X,台帳!$Q:$Q,集計!$A131,台帳!$D:$D,0) -> 0
A132: NS/0229 | C132: 7700205 | D132: NS-0229 | E132: =SUMIFS(台帳!$X:$X,台帳!$Q:$Q,集計!$A132,台帳!$D:$D,1) -> 0 | F132: 減価償却費：管理-財務差額 | H132: 7700417 | I132: NS-0229 | J132: =SUMIFS(台帳!$X:$X,台帳!$Q:$Q,集計!$A132,台帳!$D:$D,2)+SUMIFS(台帳!$X:$X,台帳!$Q:$Q,集計!$A132,台帳!$D:$D,3) -> 0 | K132: 減価償却費：管理-財務差額 | M132: 7700204 | N132: NS-0229 | O132: =SUMIFS(台帳!$X:$X,台帳!$Q:$Q,集計!$A132,台帳!$D:$D,0) -> 0
A133: NS/0230 | C133: 7700205 | D133: NS-0230 | E133: =SUMIFS(台帳!$X:$X,台帳!$Q:$Q,集計!$A133,台帳!$D:$D,1) -> 0 | F133: 減価償却費：管理-財務差額 | H133: 7700417 | I133: NS-0230 | J133: =SUMIFS(台帳!$X:$X,台帳!$Q:$Q,集計!$A133,台帳!$D:$D,2)+SUMIFS(台帳!$X:$X,台帳!$Q:$Q,集計!$A133,台帳!$D:$D,3) -> 0 | K133: 減価償却費：管理-財務差額 | M133: 7700204 | N133: NS-0230 | O133: =SUMIFS(台帳!$X:$X,台帳!$Q:$Q,集計!$A133,台帳!$D:$D,0) -> 0
A134: NS/0231 | C134: 7700205 | D134: NS-0231 | E134: =SUMIFS(台帳!$X:$X,台帳!$Q:$Q,集計!$A134,台帳!$D:$D,1) -> 0 | F134: 減価償却費：管理-財務差額 | H134: 7700417 | I134: NS-0231 | J134: =SUMIFS(台帳!$X:$X,台帳!$Q:$Q,集計!$A134,台帳!$D:$D,2)+SUMIFS(台帳!$X:$X,台帳!$Q:$Q,集計!$A134,台帳!$D:$D,3) -> 0 | K134: 減価償却費：管理-財務差額 | M134: 7700204 | N134: NS-0231 | O134: =SUMIFS(台帳!$X:$X,台帳!$Q:$Q,集計!$A134,台帳!$D:$D,0) -> 0
A135: NS/0232 | C135: 7700205 | D135: NS-0232 | E135: =SUMIFS(台帳!$X:$X,台帳!$Q:$Q,集計!$A135,台帳!$D:$D,1) -> 0 | F135: 減価償却費：管理-財務差額 | H135: 7700417 | I135: NS-0232 | J135: =SUMIFS(台帳!$X:$X,台帳!$Q:$Q,集計!$A135,台帳!$D:$D,2)+SUMIFS(台帳!$X:$X,台帳!$Q:$Q,集計!$A135,台帳!$D:$D,3) -> 0 | K135: 減価償却費：管理-財務差額 | M135: 7700204 | N135: NS-0232 | O135: =SUMIFS(台帳!$X:$X,台帳!$Q:$Q,集計!$A135,台帳!$D:$D,0) -> 0
A136: NS/0233 | C136: 7700205 | D136: NS-0233 | E136: =SUMIFS(台帳!$X:$X,台帳!$Q:$Q,集計!$A136,台帳!$D:$D,1) -> 0 | F136: 減価償却費：管理-財務差額 | H136: 7700417 | I136: NS-0233 | J136: =SUMIFS(台帳!$X:$X,台帳!$Q:$Q,集計!$A136,台帳!$D:$D,2)+SUMIFS(台帳!$X:$X,台帳!$Q:$Q,集計!$A136,台帳!$D:$D,3) -> 0 | K136: 減価償却費：管理-財務差額 | M136: 7700204 | N136: NS-0233 | O136: =SUMIFS(台帳!$X:$X,台帳!$Q:$Q,集計!$A136,台帳!$D:$D,0) -> 0
A137: NS/0234 | C137: 7700205 | D137: NS-0234 | E137: =SUMIFS(台帳!$X:$X,台帳!$Q:$Q,集計!$A137,台帳!$D:$D,1) -> 0 | F137: 減価償却費：管理-財務差額 | H137: 7700417 | I137: NS-0234 | J137: =SUMIFS(台帳!$X:$X,台帳!$Q:$Q,集計!$A137,台帳!$D:$D,2)+SUMIFS(台帳!$X:$X,台帳!$Q:$Q,集計!$A137,台帳!$D:$D,3) -> 0 | K137: 減価償却費：管理-財務差額 | M137: 7700204 | N137: NS-0234 | O137: =SUMIFS(台帳!$X:$X,台帳!$Q:$Q,集計!$A137,台帳!$D:$D,0) -> 0
A138: NS/0235 | C138: 7700205 | D138: NS-0235 | E138: =SUMIFS(台帳!$X:$X,台帳!$Q:$Q,集計!$A138,台帳!$D:$D,1) -> 0 | F138: 減価償却費：管理-財務差額 | H138: 7700417 | I138: NS-0235 | J138: =SUMIFS(台帳!$X:$X,台帳!$Q:$Q,集計!$A138,台帳!$D:$D,2)+SUMIFS(台帳!$X:$X,台帳!$Q:$Q,集計!$A138,台帳!$D:$D,3) -> 0 | K138: 減価償却費：管理-財務差額 | M138: 7700204 | N138: NS-0235 | O138: =SUMIFS(台帳!$X:$X,台帳!$Q:$Q,集計!$A138,台帳!$D:$D,0) -> 0
A139: NS/0236 | C139: 7700205 | D139: NS-0236 | E139: =SUMIFS(台帳!$X:$X,台帳!$Q:$Q,集計!$A139,台帳!$D:$D,1) -> 0 | F139: 減価償却費：管理-財務差額 | H139: 7700417 | I139: NS-0236 | J139: =SUMIFS(台帳!$X:$X,台帳!$Q:$Q,集計!$A139,台帳!$D:$D,2)+SUMIFS(台帳!$X:$X,台帳!$Q:$Q,集計!$A139,台帳!$D:$D,3) -> 0 | K139: 減価償却費：管理-財務差額 | M139: 7700204 | N139: NS-0236 | O139: =SUMIFS(台帳!$X:$X,台帳!$Q:$Q,集計!$A139,台帳!$D:$D,0) -> 0
A140: NS/0237 | C140: 7700205 | D140: NS-0237 | E140: =SUMIFS(台帳!$X:$X,台帳!$Q:$Q,集計!$A140,台帳!$D:$D,1) -> 0 | F140: 減価償却費：管理-財務差額 | H140: 7700417 | I140: NS-0237 | J140: =SUMIFS(台帳!$X:$X,台帳!$Q:$Q,集計!$A140,台帳!$D:$D,2)+SUMIFS(台帳!$X:$X,台帳!$Q:$Q,集計!$A140,台帳!$D:$D,3) -> 0 | K140: 減価償却費：管理-財務差額 | M140: 7700204 | N140: NS-0237 | O140: =SUMIFS(台帳!$X:$X,台帳!$Q:$Q,集計!$A140,台帳!$D:$D,0) -> 0
A141: NS/0238 | C141: 7700205 | D141: NS-0238 | E141: =SUMIFS(台帳!$X:$X,台帳!$Q:$Q,集計!$A141,台帳!$D:$D,1) -> 0 | F141: 減価償却費：管理-財務差額 | H141: 7700417 | I141: NS-0238 | J141: =SUMIFS(台帳!$X:$X,台帳!$Q:$Q,集計!$A141,台帳!$D:$D,2)+SUMIFS(台帳!$X:$X,台帳!$Q:$Q,集計!$A141,台帳!$D:$D,3) -> 0 | K141: 減価償却費：管理-財務差額 | M141: 7700204 | N141: NS-0238 | O141: =SUMIFS(台帳!$X:$X,台帳!$Q:$Q,集計!$A141,台帳!$D:$D,0) -> 0
A142: NS/0239 | C142: 7700205 | D142: NS-0239 | E142: =SUMIFS(台帳!$X:$X,台帳!$Q:$Q,集計!$A142,台帳!$D:$D,1) -> 0 | F142: 減価償却費：管理-財務差額 | H142: 7700417 | I142: NS-0239 | J142: =SUMIFS(台帳!$X:$X,台帳!$Q:$Q,集計!$A142,台帳!$D:$D,2)+SUMIFS(台帳!$X:$X,台帳!$Q:$Q,集計!$A142,台帳!$D:$D,3) -> 0 | K142: 減価償却費：管理-財務差額 | M142: 7700204 | N142: NS-0239 | O142: =SUMIFS(台帳!$X:$X,台帳!$Q:$Q,集計!$A142,台帳!$D:$D,0) -> 0
A143: NS/0240 | C143: 7700205 | D143: NS-0240 | E143: =SUMIFS(台帳!$X:$X,台帳!$Q:$Q,集計!$A143,台帳!$D:$D,1) -> 0 | F143: 減価償却費：管理-財務差額 | H143: 7700417 | I143: NS-0240 | J143: =SUMIFS(台帳!$X:$X,台帳!$Q:$Q,集計!$A143,台帳!$D:$D,2)+SUMIFS(台帳!$X:$X,台帳!$Q:$Q,集計!$A143,台帳!$D:$D,3) -> 0 | K143: 減価償却費：管理-財務差額 | M143: 7700204 | N143: NS-0240 | O143: =SUMIFS(台帳!$X:$X,台帳!$Q:$Q,集計!$A143,台帳!$D:$D,0) -> 0
A144: NS/0241 | C144: 7700205 | D144: NS-0241 | E144: =SUMIFS(台帳!$X:$X,台帳!$Q:$Q,集計!$A144,台帳!$D:$D,1) -> 0 | F144: 減価償却費：管理-財務差額 | H144: 7700417 | I144: NS-0241 | J144: =SUMIFS(台帳!$X:$X,台帳!$Q:$Q,集計!$A144,台帳!$D:$D,2)+SUMIFS(台帳!$X:$X,台帳!$Q:$Q,集計!$A144,台帳!$D:$D,3) -> 0 | K144: 減価償却費：管理-財務差額 | M144: 7700204 | N144: NS-0241 | O144: =SUMIFS(台帳!$X:$X,台帳!$Q:$Q,集計!$A144,台帳!$D:$D,0) -> 0
A145: NS/0242 | C145: 7700205 | D145: NS-0242 | E145: =SUMIFS(台帳!$X:$X,台帳!$Q:$Q,集計!$A145,台帳!$D:$D,1) -> 0 | F145: 減価償却費：管理-財務差額 | H145: 7700417 | I145: NS-0242 | J145: =SUMIFS(台帳!$X:$X,台帳!$Q:$Q,集計!$A145,台帳!$D:$D,2)+SUMIFS(台帳!$X:$X,台帳!$Q:$Q,集計!$A145,台帳!$D:$D,3) -> 0 | K145: 減価償却費：管理-財務差額 | M145: 7700204 | N145: NS-0242 | O145: =SUMIFS(台帳!$X:$X,台帳!$Q:$Q,集計!$A145,台帳!$D:$D,0) -> 0
A146: NS/0243 | C146: 7700205 | D146: NS-0243 | E146: =SUMIFS(台帳!$X:$X,台帳!$Q:$Q,集計!$A146,台帳!$D:$D,1) -> 0 | F146: 減価償却費：管理-財務差額 | H146: 7700417 | I146: NS-0243 | J146: =SUMIFS(台帳!$X:$X,台帳!$Q:$Q,集計!$A146,台帳!$D:$D,2)+SUMIFS(台帳!$X:$X,台帳!$Q:$Q,集計!$A146,台帳!$D:$D,3) -> 0 | K146: 減価償却費：管理-財務差額 | M146: 7700204 | N146: NS-0243 | O146: =SUMIFS(台帳!$X:$X,台帳!$Q:$Q,集計!$A146,台帳!$D:$D,0) -> 0
A147: NS/0244 | C147: 7700205 | D147: NS-0244 | E147: =SUMIFS(台帳!$X:$X,台帳!$Q:$Q,集計!$A147,台帳!$D:$D,1) -> 0 | F147: 減価償却費：管理-財務差額 | H147: 7700417 | I147: NS-0244 | J147: =SUMIFS(台帳!$X:$X,台帳!$Q:$Q,集計!$A147,台帳!$D:$D,2)+SUMIFS(台帳!$X:$X,台帳!$Q:$Q,集計!$A147,台帳!$D:$D,3) -> 0 | K147: 減価償却費：管理-財務差額 | M147: 7700204 | N147: NS-0244 | O147: =SUMIFS(台帳!$X:$X,台帳!$Q:$Q,集計!$A147,台帳!$D:$D,0) -> 0
A148: NS/0245 | C148: 7700205 | D148: NS-0245 | E148: =SUMIFS(台帳!$X:$X,台帳!$Q:$Q,集計!$A148,台帳!$D:$D,1) -> 0 | F148: 減価償却費：管理-財務差額 | H148: 7700417 | I148: NS-0245 | J148: =SUMIFS(台帳!$X:$X,台帳!$Q:$Q,集計!$A148,台帳!$D:$D,2)+SUMIFS(台帳!$X:$X,台帳!$Q:$Q,集計!$A148,台帳!$D:$D,3) -> 0 | K148: 減価償却費：管理-財務差額 | M148: 7700204 | N148: NS-0245 | O148: =SUMIFS(台帳!$X:$X,台帳!$Q:$Q,集計!$A148,台帳!$D:$D,0) -> 0
A149: NS/0246 | C149: 7700205 | D149: NS-0246 | E149: =SUMIFS(台帳!$X:$X,台帳!$Q:$Q,集計!$A149,台帳!$D:$D,1) -> 0 | F149: 減価償却費：管理-財務差額 | H149: 7700417 | I149: NS-0246 | J149: =SUMIFS(台帳!$X:$X,台帳!$Q:$Q,集計!$A149,台帳!$D:$D,2)+SUMIFS(台帳!$X:$X,台帳!$Q:$Q,集計!$A149,台帳!$D:$D,3) -> 0 | K149: 減価償却費：管理-財務差額 | M149: 7700204 | N149: NS-0246 | O149: =SUMIFS(台帳!$X:$X,台帳!$Q:$Q,集計!$A149,台帳!$D:$D,0) -> 0
A150: NS/0247 | C150: 7700205 | D150: NS-0247 | E150: =SUMIFS(台帳!$X:$X,台帳!$Q:$Q,集計!$A150,台帳!$D:$D,1) -> 0 | F150: 減価償却費：管理-財務差額 | H150: 7700417 | I150: NS-0247 | J150: =SUMIFS(台帳!$X:$X,台帳!$Q:$Q,集計!$A150,台帳!$D:$D,2)+SUMIFS(台帳!$X:$X,台帳!$Q:$Q,集計!$A150,台帳!$D:$D,3) -> 0 | K150: 減価償却費：管理-財務差額 | M150: 7700204 | N150: NS-0247 | O150: =SUMIFS(台帳!$X:$X,台帳!$Q:$Q,集計!$A150,台帳!$D:$D,0) -> 0
A151: NS/0248 | C151: 7700205 | D151: NS-0248 | E151: =SUMIFS(台帳!$X:$X,台帳!$Q:$Q,集計!$A151,台帳!$D:$D,1) -> 0 | F151: 減価償却費：管理-財務差額 | H151: 7700417 | I151: NS-0248 | J151: =SUMIFS(台帳!$X:$X,台帳!$Q:$Q,集計!$A151,台帳!$D:$D,2)+SUMIFS(台帳!$X:$X,台帳!$Q:$Q,集計!$A151,台帳!$D:$D,3) -> 0 | K151: 減価償却費：管理-財務差額 | M151: 7700204 | N151: NS-0248 | O151: =SUMIFS(台帳!$X:$X,台帳!$Q:$Q,集計!$A151,台帳!$D:$D,0) -> 0
A152: NS/0249 | C152: 7700205 | D152: NS-0249 | E152: =SUMIFS(台帳!$X:$X,台帳!$Q:$Q,集計!$A152,台帳!$D:$D,1) -> 0 | F152: 減価償却費：管理-財務差額 | H152: 7700417 | I152: NS-0249 | J152: =SUMIFS(台帳!$X:$X,台帳!$Q:$Q,集計!$A152,台帳!$D:$D,2)+SUMIFS(台帳!$X:$X,台帳!$Q:$Q,集計!$A152,台帳!$D:$D,3) -> 0 | K152: 減価償却費：管理-財務差額 | M152: 7700204 | N152: NS-0249 | O152: =SUMIFS(台帳!$X:$X,台帳!$Q:$Q,集計!$A152,台帳!$D:$D,0) -> 0
A153: NS/0250 | C153: 7700205 | D153: NS-0250 | E153: =SUMIFS(台帳!$X:$X,台帳!$Q:$Q,集計!$A153,台帳!$D:$D,1) -> 0 | F153: 減価償却費：管理-財務差額 | H153: 7700417 | I153: NS-0250 | J153: =SUMIFS(台帳!$X:$X,台帳!$Q:$Q,集計!$A153,台帳!$D:$D,2)+SUMIFS(台帳!$X:$X,台帳!$Q:$Q,集計!$A153,台帳!$D:$D,3) -> 0 | K153: 減価償却費：管理-財務差額 | M153: 7700204 | N153: NS-0250 | O153: =SUMIFS(台帳!$X:$X,台帳!$Q:$Q,集計!$A153,台帳!$D:$D,0) -> 0
A154: NS/0251 | C154: 7700205 | D154: NS-0251 | E154: =SUMIFS(台帳!$X:$X,台帳!$Q:$Q,集計!$A154,台帳!$D:$D,1) -> 0 | F154: 減価償却費：管理-財務差額 | H154: 7700417 | I154: NS-0251 | J154: =SUMIFS(台帳!$X:$X,台帳!$Q:$Q,集計!$A154,台帳!$D:$D,2)+SUMIFS(台帳!$X:$X,台帳!$Q:$Q,集計!$A154,台帳!$D:$D,3) -> 0 | K154: 減価償却費：管理-財務差額 | M154: 7700204 | N154: NS-0251 | O154: =SUMIFS(台帳!$X:$X,台帳!$Q:$Q,集計!$A154,台帳!$D:$D,0) -> 0
A155: NS/0252 | C155: 7700205 | D155: NS-0252 | E155: =SUMIFS(台帳!$X:$X,台帳!$Q:$Q,集計!$A155,台帳!$D:$D,1) -> 0 | F155: 減価償却費：管理-財務差額 | H155: 7700417 | I155: NS-0252 | J155: =SUMIFS(台帳!$X:$X,台帳!$Q:$Q,集計!$A155,台帳!$D:$D,2)+SUMIFS(台帳!$X:$X,台帳!$Q:$Q,集計!$A155,台帳!$D:$D,3) -> 0 | K155: 減価償却費：管理-財務差額 | M155: 7700204 | N155: NS-0252 | O155: =SUMIFS(台帳!$X:$X,台帳!$Q:$Q,集計!$A155,台帳!$D:$D,0) -> 0
A156: NS/0253 | C156: 7700205 | D156: NS-0253 | E156: =SUMIFS(台帳!$X:$X,台帳!$Q:$Q,集計!$A156,台帳!$D:$D,1) -> 0 | F156: 減価償却費：管理-財務差額 | H156: 7700417 | I156: NS-0253 | J156: =SUMIFS(台帳!$X:$X,台帳!$Q:$Q,集計!$A156,台帳!$D:$D,2)+SUMIFS(台帳!$X:$X,台帳!$Q:$Q,集計!$A156,台帳!$D:$D,3) -> 0 | K156: 減価償却費：管理-財務差額 | M156: 7700204 | N156: NS-0253 | O156: =SUMIFS(台帳!$X:$X,台帳!$Q:$Q,集計!$A156,台帳!$D:$D,0) -> 0
A157: NS/0254 | C157: 7700205 | D157: NS-0254 | E157: =SUMIFS(台帳!$X:$X,台帳!$Q:$Q,集計!$A157,台帳!$D:$D,1) -> 0 | F157: 減価償却費：管理-財務差額 | H157: 7700417 | I157: NS-0254 | J157: =SUMIFS(台帳!$X:$X,台帳!$Q:$Q,集計!$A157,台帳!$D:$D,2)+SUMIFS(台帳!$X:$X,台帳!$Q:$Q,集計!$A157,台帳!$D:$D,3) -> 0 | K157: 減価償却費：管理-財務差額 | M157: 7700204 | N157: NS-0254 | O157: =SUMIFS(台帳!$X:$X,台帳!$Q:$Q,集計!$A157,台帳!$D:$D,0) -> 0
A158: NS/0255 | C158: 7700205 | D158: NS-0255 | E158: =SUMIFS(台帳!$X:$X,台帳!$Q:$Q,集計!$A158,台帳!$D:$D,1) -> 24462 | F158: 減価償却費：管理-財務差額 | H158: 7700417 | I158: NS-0255 | J158: =SUMIFS(台帳!$X:$X,台帳!$Q:$Q,集計!$A158,台帳!$D:$D,2)+SUMIFS(台帳!$X:$X,台帳!$Q:$Q,集計!$A158,台帳!$D:$D,3) -> 0 | K158: 減価償却費：管理-財務差額 | M158: 7700204 | N158: NS-0255 | O158: =SUMIFS(台帳!$X:$X,台帳!$Q:$Q,集計!$A158,台帳!$D:$D,0) -> 0
A159: NS/0256 | C159: 7700205 | D159: NS-0256 | E159: =SUMIFS(台帳!$X:$X,台帳!$Q:$Q,集計!$A159,台帳!$D:$D,1) -> 0 | F159: 減価償却費：管理-財務差額 | H159: 7700417 | I159: NS-0256 | J159: =SUMIFS(台帳!$X:$X,台帳!$Q:$Q,集計!$A159,台帳!$D:$D,2)+SUMIFS(台帳!$X:$X,台帳!$Q:$Q,集計!$A159,台帳!$D:$D,3) -> 0 | K159: 減価償却費：管理-財務差額 | M159: 7700204 | N159: NS-0256 | O159: =SUMIFS(台帳!$X:$X,台帳!$Q:$Q,集計!$A159,台帳!$D:$D,0) -> 0
A160: NS/0257 | C160: 7700205 | D160: NS-0257 | E160: =SUMIFS(台帳!$X:$X,台帳!$Q:$Q,集計!$A160,台帳!$D:$D,1) -> 0 | F160: 減価償却費：管理-財務差額 | H160: 7700417 | I160: NS-0257 | J160: =SUMIFS(台帳!$X:$X,台帳!$Q:$Q,集計!$A160,台帳!$D:$D,2)+SUMIFS(台帳!$X:$X,台帳!$Q:$Q,集計!$A160,台帳!$D:$D,3) -> 0 | K160: 減価償却費：管理-財務差額 | M160: 7700204 | N160: NS-0257 | O160: =SUMIFS(台帳!$X:$X,台帳!$Q:$Q,集計!$A160,台帳!$D:$D,0) -> 0
A161: NS/0258 | C161: 7700205 | D161: NS-0258 | E161: =SUMIFS(台帳!$X:$X,台帳!$Q:$Q,集計!$A161,台帳!$D:$D,1) -> 0 | F161: 減価償却費：管理-財務差額 | H161: 7700417 | I161: NS-0258 | J161: =SUMIFS(台帳!$X:$X,台帳!$Q:$Q,集計!$A161,台帳!$D:$D,2)+SUMIFS(台帳!$X:$X,台帳!$Q:$Q,集計!$A161,台帳!$D:$D,3) -> 0 | K161: 減価償却費：管理-財務差額 | M161: 7700204 | N161: NS-0258 | O161: =SUMIFS(台帳!$X:$X,台帳!$Q:$Q,集計!$A161,台帳!$D:$D,0) -> 0
A162: NS/0259 | C162: 7700205 | D162: NS-0259 | E162: =SUMIFS(台帳!$X:$X,台帳!$Q:$Q,集計!$A162,台帳!$D:$D,1) -> 0 | F162: 減価償却費：管理-財務差額 | H162: 7700417 | I162: NS-0259 | J162: =SUMIFS(台帳!$X:$X,台帳!$Q:$Q,集計!$A162,台帳!$D:$D,2)+SUMIFS(台帳!$X:$X,台帳!$Q:$Q,集計!$A162,台帳!$D:$D,3) -> 0 | K162: 減価償却費：管理-財務差額 | M162: 7700204 | N162: NS-0259 | O162: =SUMIFS(台帳!$X:$X,台帳!$Q:$Q,集計!$A162,台帳!$D:$D,0) -> 0
A163: NS/0260 | C163: 7700205 | D163: NS-0260 | E163: =SUMIFS(台帳!$X:$X,台帳!$Q:$Q,集計!$A163,台帳!$D:$D,1) -> 0 | F163: 減価償却費：管理-財務差額 | H163: 7700417 | I163: NS-0260 | J163: =SUMIFS(台帳!$X:$X,台帳!$Q:$Q,集計!$A163,台帳!$D:$D,2)+SUMIFS(台帳!$X:$X,台帳!$Q:$Q,集計!$A163,台帳!$D:$D,3) -> 0 | K163: 減価償却費：管理-財務差額 | M163: 7700204 | N163: NS-0260 | O163: =SUMIFS(台帳!$X:$X,台帳!$Q:$Q,集計!$A163,台帳!$D:$D,0) -> 0
A164: NS/0261 | C164: 7700205 | D164: NS-0261 | E164: =SUMIFS(台帳!$X:$X,台帳!$Q:$Q,集計!$A164,台帳!$D:$D,1) -> 0 | F164: 減価償却費：管理-財務差額 | H164: 7700417 | I164: NS-0261 | J164: =SUMIFS(台帳!$X:$X,台帳!$Q:$Q,集計!$A164,台帳!$D:$D,2)+SUMIFS(台帳!$X:$X,台帳!$Q:$Q,集計!$A164,台帳!$D:$D,3) -> 0 | K164: 減価償却費：管理-財務差額 | M164: 7700204 | N164: NS-0261 | O164: =SUMIFS(台帳!$X:$X,台帳!$Q:$Q,集計!$A164,台帳!$D:$D,0) -> 0
A165: NS/0262 | C165: 7700205 | D165: NS-0262 | E165: =SUMIFS(台帳!$X:$X,台帳!$Q:$Q,集計!$A165,台帳!$D:$D,1) -> 0 | F165: 減価償却費：管理-財務差額 | H165: 7700417 | I165: NS-0262 | J165: =SUMIFS(台帳!$X:$X,台帳!$Q:$Q,集計!$A165,台帳!$D:$D,2)+SUMIFS(台帳!$X:$X,台帳!$Q:$Q,集計!$A165,台帳!$D:$D,3) -> 0 | K165: 減価償却費：管理-財務差額 | M165: 7700204 | N165: NS-0262 | O165: =SUMIFS(台帳!$X:$X,台帳!$Q:$Q,集計!$A165,台帳!$D:$D,0) -> 0
A166: NS/0263 | C166: 7700205 | D166: NS-0263 | E166: =SUMIFS(台帳!$X:$X,台帳!$Q:$Q,集計!$A166,台帳!$D:$D,1) -> 0 | F166: 減価償却費：管理-財務差額 | H166: 7700417 | I166: NS-0263 | J166: =SUMIFS(台帳!$X:$X,台帳!$Q:$Q,集計!$A166,台帳!$D:$D,2)+SUMIFS(台帳!$X:$X,台帳!$Q:$Q,集計!$A166,台帳!$D:$D,3) -> 0 | K166: 減価償却費：管理-財務差額 | M166: 7700204 | N166: NS-0263 | O166: =SUMIFS(台帳!$X:$X,台帳!$Q:$Q,集計!$A166,台帳!$D:$D,0) -> 0
A167: NS/0264 | C167: 7700205 | D167: NS-0264 | E167: =SUMIFS(台帳!$X:$X,台帳!$Q:$Q,集計!$A167,台帳!$D:$D,1) -> 0 | F167: 減価償却費：管理-財務差額 | H167: 7700417 | I167: NS-0264 | J167: =SUMIFS(台帳!$X:$X,台帳!$Q:$Q,集計!$A167,台帳!$D:$D,2)+SUMIFS(台帳!$X:$X,台帳!$Q:$Q,集計!$A167,台帳!$D:$D,3) -> 0 | K167: 減価償却費：管理-財務差額 | M167: 7700204 | N167: NS-0264 | O167: =SUMIFS(台帳!$X:$X,台帳!$Q:$Q,集計!$A167,台帳!$D:$D,0) -> 0
A168: NS/0265 | C168: 7700205 | D168: NS-0265 | E168: =SUMIFS(台帳!$X:$X,台帳!$Q:$Q,集計!$A168,台帳!$D:$D,1) -> 0 | F168: 減価償却費：管理-財務差額 | H168: 7700417 | I168: NS-0265 | J168: =SUMIFS(台帳!$X:$X,台帳!$Q:$Q,集計!$A168,台帳!$D:$D,2)+SUMIFS(台帳!$X:$X,台帳!$Q:$Q,集計!$A168,台帳!$D:$D,3) -> 0 | K168: 減価償却費：管理-財務差額 | M168: 7700204 | N168: NS-0265 | O168: =SUMIFS(台帳!$X:$X,台帳!$Q:$Q,集計!$A168,台帳!$D:$D,0) -> 0
A169: NS/0266 | C169: 7700205 | D169: NS-0266 | E169: =SUMIFS(台帳!$X:$X,台帳!$Q:$Q,集計!$A169,台帳!$D:$D,1) -> 0 | F169: 減価償却費：管理-財務差額 | H169: 7700417 | I169: NS-0266 | J169: =SUMIFS(台帳!$X:$X,台帳!$Q:$Q,集計!$A169,台帳!$D:$D,2)+SUMIFS(台帳!$X:$X,台帳!$Q:$Q,集計!$A169,台帳!$D:$D,3) -> 0 | K169: 減価償却費：管理-財務差額 | M169: 7700204 | N169: NS-0266 | O169: =SUMIFS(台帳!$X:$X,台帳!$Q:$Q,集計!$A169,台帳!$D:$D,0) -> 0
A170: NS/0267 | C170: 7700205 | D170: NS-0267 | E170: =SUMIFS(台帳!$X:$X,台帳!$Q:$Q,集計!$A170,台帳!$D:$D,1) -> 0 | F170: 減価償却費：管理-財務差額 | H170: 7700417 | I170: NS-0267 | J170: =SUMIFS(台帳!$X:$X,台帳!$Q:$Q,集計!$A170,台帳!$D:$D,2)+SUMIFS(台帳!$X:$X,台帳!$Q:$Q,集計!$A170,台帳!$D:$D,3) -> 0 | K170: 減価償却費：管理-財務差額 | M170: 7700204 | N170: NS-0267 | O170: =SUMIFS(台帳!$X:$X,台帳!$Q:$Q,集計!$A170,台帳!$D:$D,0) -> 0
A171: NS/0268 | C171: 7700205 | D171: NS-0268 | E171: =SUMIFS(台帳!$X:$X,台帳!$Q:$Q,集計!$A171,台帳!$D:$D,1) -> 0 | F171: 減価償却費：管理-財務差額 | H171: 7700417 | I171: NS-0268 | J171: =SUMIFS(台帳!$X:$X,台帳!$Q:$Q,集計!$A171,台帳!$D:$D,2)+SUMIFS(台帳!$X:$X,台帳!$Q:$Q,集計!$A171,台帳!$D:$D,3) -> 0 | K171: 減価償却費：管理-財務差額 | M171: 7700204 | N171: NS-0268 | O171: =SUMIFS(台帳!$X:$X,台帳!$Q:$Q,集計!$A171,台帳!$D:$D,0) -> 0
A172: NS/0269 | C172: 7700205 | D172: NS-0269 | E172: =SUMIFS(台帳!$X:$X,台帳!$Q:$Q,集計!$A172,台帳!$D:$D,1) -> 0 | F172: 減価償却費：管理-財務差額 | H172: 7700417 | I172: NS-0269 | J172: =SUMIFS(台帳!$X:$X,台帳!$Q:$Q,集計!$A172,台帳!$D:$D,2)+SUMIFS(台帳!$X:$X,台帳!$Q:$Q,集計!$A172,台帳!$D:$D,3) -> 0 | K172: 減価償却費：管理-財務差額 | M172: 7700204 | N172: NS-0269 | O172: =SUMIFS(台帳!$X:$X,台帳!$Q:$Q,集計!$A172,台帳!$D:$D,0) -> 0
A173: NS/0270 | C173: 7700205 | D173: NS-0270 | E173: =SUMIFS(台帳!$X:$X,台帳!$Q:$Q,集計!$A173,台帳!$D:$D,1) -> 0 | F173: 減価償却費：管理-財務差額 | H173: 7700417 | I173: NS-0270 | J173: =SUMIFS(台帳!$X:$X,台帳!$Q:$Q,集計!$A173,台帳!$D:$D,2)+SUMIFS(台帳!$X:$X,台帳!$Q:$Q,集計!$A173,台帳!$D:$D,3) -> 0 | K173: 減価償却費：管理-財務差額 | M173: 7700204 | N173: NS-0270 | O173: =SUMIFS(台帳!$X:$X,台帳!$Q:$Q,集計!$A173,台帳!$D:$D,0) -> 0
A174: NS/0271 | C174: 7700205 | D174: NS-0271 | E174: =SUMIFS(台帳!$X:$X,台帳!$Q:$Q,集計!$A174,台帳!$D:$D,1) -> 0 | F174: 減価償却費：管理-財務差額 | H174: 7700417 | I174: NS-0271 | J174: =SUMIFS(台帳!$X:$X,台帳!$Q:$Q,集計!$A174,台帳!$D:$D,2)+SUMIFS(台帳!$X:$X,台帳!$Q:$Q,集計!$A174,台帳!$D:$D,3) -> 0 | K174: 減価償却費：管理-財務差額 | M174: 7700204 | N174: NS-0271 | O174: =SUMIFS(台帳!$X:$X,台帳!$Q:$Q,集計!$A174,台帳!$D:$D,0) -> 0
A175: NS/0272 | C175: 7700205 | D175: NS-0272 | E175: =SUMIFS(台帳!$X:$X,台帳!$Q:$Q,集計!$A175,台帳!$D:$D,1) -> 0 | F175: 減価償却費：管理-財務差額 | H175: 7700417 | I175: NS-0272 | J175: =SUMIFS(台帳!$X:$X,台帳!$Q:$Q,集計!$A175,台帳!$D:$D,2)+SUMIFS(台帳!$X:$X,台帳!$Q:$Q,集計!$A175,台帳!$D:$D,3) -> 0 | K175: 減価償却費：管理-財務差額 | M175: 7700204 | N175: NS-0272 | O175: =SUMIFS(台帳!$X:$X,台帳!$Q:$Q,集計!$A175,台帳!$D:$D,0) -> 0
A176: NS/0273 | C176: 7700205 | D176: NS-0273 | E176: =SUMIFS(台帳!$X:$X,台帳!$Q:$Q,集計!$A176,台帳!$D:$D,1) -> 0 | F176: 減価償却費：管理-財務差額 | H176: 7700417 | I176: NS-0273 | J176: =SUMIFS(台帳!$X:$X,台帳!$Q:$Q,集計!$A176,台帳!$D:$D,2)+SUMIFS(台帳!$X:$X,台帳!$Q:$Q,集計!$A176,台帳!$D:$D,3) -> 0 | K176: 減価償却費：管理-財務差額 | M176: 7700204 | N176: NS-0273 | O176: =SUMIFS(台帳!$X:$X,台帳!$Q:$Q,集計!$A176,台帳!$D:$D,0) -> 0
A177: NS/0274 | C177: 7700205 | D177: NS-0274 | E177: =SUMIFS(台帳!$X:$X,台帳!$Q:$Q,集計!$A177,台帳!$D:$D,1) -> 0 | F177: 減価償却費：管理-財務差額 | H177: 7700417 | I177: NS-0274 | J177: =SUMIFS(台帳!$X:$X,台帳!$Q:$Q,集計!$A177,台帳!$D:$D,2)+SUMIFS(台帳!$X:$X,台帳!$Q:$Q,集計!$A177,台帳!$D:$D,3) -> 0 | K177: 減価償却費：管理-財務差額 | M177: 7700204 | N177: NS-0274 | O177: =SUMIFS(台帳!$X:$X,台帳!$Q:$Q,集計!$A177,台帳!$D:$D,0) -> 0
A178: NS/0275 | C178: 7700205 | D178: NS-0275 | E178: =SUMIFS(台帳!$X:$X,台帳!$Q:$Q,集計!$A178,台帳!$D:$D,1) -> 0 | F178: 減価償却費：管理-財務差額 | H178: 7700417 | I178: NS-0275 | J178: =SUMIFS(台帳!$X:$X,台帳!$Q:$Q,集計!$A178,台帳!$D:$D,2)+SUMIFS(台帳!$X:$X,台帳!$Q:$Q,集計!$A178,台帳!$D:$D,3) -> 0 | K178: 減価償却費：管理-財務差額 | M178: 7700204 | N178: NS-0275 | O178: =SUMIFS(台帳!$X:$X,台帳!$Q:$Q,集計!$A178,台帳!$D:$D,0) -> 0
A179: NS/0276 | C179: 7700205 | D179: NS-0276 | E179: =SUMIFS(台帳!$X:$X,台帳!$Q:$Q,集計!$A179,台帳!$D:$D,1) -> 0 | F179: 減価償却費：管理-財務差額 | H179: 7700417 | I179: NS-0276 | J179: =SUMIFS(台帳!$X:$X,台帳!$Q:$Q,集計!$A179,台帳!$D:$D,2)+SUMIFS(台帳!$X:$X,台帳!$Q:$Q,集計!$A179,台帳!$D:$D,3) -> 0 | K179: 減価償却費：管理-財務差額 | M179: 7700204 | N179: NS-0276 | O179: =SUMIFS(台帳!$X:$X,台帳!$Q:$Q,集計!$A179,台帳!$D:$D,0) -> 0
A180: NS/0277 | C180: 7700205 | D180: NS-0277 | E180: =SUMIFS(台帳!$X:$X,台帳!$Q:$Q,集計!$A180,台帳!$D:$D,1) -> 0 | F180: 減価償却費：管理-財務差額 | H180: 7700417 | I180: NS-0277 | J180: =SUMIFS(台帳!$X:$X,台帳!$Q:$Q,集計!$A180,台帳!$D:$D,2)+SUMIFS(台帳!$X:$X,台帳!$Q:$Q,集計!$A180,台帳!$D:$D,3) -> 0 | K180: 減価償却費：管理-財務差額 | M180: 7700204 | N180: NS-0277 | O180: =SUMIFS(台帳!$X:$X,台帳!$Q:$Q,集計!$A180,台帳!$D:$D,0) -> 0
A181: NS/0278 | C181: 7700205 | D181: NS-0278 | E181: =SUMIFS(台帳!$X:$X,台帳!$Q:$Q,集計!$A181,台帳!$D:$D,1) -> 0 | F181: 減価償却費：管理-財務差額 | H181: 7700417 | I181: NS-0278 | J181: =SUMIFS(台帳!$X:$X,台帳!$Q:$Q,集計!$A181,台帳!$D:$D,2)+SUMIFS(台帳!$X:$X,台帳!$Q:$Q,集計!$A181,台帳!$D:$D,3) -> 0 | K181: 減価償却費：管理-財務差額 | M181: 7700204 | N181: NS-0278 | O181: =SUMIFS(台帳!$X:$X,台帳!$Q:$Q,集計!$A181,台帳!$D:$D,0) -> 0
A182: NS/0279 | C182: 7700205 | D182: NS-0279 | E182: =SUMIFS(台帳!$X:$X,台帳!$Q:$Q,集計!$A182,台帳!$D:$D,1) -> 0 | F182: 減価償却費：管理-財務差額 | H182: 7700417 | I182: NS-0279 | J182: =SUMIFS(台帳!$X:$X,台帳!$Q:$Q,集計!$A182,台帳!$D:$D,2)+SUMIFS(台帳!$X:$X,台帳!$Q:$Q,集計!$A182,台帳!$D:$D,3) -> 0 | K182: 減価償却費：管理-財務差額 | M182: 7700204 | N182: NS-0279 | O182: =SUMIFS(台帳!$X:$X,台帳!$Q:$Q,集計!$A182,台帳!$D:$D,0) -> 0
A183: NS/0280 | C183: 7700205 | D183: NS-0280 | E183: =SUMIFS(台帳!$X:$X,台帳!$Q:$Q,集計!$A183,台帳!$D:$D,1) -> 0 | F183: 減価償却費：管理-財務差額 | H183: 7700417 | I183: NS-0280 | J183: =SUMIFS(台帳!$X:$X,台帳!$Q:$Q,集計!$A183,台帳!$D:$D,2)+SUMIFS(台帳!$X:$X,台帳!$Q:$Q,集計!$A183,台帳!$D:$D,3) -> 0 | K183: 減価償却費：管理-財務差額 | M183: 7700204 | N183: NS-0280 | O183: =SUMIFS(台帳!$X:$X,台帳!$Q:$Q,集計!$A183,台帳!$D:$D,0) -> 0
A184: NS/0281 | C184: 7700205 | D184: NS-0281 | E184: =SUMIFS(台帳!$X:$X,台帳!$Q:$Q,集計!$A184,台帳!$D:$D,1) -> 0 | F184: 減価償却費：管理-財務差額 | H184: 7700417 | I184: NS-0281 | J184: =SUMIFS(台帳!$X:$X,台帳!$Q:$Q,集計!$A184,台帳!$D:$D,2)+SUMIFS(台帳!$X:$X,台帳!$Q:$Q,集計!$A184,台帳!$D:$D,3) -> 0 | K184: 減価償却費：管理-財務差額 | M184: 7700204 | N184: NS-0281 | O184: =SUMIFS(台帳!$X:$X,台帳!$Q:$Q,集計!$A184,台帳!$D:$D,0) -> 0
A185: NS/0282 | C185: 7700205 | D185: NS-0282 | E185: =SUMIFS(台帳!$X:$X,台帳!$Q:$Q,集計!$A185,台帳!$D:$D,1) -> 0 | F185: 減価償却費：管理-財務差額 | H185: 7700417 | I185: NS-0282 | J185: =SUMIFS(台帳!$X:$X,台帳!$Q:$Q,集計!$A185,台帳!$D:$D,2)+SUMIFS(台帳!$X:$X,台帳!$Q:$Q,集計!$A185,台帳!$D:$D,3) -> 0 | K185: 減価償却費：管理-財務差額 | M185: 7700204 | N185: NS-0282 | O185: =SUMIFS(台帳!$X:$X,台帳!$Q:$Q,集計!$A185,台帳!$D:$D,0) -> 0
A186: NS/0283 | C186: 7700205 | D186: NS-0283 | E186: =SUMIFS(台帳!$X:$X,台帳!$Q:$Q,集計!$A186,台帳!$D:$D,1) -> 0 | F186: 減価償却費：管理-財務差額 | H186: 7700417 | I186: NS-0283 | J186: =SUMIFS(台帳!$X:$X,台帳!$Q:$Q,集計!$A186,台帳!$D:$D,2)+SUMIFS(台帳!$X:$X,台帳!$Q:$Q,集計!$A186,台帳!$D:$D,3) -> 0 | K186: 減価償却費：管理-財務差額 | M186: 7700204 | N186: NS-0283 | O186: =SUMIFS(台帳!$X:$X,台帳!$Q:$Q,集計!$A186,台帳!$D:$D,0) -> 0
A187: NS/0284 | C187: 7700205 | D187: NS-0284 | E187: =SUMIFS(台帳!$X:$X,台帳!$Q:$Q,集計!$A187,台帳!$D:$D,1) -> 0 | F187: 減価償却費：管理-財務差額 | H187: 7700417 | I187: NS-0284 | J187: =SUMIFS(台帳!$X:$X,台帳!$Q:$Q,集計!$A187,台帳!$D:$D,2)+SUMIFS(台帳!$X:$X,台帳!$Q:$Q,集計!$A187,台帳!$D:$D,3) -> 0 | K187: 減価償却費：管理-財務差額 | M187: 7700204 | N187: NS-0284 | O187: =SUMIFS(台帳!$X:$X,台帳!$Q:$Q,集計!$A187,台帳!$D:$D,0) -> 0
A188: NS/0285 | C188: 7700205 | D188: NS-0285 | E188: =SUMIFS(台帳!$X:$X,台帳!$Q:$Q,集計!$A188,台帳!$D:$D,1) -> 0 | F188: 減価償却費：管理-財務差額 | H188: 7700417 | I188: NS-0285 | J188: =SUMIFS(台帳!$X:$X,台帳!$Q:$Q,集計!$A188,台帳!$D:$D,2)+SUMIFS(台帳!$X:$X,台帳!$Q:$Q,集計!$A188,台帳!$D:$D,3) -> 0 | K188: 減価償却費：管理-財務差額 | M188: 7700204 | N188: NS-0285 | O188: =SUMIFS(台帳!$X:$X,台帳!$Q:$Q,集計!$A188,台帳!$D:$D,0) -> 0
A189: NS/0286 | C189: 7700205 | D189: NS-0286 | E189: =SUMIFS(台帳!$X:$X,台帳!$Q:$Q,集計!$A189,台帳!$D:$D,1) -> 0 | F189: 減価償却費：管理-財務差額 | H189: 7700417 | I189: NS-0286 | J189: =SUMIFS(台帳!$X:$X,台帳!$Q:$Q,集計!$A189,台帳!$D:$D,2)+SUMIFS(台帳!$X:$X,台帳!$Q:$Q,集計!$A189,台帳!$D:$D,3) -> 0 | K189: 減価償却費：管理-財務差額 | M189: 7700204 | N189: NS-0286 | O189: =SUMIFS(台帳!$X:$X,台帳!$Q:$Q,集計!$A189,台帳!$D:$D,0) -> 0
A190: NS/0287 | C190: 7700205 | D190: NS-0287 | E190: =SUMIFS(台帳!$X:$X,台帳!$Q:$Q,集計!$A190,台帳!$D:$D,1) -> 0 | F190: 減価償却費：管理-財務差額 | H190: 7700417 | I190: NS-0287 | J190: =SUMIFS(台帳!$X:$X,台帳!$Q:$Q,集計!$A190,台帳!$D:$D,2)+SUMIFS(台帳!$X:$X,台帳!$Q:$Q,集計!$A190,台帳!$D:$D,3) -> 0 | K190: 減価償却費：管理-財務差額 | M190: 7700204 | N190: NS-0287 | O190: =SUMIFS(台帳!$X:$X,台帳!$Q:$Q,集計!$A190,台帳!$D:$D,0) -> 0
A191: NS/0288 | C191: 7700205 | D191: NS-0288 | E191: =SUMIFS(台帳!$X:$X,台帳!$Q:$Q,集計!$A191,台帳!$D:$D,1) -> 0 | F191: 減価償却費：管理-財務差額 | H191: 7700417 | I191: NS-0288 | J191: =SUMIFS(台帳!$X:$X,台帳!$Q:$Q,集計!$A191,台帳!$D:$D,2)+SUMIFS(台帳!$X:$X,台帳!$Q:$Q,集計!$A191,台帳!$D:$D,3) -> 0 | K191: 減価償却費：管理-財務差額 | M191: 7700204 | N191: NS-0288 | O191: =SUMIFS(台帳!$X:$X,台帳!$Q:$Q,集計!$A191,台帳!$D:$D,0) -> 0
A192: NS/0289 | C192: 7700205 | D192: NS-0289 | E192: =SUMIFS(台帳!$X:$X,台帳!$Q:$Q,集計!$A192,台帳!$D:$D,1) -> 0 | F192: 減価償却費：管理-財務差額 | H192: 7700417 | I192: NS-0289 | J192: =SUMIFS(台帳!$X:$X,台帳!$Q:$Q,集計!$A192,台帳!$D:$D,2)+SUMIFS(台帳!$X:$X,台帳!$Q:$Q,集計!$A192,台帳!$D:$D,3) -> 0 | K192: 減価償却費：管理-財務差額 | M192: 7700204 | N192: NS-0289 | O192: =SUMIFS(台帳!$X:$X,台帳!$Q:$Q,集計!$A192,台帳!$D:$D,0) -> 0
A193: NS/0290 | C193: 7700205 | D193: NS-0290 | E193: =SUMIFS(台帳!$X:$X,台帳!$Q:$Q,集計!$A193,台帳!$D:$D,1) -> 0 | F193: 減価償却費：管理-財務差額 | H193: 7700417 | I193: NS-0290 | J193: =SUMIFS(台帳!$X:$X,台帳!$Q:$Q,集計!$A193,台帳!$D:$D,2)+SUMIFS(台帳!$X:$X,台帳!$Q:$Q,集計!$A193,台帳!$D:$D,3) -> 0 | K193: 減価償却費：管理-財務差額 | M193: 7700204 | N193: NS-0290 | O193: =SUMIFS(台帳!$X:$X,台帳!$Q:$Q,集計!$A193,台帳!$D:$D,0) -> 0
A194: NS/0291 | C194: 7700205 | D194: NS-0291 | E194: =SUMIFS(台帳!$X:$X,台帳!$Q:$Q,集計!$A194,台帳!$D:$D,1) -> 0 | F194: 減価償却費：管理-財務差額 | H194: 7700417 | I194: NS-0291 | J194: =SUMIFS(台帳!$X:$X,台帳!$Q:$Q,集計!$A194,台帳!$D:$D,2)+SUMIFS(台帳!$X:$X,台帳!$Q:$Q,集計!$A194,台帳!$D:$D,3) -> 0 | K194: 減価償却費：管理-財務差額 | M194: 7700204 | N194: NS-0291 | O194: =SUMIFS(台帳!$X:$X,台帳!$Q:$Q,集計!$A194,台帳!$D:$D,0) -> 0
A195: NS/0292 | C195: 7700205 | D195: NS-0292 | E195: =SUMIFS(台帳!$X:$X,台帳!$Q:$Q,集計!$A195,台帳!$D:$D,1) -> 0 | F195: 減価償却費：管理-財務差額 | H195: 7700417 | I195: NS-0292 | J195: =SUMIFS(台帳!$X:$X,台帳!$Q:$Q,集計!$A195,台帳!$D:$D,2)+SUMIFS(台帳!$X:$X,台帳!$Q:$Q,集計!$A195,台帳!$D:$D,3) -> 0 | K195: 減価償却費：管理-財務差額 | M195: 7700204 | N195: NS-0292 | O195: =SUMIFS(台帳!$X:$X,台帳!$Q:$Q,集計!$A195,台帳!$D:$D,0) -> 0
A196: NS/0293 | C196: 7700205 | D196: NS-0293 | E196: =SUMIFS(台帳!$X:$X,台帳!$Q:$Q,集計!$A196,台帳!$D:$D,1) -> 0 | F196: 減価償却費：管理-財務差額 | H196: 7700417 | I196: NS-0293 | J196: =SUMIFS(台帳!$X:$X,台帳!$Q:$Q,集計!$A196,台帳!$D:$D,2)+SUMIFS(台帳!$X:$X,台帳!$Q:$Q,集計!$A196,台帳!$D:$D,3) -> 0 | K196: 減価償却費：管理-財務差額 | M196: 7700204 | N196: NS-0293 | O196: =SUMIFS(台帳!$X:$X,台帳!$Q:$Q,集計!$A196,台帳!$D:$D,0) -> 0
A197: NS/0294 | C197: 7700205 | D197: NS-0294 | E197: =SUMIFS(台帳!$X:$X,台帳!$Q:$Q,集計!$A197,台帳!$D:$D,1) -> 0 | F197: 減価償却費：管理-財務差額 | H197: 7700417 | I197: NS-0294 | J197: =SUMIFS(台帳!$X:$X,台帳!$Q:$Q,集計!$A197,台帳!$D:$D,2)+SUMIFS(台帳!$X:$X,台帳!$Q:$Q,集計!$A197,台帳!$D:$D,3) -> 0 | K197: 減価償却費：管理-財務差額 | M197: 7700204 | N197: NS-0294 | O197: =SUMIFS(台帳!$X:$X,台帳!$Q:$Q,集計!$A197,台帳!$D:$D,0) -> 0
A198: NS/0295 | C198: 7700205 | D198: NS-0295 | E198: =SUMIFS(台帳!$X:$X,台帳!$Q:$Q,集計!$A198,台帳!$D:$D,1) -> 0 | F198: 減価償却費：管理-財務差額 | H198: 7700417 | I198: NS-0295 | J198: =SUMIFS(台帳!$X:$X,台帳!$Q:$Q,集計!$A198,台帳!$D:$D,2)+SUMIFS(台帳!$X:$X,台帳!$Q:$Q,集計!$A198,台帳!$D:$D,3) -> 0 | K198: 減価償却費：管理-財務差額 | M198: 7700204 | N198: NS-0295 | O198: =SUMIFS(台帳!$X:$X,台帳!$Q:$Q,集計!$A198,台帳!$D:$D,0) -> 0
A199: NS/0296 | C199: 7700205 | D199: NS-0296 | E199: =SUMIFS(台帳!$X:$X,台帳!$Q:$Q,集計!$A199,台帳!$D:$D,1) -> 0 | F199: 減価償却費：管理-財務差額 | H199: 7700417 | I199: NS-0296 | J199: =SUMIFS(台帳!$X:$X,台帳!$Q:$Q,集計!$A199,台帳!$D:$D,2)+SUMIFS(台帳!$X:$X,台帳!$Q:$Q,集計!$A199,台帳!$D:$D,3) -> 0 | K199: 減価償却費：管理-財務差額 | M199: 7700204 | N199: NS-0296 | O199: =SUMIFS(台帳!$X:$X,台帳!$Q:$Q,集計!$A199,台帳!$D:$D,0) -> 0
A200: NS/0297 | C200: 7700205 | D200: NS-0297 | E200: =SUMIFS(台帳!$X:$X,台帳!$Q:$Q,集計!$A200,台帳!$D:$D,1) -> 0 | F200: 減価償却費：管理-財務差額 | H200: 7700417 | I200: NS-0297 | J200: =SUMIFS(台帳!$X:$X,台帳!$Q:$Q,集計!$A200,台帳!$D:$D,2)+SUMIFS(台帳!$X:$X,台帳!$Q:$Q,集計!$A200,台帳!$D:$D,3) -> 0 | K200: 減価償却費：管理-財務差額 | M200: 7700204 | N200: NS-0297 | O200: =SUMIFS(台帳!$X:$X,台帳!$Q:$Q,集計!$A200,台帳!$D:$D,0) -> 0
... 703 more rows

Sheet 台帳
A1: FI-CO調整明細
A2: 資産番号 | B2: 資産名称 | C2: 種類 | D2: 償却費目 | E2: 償却費目 | F2: 償却方法 | G2: 耐用年数 | H2: 償却月数(管理帳簿) | I2: 償却開始年月日 | J2: 償却方法(財務帳簿) | K2: 耐用年数(財務帳簿) | L2: 償却月数(財務帳簿) | M2: 償却開始年月日(財務帳簿) | N2: 当期償却額(管理) | O2: 当期償却(財務) | P2: 部門 | Q2: 部課ｺｰﾄﾞ | R2: 部課名称 | S2: 稟議番号 | T2: 削除A | U2: 削除B | V2: 削除 | W2: 削除 | X2: CO調整額
A3: J00001001 | B3: 本牧冷蔵倉庫 球根保管施設(防熱建具設備) | C3: 建物 | D3: 3 | E3: 一般管理費 | F3: 定額法 | G3: 21 | I3: 20101201 | J3: 定額法 | K3: 21 | M3: 20101201 | N3: 58867 | O3: 58867 | P3: 10 | Q3: NS/0100 | R3: 本社 本社 | T3: 176600 | U3: 117733 | V3: 117733 | W3: 176600 | X3: =N3-O3 -> 0
A4: J00007001 | B4: アスベスト(南港西) | C4: 建物 | D4: 3 | E4: 一般管理費 | F4: 定額法 | G4: 26 | I4: 19820401 | J4: 定額法 | K4: 26 | M4: 19820401 | N4: 0 | O4: 0 | P4: 10 | Q4: NS/0100 | R4: 本社 本社 | T4: 0 | U4: 0 | V4: 0 | W4: 0 | X4: 0
A5: J00007002 | B5: アスベスト(南港西) | C5: 建物 | D5: 3 | E5: 一般管理費 | F5: 定額法 | G5: 26 | I5: 19820401 | J5: 定額法 | K5: 26 | M5: 19820401 | N5: 0 | O5: 0 | P5: 10 | Q5: NS/0100 | R5: 本社 本社 | S5: 2021-230 | T5: 0 | W5: 0 | X5: 0
A6: J00003001 | B6: パーテーション（TKビル） | C6: 建物附属設備 | D6: 3 | E6: 一般管理費 | F6: 定額法 | G6: 4 | I6: 20060401 | J6: 定額法 | K6: 4 | M6: 20060401 | N6: 0 | O6: 0 | P6: 10 | Q6: NS/0100 | R6: 本社 本社 | T6: 0 | W6: 0 | X6: 0
A7: J00011001 | B7: 半蔵門駅前ビル 原状回復費用2203 | C7: 建物附属設備 | D7: 3 | E7: 一般管理費 | F7: 定額法 | G7: 10 | I7: 20220201 | J7: 定額法 | K7: 10 | M7: 20220201 | N7: 1479061 | O7: 1479061 | P7: 10 | Q7: NS/0100 | R7: 本社 本社 | S7: 2021-経21 | T7: 4437183 | U7: 2958122 | V7: 2958122 | W7: 4437183 | X7: 0
A8: J00002001 | B8: 本牧冷蔵倉庫 球根保管施設(監視システム、冷却） | C8: 機械及び装置 | D8: 3 | E8: 一般管理費 | F8: 定額法 | G8: 12 | I8: 20101201 | J8: 定額法 | K8: 12 | M8: 20101201 | N8: 0 | O8: 0 | P8: 10 | Q8: NS/0100 | R8: 本社 本社 | T8: 0 | U8: 0 | V8: 0 | W8: 0 | X8: 0
A9: 305001 | B9: 永新ビル8階前室内装 | C9: 建物 | D9: 3 | E9: 一般管理費 | F9: 旧定額法 | G9: 8 | I9: 19811201 | J9: 旧定額法 | K9: 8 | M9: 19811201 | N9: 0 | O9: 0 | P9: 10 | Q9: NS/0101 | R9: 本社 役員 | S9: 2021-経21 | T9: 0 | W9: 0 | X9: 0
A10: 292001 | B10: 永新ビル8階応接室照明4器 | C10: 建物附属設備 | D10: 3 | E10: 一般管理費 | F10: 旧定額法 | G10: 15 | I10: 19811001 | J10: 旧定額法 | K10: 15 | M10: 19811001 | N10: 0 | O10: 0 | P10: 10 | Q10: NS/0101 | R10: 本社 役員 | S10: 2021-経21 | T10: 0 | W10: 0 | X10: 0
A11: 293001 | B11: 永新ビル役員表示板 | C11: 建物附属設備 | D11: 3 | E11: 一般管理費 | F11: 旧定額法 | G11: 15 | I11: 19811001 | J11: 旧定額法 | K11: 15 | M11: 19811001 | N11: 0 | O11: 0 | P11: 10 | Q11: NS/0101 | R11: 本社 役員 | S11: 2021-経21 | T11: 0 | W11: 0 | X11: 0
A12: 307001 | B12: 永新ビル8階入口自動ドア取付工事 | C12: 建物附属設備 | D12: 3 | E12: 一般管理費 | F12: 旧定額法 | G12: 12 | I12: 19811201 | J12: 旧定額法 | K12: 12 | M12: 19811201 | N12: 0 | O12: 0 | P12: 10 | Q12: NS/0101 | R12: 本社 役員 | S12: 2021-経21 | T12: 0 | W12: 0 | X12: 0
A13: 986001 | B13: 永新ビル6階 監査役員室間仕切り | C13: 建物附属設備 | D13: 3 | E13: 一般管理費 | F13: 旧定額法 | G13: 15 | I13: 19940801 | J13: 旧定額法 | K13: 15 | M13: 19940801 | N13: 0 | O13: 0 | P13: 10 | Q13: NS/0101 | R13: 本社 役員 | S13: 2021-経21 | T13: 0 | W13: 0 | X13: 0
A14: 6053001 | B14: 横浜本店 パーテーション（峯常務室） | C14: 建物附属設備 | D14: 3 | E14: 一般管理費 | F14: 定額法 | G14: 15 | I14: 20220630 | J14: 定額法 | K14: 15 | M14: 20220630 | N14: 5455 | O14: 5455 | P14: 10 | Q14: NS/0101 | R14: 本社 役員 | S14: 2022-26 | T14: 16365 | U14: 10910 | V14: 10910 | W14: 16365 | X14: 0
A15: 3763001 | B15: トヨタレクサスLS500(横浜352ふ1214) | C15: 車両及び運搬具 | D15: 3 | E15: 一般管理費 | F15: 定額法 | G15: 2 | I15: 20180630 | J15: 定額法 | K15: 2 | M15: 20180630 | N15: 0 | O15: 0 | P15: 10 | Q15: NS/0101 | R15: 本社 役員 | S15: 2022-160 | T15: 0 | W15: 0 | X15: 0
A16: 4586001 | B16: トヨタレクサスLS500（横浜323な1212） | C16: 車両及び運搬具 | D16: 3 | E16: 一般管理費 | F16: 定額法 | G16: 2 | I16: 20180228 | J16: 定額法 | K16: 2 | M16: 20180228 | N16: 100436 | O16: 100436 | P16: 10 | Q16: NS/0101 | R16: 本社 役員 | S16: 2017-118 | T16: 301309 | U16: 200873 | V16: 200873 | W16: 301309 | X16: 0
A17: 6290001 | B17: トヨタレクサスLS500h EXECUTIVE（品川351ふ1214） | C17: 車両及び運搬具 | D17: 3 | E17: 一般管理費 | F17: 定額法 | G17: 6 | I17: 20230331 | J17: 定額法 | K17: 6 | M17: 20230331 | N17: 223366 | O17: 223366 | P17: 10 | Q17: NS/0101 | R17: 本社 役員 | S17: 2022-160 | T17: 670097 | U17: 446731 | V17: 446731 | W17: 670097 | X17: 0
A18: 89001 | B18: 絵画 | C18: 工具・器具・備品 | D18: 3 | E18: 一般管理費 | F18: 定額法 | G18: 2 | I18: 20150430 | J18: 定額法 | K18: 2 | M18: 20150430 | N18: 985 | O18: 985 | P18: 10 | Q18: NS/0101 | R18: 本社 役員 | T18: 2954 | U18: 1969 | V18: 1969 | W18: 2954 | X18: 0
A19: 129001 | B19: 絵画 | C19: 工具・器具・備品 | D19: 3 | E19: 一般管理費 | F19: 非償却 | G19: 0 | I19: 19720901 | J19: 非償却 | K19: 0 | M19: 19720901 | N19: 0 | O19: 0 | P19: 10 | Q19: NS/0101 | R19: 本社 役員 | T19: 0 | U19: 0 | V19: 0 | W19: 0 | X19: 0
A20: 133001 | B20: 絵画 | C20: 工具・器具・備品 | D20: 3 | E20: 一般管理費 | F20: 定額法 | G20: 2 | I20: 20150430 | J20: 定額法 | K20: 2 | M20: 20150430 | N20: 716 | O20: 716 | P20: 10 | Q20: NS/0101 | R20: 本社 役員 | T20: 2147 | U20: 1431 | V20: 1431 | W20: 2147 | X20: 0
A21: 134001 | B21: 絵画（荻須高徳／ゴンドラ） | C21: 工具・器具・備品 | D21: 3 | E21: 一般管理費 | F21: 定額法 | G21: 2 | I21: 20150430 | J21: 定額法 | K21: 2 | M21: 20150430 | N21: 230 | O21: 230 | P21: 10 | Q21: NS/0101 | R21: 本社 役員 | T21: 689 | U21: 459 | V21: 459 | W21: 689 | X21: 0
A22: 135001 | B22: リトグラフ（カルズギリシャノオモイデﾞ） | C22: 工具・器具・備品 | D22: 3 | E22: 一般管理費 | F22: 定額法 | G22: 2 | I22: 20150430 | J22: 定額法 | K22: 2 | M22: 20150430 | N22: 214 | O22: 214 | P22: 10 | Q22: NS/0101 | R22: 本社 役員 | T22: 640 | U22: 426 | V22: 426 | W22: 640 | X22: 0
A23: 136001 | B23: 絵画（イチカワツトムベニス） | C23: 工具・器具・備品 | D23: 3 | E23: 一般管理費 | F23: 定額法 | G23: 2 | I23: 20150430 | J23: 定額法 | K23: 2 | M23: 20150430 | N23: 935 | O23: 935 | P23: 10 | Q23: NS/0101 | R23: 本社 役員 | T23: 2806 | U23: 1871 | V23: 1871 | W23: 2806 | X23: 0
A24: 137001 | B24: 絵画（イチカワツトムシシリー） | C24: 工具・器具・備品 | D24: 3 | E24: 一般管理費 | F24: 定額法 | G24: 2 | I24: 20150430 | J24: 定額法 | K24: 2 | M24: 20150430 | N24: 748 | O24: 748 | P24: 10 | Q24: NS/0101 | R24: 本社 役員 | T24: 2245 | U24: 1497 | V24: 1497 | W24: 2245 | X24: 0
A25: 162001 | B25: 絵画（ギリシャの家） | C25: 工具・器具・備品 | D25: 3 | E25: 一般管理費 | F25: 定額法 | G25: 2 | I25: 20150430 | J25: 定額法 | K25: 2 | M25: 20150430 | N25: 1313 | O25: 1313 | P25: 10 | Q25: NS/0101 | R25: 本社 役員 | T25: 3939 | U25: 2626 | V25: 2626 | W25: 3939 | X25: 0
A26: 165001 | B26: 絵画 | C26: 工具・器具・備品 | D26: 3 | E26: 一般管理費 | F26: 定額法 | G26: 2 | I26: 20150430 | J26: 定額法 | K26: 2 | M26: 20150430 | N26: 919 | O26: 919 | P26: 10 | Q26: NS/0101 | R26: 本社 役員 | T26: 2757 | U26: 1838 | V26: 1838 | W26: 2757 | X26: 0
A27: 181001 | B27: 絵画（木澤定一） | C27: 工具・器具・備品 | D27: 3 | E27: 一般管理費 | F27: 定額法 | G27: 2 | I27: 20150430 | J27: 定額法 | K27: 2 | M27: 20150430 | N27: 1970 | O27: 1970 | P27: 10 | Q27: NS/0101 | R27: 本社 役員 | T27: 5909 | U27: 3939 | V27: 3939 | W27: 5909 | X27: 0
A28: 185001 | B28: 絵画 | C28: 工具・器具・備品 | D28: 3 | E28: 一般管理費 | F28: 定額法 | G28: 2 | I28: 20150430 | J28: 定額法 | K28: 2 | M28: 20150430 | N28: 1642 | O28: 1642 | P28: 10 | Q28: NS/0101 | R28: 本社 役員 | T28: 4924 | U28: 3282 | V28: 3282 | W28: 4924 | X28: 0
A29: 186001 | B29: 絵画（ばら） | C29: 工具・器具・備品 | D29: 3 | E29: 一般管理費 | F29: 定額法 | G29: 2 | I29: 20150430 | J29: 定額法 | K29: 2 | M29: 20150430 | N29: 1642 | O29: 1642 | P29: 10 | Q29: NS/0101 | R29: 本社 役員 | T29: 4924 | U29: 3282 | V29: 3282 | W29: 4924 | X29: 0
A30: 191001 | B30: 絵画（ラマンチャ風景） | C30: 工具・器具・備品 | D30: 3 | E30: 一般管理費 | F30: 定額法 | G30: 2 | I30: 20150430 | J30: 定額法 | K30: 2 | M30: 20150430 | N30: 2298 | O30: 2298 | P30: 10 | Q30: NS/0101 | R30: 本社 役員 | T30: 6893 | U30: 4595 | V30: 4595 | W30: 6893 | X30: 0
A31: 201001 | B31: 横浜本社6階常務 応接テーブル | C31: 工具・器具・備品 | D31: 3 | E31: 一般管理費 | F31: 旧定率法 | G31: 8 | I31: 19780901 | J31: 旧定率法 | K31: 8 | M31: 19780901 | N31: 0 | O31: 0 | P31: 10 | Q31: NS/0101 | R31: 本社 役員 | T31: 0 | W31: 0 | X31: 0
A32: 216001 | B32: 本社常務用机 | C32: 工具・器具・備品 | D32: 3 | E32: 一般管理費 | F32: 旧定率法 | G32: 8 | I32: 19790901 | J32: 旧定率法 | K32: 8 | M32: 19790901 | N32: 0 | O32: 0 | P32: 10 | Q32: NS/0101 | R32: 本社 役員 | T32: 0 | W32: 0 | X32: 0
A33: 217001 | B33: 横浜本社6階常務 応接用ソファー | C33: 工具・器具・備品 | D33: 3 | E33: 一般管理費 | F33: 旧定率法 | G33: 8 | I33: 19790901 | J33: 旧定率法 | K33: 8 | M33: 19790901 | N33: 0 | O33: 0 | P33: 10 | Q33: NS/0101 | R33: 本社 役員 | T33: 0 | W33: 0 | X33: 0
A34: 220001 | B34: 横浜本店8階 経営会議用テーブル・椅子 | C34: 工具・器具・備品 | D34: 3 | E34: 一般管理費 | F34: 旧定額法 | G34: 8 | I34: 19791201 | J34: 旧定額法 | K34: 8 | M34: 19791201 | N34: 0 | O34: 0 | P34: 10 | Q34: NS/0101 | R34: 本社 役員 | T34: 0 | U34: 0 | V34: 0 | W34: 0 | X34: 0
A35: 221001 | B35: 横浜本店6階役員車乗務員用 ソファー | C35: 工具・器具・備品 | D35: 3 | E35: 一般管理費 | F35: 旧定額法 | G35: 8 | I35: 19800101 | J35: 旧定額法 | K35: 8 | M35: 19800101 | N35: 0 | O35: 0 | P35: 10 | Q35: NS/0101 | R35: 本社 役員 | T35: 0 | U35: 0 | V35: 0 | W35: 0 | X35: 0
A36: 273001 | B36: 壁掛け（梅木絹刺繍） | C36: 工具・器具・備品 | D36: 3 | E36: 一般管理費 | F36: 定額法 | G36: 2 | I36: 20150430 | J36: 定額法 | K36: 2 | M36: 20150430 | N36: 2022 | O36: 2022 | P36: 10 | Q36: NS/0101 | R36: 本社 役員 | T36: 6066 | U36: 4044 | V36: 4044 | W36: 6066 | X36: 0
A37: 274001 | B37: 掛け軸（花鳥） | C37: 工具・器具・備品 | D37: 3 | E37: 一般管理費 | F37: 定額法 | G37: 2 | I37: 20150430 | J37: 定額法 | K37: 2 | M37: 20150430 | N37: 591 | O37: 591 | P37: 10 | Q37: NS/0101 | R37: 本社 役員 | T37: 1772 | U37: 1181 | V37: 1181 | W37: 1772 | X37: 0
A38: 285001 | B38: 絵画（酒井俊幸／ヴェニス朝明） | C38: 工具・器具・備品 | D38: 3 | E38: 一般管理費 | F38: 定額法 | G38: 2 | I38: 20150430 | J38: 定額法 | K38: 2 | M38: 20150430 | N38: 443 | O38: 443 | P38: 10 | Q38: NS/0101 | R38: 本社 役員 | T38: 1329 | U38: 886 | V38: 886 | W38: 1329 | X38: 0
A39: 309001 | B39: 東京本社9階筒井専務室 応接セット | C39: 工具・器具・備品 | D39: 3 | E39: 一般管理費 | F39: 旧定額法 | G39: 8 | I39: 19811201 | J39: 旧定額法 | K39: 8 | M39: 19811201 | N39: 0 | O39: 0 | P39: 10 | Q39: NS/0101 | R39: 本社 役員 | T39: 0 | U39: 0 | V39: 0 | W39: 0 | X39: 0
A40: 312001 | B40: 永新ビル801号室サイドボード他 | C40: 工具・器具・備品 | D40: 3 | E40: 一般管理費 | F40: 旧定額法 | G40: 8 | I40: 19820101 | J40: 旧定額法 | K40: 8 | M40: 19820101 | N40: 0 | O40: 0 | P40: 10 | Q40: NS/0101 | R40: 本社 役員 | S40: 2021-経21 | T40: 0 | W40: 0 | X40: 0
A41: 323001 | B41: 永新ビル8階ロビー丸テーブル・チェアー | C41: 工具・器具・備品 | D41: 3 | E41: 一般管理費 | F41: 旧定額法 | G41: 8 | I41: 19820201 | J41: 旧定額法 | K41: 8 | M41: 19820201 | N41: 0 | O41: 0 | P41: 10 | Q41: NS/0101 | R41: 本社 役員 | S41: 2021-経21 | T41: 0 | W41: 0 | X41: 0
A42: 326001 | B42: 永新ビル502号室応接セット | C42: 工具・器具・備品 | D42: 3 | E42: 一般管理費 | F42: 旧定額法 | G42: 8 | I42: 19820201 | J42: 旧定額法 | K42: 8 | M42: 19820201 | N42: 0 | O42: 0 | P42: 10 | Q42: NS/0101 | R42: 本社 役員 | S42: 2021-経21 | T42: 0 | W42: 0 | X42: 0
A43: 349001 | B43: 永新ビル302号室応接セット | C43: 工具・器具・備品 | D43: 3 | E43: 一般管理費 | F43: 旧定額法 | G43: 8 | I43: 19820301 | J43: 旧定額法 | K43: 8 | M43: 19820301 | N43: 0 | O43: 0 | P43: 10 | Q43: NS/0101 | R43: 本社 役員 | S43: 2021-経21 | T43: 0 | W43: 0 | X43: 0
A44: 654001 | B44: 絵画（イシイ8号50Y） | C44: 工具・器具・備品 | D44: 3 | E44: 一般管理費 | F44: 定額法 | G44: 2 | I44: 20150430 | J44: 定額法 | K44: 2 | M44: 20150430 | N44: 1576 | O44: 1576 | P44: 10 | Q44: NS/0101 | R44: 本社 役員 | T44: 4727 | U44: 3151 | V44: 3151 | W44: 4727 | X44: 0
A45: 655001 | B45: 絵画（ハラ8号50Y） | C45: 工具・器具・備品 | D45: 3 | E45: 一般管理費 | F45: 定額法 | G45: 2 | I45: 20150430 | J45: 定額法 | K45: 2 | M45: 20150430 | N45: 2889 | O45: 2889 | P45: 10 | Q45: NS/0101 | R45: 本社 役員 | T45: 8666 | U45: 5777 | V45: 5777 | W45: 8666 | X45: 0
A46: 656001 | B46: 東京本社VIP応接室 日本丸模型50Y | C46: 工具・器具・備品 | D46: 3 | E46: 一般管理費 | F46: 旧定額法 | G46: 2 | I46: 19900401 | J46: 旧定額法 | K46: 2 | M46: 19900401 | N46: 0 | O46: 0 | P46: 10 | Q46: NS/0101 | R46: 本社 役員 | T46: 0 | U46: 0 | V46: 0 | W46: 0 | X46: 0
A47: 2245001 | B47: 永新ビル8階（ロビー、通路、ELVホール）床カーペット | C47: 工具・器具・備品 | D47: 3 | E47: 一般管理費 | F47: 定額法 | G47: 6 | I47: 20080620 | J47: 定額法 | K47: 6 | M47: 20080620 | N47: 0 | O47: 0 | P47: 10 | Q47: NS/0101 | R47: 本社 役員 | S47: 2021-経21 | T47: 0 | W47: 0 | X47: 0
A48: 2270001 | B48: 永新ビル803号室（渡邊専務） 床カーペット | C48: 工具・器具・備品 | D48: 3 | E48: 一般管理費 | F48: 定額法 | G48: 6 | I48: 20080811 | J48: 定額法 | K48: 6 | M48: 20080811 | N48: 0 | O48: 0 | P48: 10 | Q48: NS/0101 | R48: 本社 役員 | S48: 2021-経21 | T48: 0 | W48: 0 | X48: 0
A49: 2353001 | B49: 永新ビル801号室 床カーペット | C49: 工具・器具・備品 | D49: 3 | E49: 一般管理費 | F49: 定額法 | G49: 6 | I49: 20081107 | J49: 定額法 | K49: 6 | M49: 20081107 | N49: 0 | O49: 0 | P49: 10 | Q49: NS/0101 | R49: 本社 役員 | S49: 2021-経21 | T49: 0 | W49: 0 | X49: 0
A50: 2354001 | B50: 永新ビル801号室 ブラインド・カーテン交換 | C50: 工具・器具・備品 | D50: 3 | E50: 一般管理費 | F50: 定額法 | G50: 3 | I50: 20081107 | J50: 定額法 | K50: 3 | M50: 20081107 | N50: 0 | O50: 0 | P50: 10 | Q50: NS/0101 | R50: 本社 役員 | S50: 2021-経21 | T50: 0 | W50: 0 | X50: 0
A51: 2556001 | B51: 永新ビル808号室 床カーペット | C51: 工具・器具・備品 | D51: 3 | E51: 一般管理費 | F51: 定額法 | G51: 6 | I51: 20090803 | J51: 定額法 | K51: 6 | M51: 20090803 | N51: 0 | O51: 0 | P51: 10 | Q51: NS/0101 | R51: 本社 役員 | S51: 2021-経21 | T51: 0 | W51: 0 | X51: 0
A52: 2557001 | B52: 永新ビル807号室（石山常務） 床カーペット | C52: 工具・器具・備品 | D52: 3 | E52: 一般管理費 | F52: 定額法 | G52: 6 | I52: 20090803 | J52: 定額法 | K52: 6 | M52: 20090803 | N52: 0 | O52: 0 | P52: 10 | Q52: NS/0101 | R52: 本社 役員 | S52: 2021-経21 | T52: 0 | W52: 0 | X52: 0
A53: 3101001 | B53: 東京本社612応接室 応接セット | C53: 工具・器具・備品 | D53: 3 | E53: 一般管理費 | F53: 定額法 | G53: 8 | I53: 20121130 | J53: 定額法 | K53: 8 | M53: 20121130 | N53: 0 | O53: 0 | P53: 10 | Q53: NS/0101 | R53: 本社 役員 | S53: 2012-総057 | T53: 0 | U53: 0 | V53: 0 | W53: 0 | X53: 0
A54: 3346001 | B54: 横浜本店役員控え室テ－ブル・いす | C54: 工具・器具・備品 | D54: 3 | E54: 一般管理費 | F54: 定額法 | G54: 8 | I54: 20140630 | J54: 定額法 | K54: 8 | M54: 20140630 | N54: 0 | O54: 0 | P54: 10 | Q54: NS/0101 | R54: 本社 役員 | S54: 2014-総022 | T54: 0 | U54: 0 | V54: 0 | W54: 0 | X54: 0
A55: 3347001 | B55: 本社ビル(横浜)移転に伴う追加工事(会長室カーテン工事) | C55: 工具・器具・備品 | D55: 3 | E55: 一般管理費 | F55: 定額法 | G55: 3 | I55: 20140630 | J55: 定額法 | K55: 3 | M55: 20140630 | N55: 0 | O55: 0 | P55: 10 | Q55: NS/0101 | R55: 本社 役員 | S55: 2014-043 | T55: 0 | U55: 0 | V55: 0 | W55: 0 | X55: 0
A56: 3348001 | B56: 本社ビル(横浜)移転に伴う追加工事(会長室カーペット) | C56: 工具・器具・備品 | D56: 3 | E56: 一般管理費 | F56: 定額法 | G56: 6 | I56: 20140630 | J56: 定額法 | K56: 6 | M56: 20140630 | N56: 0 | O56: 0 | P56: 10 | Q56: NS/0101 | R56: 本社 役員 | S56: 2014-043 | T56: 0 | U56: 0 | V56: 0 | W56: 0 | X56: 0
A57: 3349001 | B57: 本社ビル(横浜)移転に伴う追加工事(応接室カーペット) | C57: 工具・器具・備品 | D57: 3 | E57: 一般管理費 | F57: 定額法 | G57: 6 | I57: 20140630 | J57: 定額法 | K57: 6 | M57: 20140630 | N57: 0 | O57: 0 | P57: 10 | Q57: NS/0101 | R57: 本社 役員 | S57: 2014-043 | T57: 0 | U57: 0 | V57: 0 | W57: 0 | X57: 0
A58: 3546001 | B58: 東京本社9階社長室 会議テーブル | C58: 工具・器具・備品 | D58: 3 | E58: 一般管理費 | F58: 定額法 | G58: 2 | I58: 20150930 | J58: 定額法 | K58: 2 | M58: 20150930 | N58: 1122 | O58: 1122 | P58: 10 | Q58: NS/0101 | R58: 本社 役員 | S58: 2015-052 | T58: 3365 | U58: 2243 | V58: 2243 | W58: 3365 | X58: 0
A59: 3910001 | B59: 永新ビル802号室 空調機代替（DAIKIN) | C59: 工具・器具・備品 | D59: 3 | E59: 一般管理費 | F59: 定額法 | G59: 2 | I59: 20180831 | J59: 定額法 | K59: 2 | M59: 20180831 | N59: 0 | O59: 0 | P59: 10 | Q59: NS/0101 | R59: 本社 役員 | S59: 2021-経21 | T59: 0 | W59: 0 | X59: 0
A60: 3921001 | B60: 東京本社9階旧石山常務室 会議テーブル | C60: 工具・器具・備品 | D60: 3 | E60: 一般管理費 | F60: 定額法 | G60: 4 | I60: 20180831 | J60: 定額法 | K60: 4 | M60: 20180831 | N60: 2259 | O60: 2259 | P60: 10 | Q60: NS/0101 | R60: 本社 役員 | S60: 2018-61 | T60: 6778 | U60: 4519 | V60: 4519 | W60: 6778 | X60: 0
A61: 3970001 | B61: 東京本社9階渡邊専務室 会議テーブル | C61: 工具・器具・備品 | D61: 3 | E61: 一般管理費 | F61: 定額法 | G61: 4 | I61: 20181031 | J61: 定額法 | K61: 4 | M61: 20181031 | N61: 2380 | O61: 2380 | P61: 10 | Q61: NS/0101 | R61: 本社 役員 | S61: 2018-総072 | T61: 7138 | U61: 4758 | V61: 4758 | W61: 7138 | X61: 0
A62: 4509001 | B62: 永新ビル803号室（渡邊専務）空調機代替（DAIKIN S50RCV） | C62: 工具・器具・備品 | D62: 3 | E62: 一般管理費 | F62: 定額法 | G62: 2 | I62: 20170831 | J62: 定額法 | K62: 2 | M62: 20170831 | N62: 0 | O62: 0 | P62: 10 | Q62: NS/0101 | R62: 本社 役員 | S62: 2021-経21 | T62: 0 | W62: 0 | X62: 0
A63: 4696001 | B63: 永新ビル801号室（社長室）空調機代替（DAIKIN S56WTEV-W） | C63: 工具・器具・備品 | D63: 3 | E63: 一般管理費 | F63: 定額法 | G63: 3 | I63: 20190430 | J63: 定額法 | K63: 3 | M63: 20190430 | N63: 0 | O63: 0 | P63: 10 | Q63: NS/0101 | R63: 本社 役員 | S63: 2021-経21 | T63: 0 | W63: 0 | X63: 0
A64: 5134001 | B64: 永新ビル806号室（筒井専務室）空調機新設（DAIKIN F56XTRXV-W） | C64: 工具・器具・備品 | D64: 3 | E64: 一般管理費 | F64: 定額法 | G64: 4 | I64: 20200731 | J64: 定額法 | K64: 4 | M64: 20200731 | N64: 0 | O64: 0 | P64: 10 | Q64: NS/0101 | R64: 本社 役員 | S64: 2021-経21 | T64: 0 | W64: 0 | X64: 0
A65: 4710001 | B65: ホンダオデッセイ(横浜304ゆ9660) | C65: 車両及び運搬具(リース) | D65: 3 | E65: 一般管理費 | F65: 月割償却 | H65: 60 | I65: 20190513 | J65: 月割償却 | L65: 60 | M65: 20190513 | N65: 52400 | O65: 52400 | P65: 10 | Q65: NS/0101 | R65: 本社 役員 | T65: 157200 | U65: 104800 | V65: 104800 | W65: 157200 | X65: 0
A66: 4711001 | B66: ホンダレジェンド(横浜304ゆ9661) | C66: 車両及び運搬具(リース) | D66: 3 | E66: 一般管理費 | F66: 月割償却 | H66: 60 | I66: 20190513 | J66: 月割償却 | L66: 60 | M66: 20190513 | N66: 107800 | O66: 107800 | P66: 10 | Q66: NS/0101 | R66: 本社 役員 | T66: 323400 | U66: 215600 | V66: 215600 | W66: 323400 | X66: =N66-O66 -> 0
A67: 4589001 | B67: カラー複合機 ｂｉｚｈｕｂ | C67: 工具・器具・備品(リース) | D67: 3 | E67: 一般管理費 | F67: 月割償却 | H67: 12 | I67: 20171125 | J67: 月割償却 | L67: 12 | M67: 20171125 | N67: 0 | O67: 0 | P67: 10 | Q67: NS/0101 | R67: 本社 役員 | T67: 0 | U67: 0 | V67: 0 | W67: 0 | X67: 0
A68: 4894001 | B68: カラー複合機(bizhub C558) | C68: 工具・器具・備品(リース) | D68: 3 | E68: 一般管理費 | F68: 月割償却 | H68: 60 | I68: 20191129 | J68: 月割償却 | L68: 60 | M68: 20191129 | N68: 0 | O68: 0 | P68: 10 | Q68: NS/0101 | R68: 本社 役員 | T68: 0 | U68: 0 | V68: 0 | W68: 0 | X68: 0
A69: I00437001 | B69: 筒井専務什器購入 8Fソファ | C69: 工具・器具・備品(一括償却資産) | D69: 3 | E69: 一般管理費 | F69: 即時償却 | G69: 1 | I69: 20201031 | J69: 即時償却 | K69: 1 | M69: 20201031 | N69: 0 | O69: 0 | P69: 10 | Q69: NS/0101 | R69: 本社 役員 | T69: 0 | U69: 0 | V69: 0 | W69: 0 | X69: 0
A70: I00504001 | B70: 筒井専務室 オフィスチェア | C70: 工具・器具・備品(一括償却資産) | D70: 3 | E70: 一般管理費 | F70: 即時償却 | G70: 1 | I70: 20220131 | J70: 即時償却 | K70: 1 | M70: 20220131 | N70: 0 | O70: 0 | P70: 10 | Q70: NS/0101 | R70: 本社 役員 | S70: 2021-総149 | T70: 0 | U70: 0 | V70: 0 | W70: 0 | X70: 0
A71: I00550001 | B71: 峯常務室 煙感知器設置 | C71: 工具・器具・備品(一括償却資産) | D71: 3 | E71: 一般管理費 | F71: 即時償却 | G71: 1 | I71: 20220630 | J71: 即時償却 | K71: 1 | M71: 20220630 | N71: 0 | O71: 0 | P71: 10 | Q71: NS/0101 | R71: 本社 役員 | S71: 2022-26 | T71: 0 | U71: 0 | V71: 0 | W71: 0 | X71: 0
A72: 5663001 | B72: 横浜市平安町 鉄筋コンクリート造二階建事務所 | C72: 建物 | D72: 3 | E72: 一般管理費 | F72: 定額法 | G72: 10 | I72: 20210630 | J72: 定額法 | K72: 10 | M72: 20210630 | N72: 25022 | O72: 25022 | P72: 10 | Q72: NS/0109 | R72: 本社 全社・経費 | S72: 2020-取070 | T72: 75066 | U72: 50044 | V72: 50044 | W72: 75066 | X72: =N72-O72 -> 0
A73: 5664001 | B73: 整備工場事務所仮設工事代 | C73: 建物 | D73: 3 | E73: 一般管理費 | F73: 定額法 | G73: 2 | I73: 20210630 | J73: 定額法 | K73: 2 | M73: 20210630 | N73: 0 | O73: 0 | P73: 10 | Q73: NS/0109 | R73: 本社 全社・経費 | S73: 2020-取070 | T73: 0 | U73: 0 | V73: 0 | W73: 0 | X73: 0
A74: 5669001 | B74: 横浜市平安町 整備工場鉄骨スレート葺平屋倉庫 | C74: 建物 | D74: 3 | E74: 一般管理費 | F74: 定額法 | G74: 6 | I74: 20210630 | J74: 定額法 | K74: 6 | M74: 20210630 | N74: 0 | O74: 0 | P74: 10 | Q74: NS/0109 | R74: 本社 全社・経費 | S74: 2020-取070 | T74: 0 | U74: 0 | V74: 0 | W74: 0 | X74: 0
A75: 5670001 | B75: 鉄骨スレート葺車庫倉庫 | C75: 建物 | D75: 3 | E75: 一般管理費 | F75: 定額法 | G75: 6 | I75: 20210630 | J75: 定額法 | K75: 6 | M75: 20210630 | N75: 5831 | O75: 5831 | P75: 10 | Q75: NS/0109 | R75: 本社 全社・経費 | S75: 2020-取070 | T75: 17493 | U75: 11662 | V75: 11662 | W75: 17493 | X75: 0
A76: 5671001 | B76: 有蓋車庫新設工事 | C76: 建物 | D76: 3 | E76: 一般管理費 | F76: 定額法 | G76: 6 | I76: 20210630 | J76: 定額法 | K76: 6 | M76: 20210630 | N76: 0 | O76: 0 | P76: 10 | Q76: NS/0109 | R76: 本社 全社・経費 | S76: 2020-取070 | T76: 0 | U76: 0 | V76: 0 | W76: 0 | X76: 0
A77: 5684001 | B77: 塩浜車庫建物 | C77: 建物 | D77: 3 | E77: 一般管理費 | F77: 定額法 | G77: 17 | I77: 20210630 | J77: 定額法 | K77: 17 | M77: 20210630 | N77: 0 | O77: 0 | P77: 10 | Q77: NS/0109 | R77: 本社 全社・経費 | S77: 2020-取070 | T77: 0 | U77: 0 | V77: 0 | W77: 0 | X77: 0
A78: 5686001 | B78: 塩浜車庫事務所新築工事 | C78: 建物 | D78: 3 | E78: 一般管理費 | F78: 定額法 | G78: 2 | I78: 20210630 | J78: 定額法 | K78: 2 | M78: 20210630 | N78: 0 | O78: 0 | P78: 10 | Q78: NS/0109 | R78: 本社 全社・経費 | S78: 2020-取070 | T78: 0 | U78: 0 | V78: 0 | W78: 0 | X78: 0
A79: 5721001 | B79: 固定資産税清算金（家屋対象分） 塩浜 | C79: 建物 | D79: 3 | E79: 一般管理費 | F79: 定額法 | G79: 17 | I79: 20210630 | J79: 定額法 | K79: 17 | M79: 20210630 | N79: 66 | O79: 66 | P79: 10 | Q79: NS/0109 | R79: 本社 全社・経費 | S79: 2020-取070 | T79: 198 | U79: 132 | V79: 132 | W79: 198 | X79: 0
A80: 5723001 | B80: 固定資産税清算金（家屋対象分） 平安町 | C80: 建物 | D80: 3 | E80: 一般管理費 | F80: 定額法 | G80: 6 | I80: 20210630 | J80: 定額法 | K80: 6 | M80: 20210630 | N80: 6798 | O80: 6798 | P80: 10 | Q80: NS/0109 | R80: 本社 全社・経費 | S80: 2020-取070 | T80: 20393 | U80: 13595 | V80: 13595 | W80: 20393 | X80: 0
A81: 4429001 | B81: 川崎臨港倉庫埠頭(株) 東扇島事務所 内装工事 | C81: 建物附属設備 | D81: 3 | E81: 一般管理費 | F81: 定額法 | G81: 15 | I81: 20170531 | J81: 定額法 | K81: 15 | M81: 20170531 | N81: 7817 | O81: 7817 | P81: 10 | Q81: NS/0109 | R81: 本社 全社・経費 | T81: 23450 | U81: 15633 | V81: 15633 | W81: 23450 | X81: 0
A82: 5665001 | B82: 労働組合員室室内工事 | C82: 建物附属設備 | D82: 3 | E82: 一般管理費 | F82: 定額法 | G82: 2 | I82: 20210630 | J82: 定額法 | K82: 2 | M82: 20210630 | N82: 1 | O82: 1 | P82: 10 | Q82: NS/0109 | R82: 本社 全社・経費 | S82: 2020-取070 | T82: 558 | U82: 557 | V82: 557 | W82: 558 | X82: 0
A83: 5666001 | B83: トイレ改修工事 | C83: 建物附属設備 | D83: 3 | E83: 一般管理費 | F83: 定額法 | G83: 3 | I83: 20210630 | J83: 定額法 | K83: 3 | M83: 20210630 | N83: 3615 | O83: 3615 | P83: 10 | Q83: NS/0109 | R83: 本社 全社・経費 | S83: 2020-取070 | T83: 10844 | U83: 7229 | V83: 7229 | W83: 10844 | X83: 0
A84: 5667001 | B84: 浴室・脱衣場改修工事 | C84: 建物附属設備 | D84: 3 | E84: 一般管理費 | F84: 定額法 | G84: 2 | I84: 20210630 | J84: 定額法 | K84: 2 | M84: 20210630 | N84: 0 | O84: 0 | P84: 10 | Q84: NS/0109 | R84: 本社 全社・経費 | S84: 2020-取070 | T84: 0 | U84: 0 | V84: 0 | W84: 0 | X84: 0
A85: 5668001 | B85: GHP空調機リニューアル工事 | C85: 建物附属設備 | D85: 3 | E85: 一般管理費 | F85: 定額法 | G85: 11 | I85: 20210630 | J85: 定額法 | K85: 11 | M85: 20210630 | N85: 5828 | O85: 5828 | P85: 10 | Q85: NS/0109 | R85: 本社 全社・経費 | S85: 2020-取070 | T85: 17482 | U85: 11654 | V85: 11654 | W85: 17482 | X85: 0
A86: 5672001 | B86: 整備工場シャッター取付工事 | C86: 建物附属設備 | D86: 3 | E86: 一般管理費 | F86: 定額法 | G86: 2 | I86: 20210630 | J86: 定額法 | K86: 2 | M86: 20210630 | N86: 0 | O86: 0 | P86: 10 | Q86: NS/0109 | R86: 本社 全社・経費 | S86: 2020-取070 | T86: 0 | U86: 0 | V86: 0 | W86: 0 | X86: 0
A87: 5687001 | B87: 塩浜車庫給排水設備工事 | C87: 建物附属設備 | D87: 3 | E87: 一般管理費 | F87: 定額法 | G87: 3 | I87: 20210630 | J87: 定額法 | K87: 3 | M87: 20210630 | N87: 0 | O87: 0 | P87: 10 | Q87: NS/0109 | R87: 本社 全社・経費 | S87: 2020-取070 | T87: 0 | U87: 0 | V87: 0 | W87: 0 | X87: 0
A88: 5953001 | B88: 半蔵門駅前ビル 建築内装工事 | C88: 建物附属設備 | D88: 3 | E88: 一般管理費 | F88: 定額法 | G88: 10 | I88: 20220228 | J88: 定額法 | K88: 10 | M88: 20220228 | N88: 1260257 | O88: 1260257 | P88: 10 | Q88: NS/0109 | R88: 本社 全社・経費 | S88: 2021-経21/056 | T88: 3780770 | U88: 2520513 | V88: 2520513 | W88: 3780770 | X88: 0
A89: 5954001 | B89: 半蔵門駅前ビル 電気設備工事 | C89: 建物附属設備 | D89: 3 | E89: 一般管理費 | F89: 定額法 | G89: 15 | I89: 20220228 | J89: 定額法 | K89: 15 | M89: 20220228 | N89: 398884 | O89: 398884 | P89: 10 | Q89: NS/0109 | R89: 本社 全社・経費 | S89: 2021-経021/056 | T89: 1196653 | U89: 797769 | V89: 797769 | W89: 1196653 | X89: 0
A90: 5955001 | B90: 半蔵門駅前ビル 空調設備工事 | C90: 建物附属設備 | D90: 3 | E90: 一般管理費 | F90: 定額法 | G90: 15 | I90: 20220228 | J90: 定額法 | K90: 15 | M90: 20220228 | N90: 138862 | O90: 138862 | P90: 10 | Q90: NS/0109 | R90: 本社 全社・経費 | S90: 2021-経21/056 | T90: 416584 | U90: 277722 | V90: 277722 | W90: 416584 | X90: 0
A91: 5956001 | B91: 半蔵門駅前ビル 防災・消火設備工事 | C91: 建物附属設備 | D91: 3 | E91: 一般管理費 | F91: 定額法 | G91: 8 | I91: 20220228 | J91: 定額法 | K91: 8 | M91: 20220228 | N91: 170171 | O91: 170171 | P91: 10 | Q91: NS/0109 | R91: 本社 全社・経費 | S91: 2021-経021/056 | T91: 510514 | U91: 340343 | V91: 340343 | W91: 510514 | X91: 0
A92: 6123001 | B92: 平安町 照明器具LED更新工事 | C92: 建物附属設備 | D92: 3 | E92: 一般管理費 | F92: 定額法 | G92: 15 | I92: 20220930 | J92: 定額法 | K92: 15 | M92: 20220930 | N92: 25635 | O92: 25635 | P92: 10 | Q92: NS/0109 | R92: 本社 全社・経費 | S92: 2021-185 | T92: 76906 | U92: 51271 | V92: 51271 | W92: 76906 | X92: 0
A93: 6333001 | B93: 横浜本店 間仕切り | C93: 建物附属設備 | D93: 3 | E93: 一般管理費 | F93: 定額法 | G93: 15 | I93: 20230430 | J93: 定額法 | K93: 15 | M93: 20230430 | N93: 8885 | O93: 8885 | P93: 10 | Q93: NS/0109 | R93: 本社 全社・経費 | S93: 2022-340 | T93: 26654 | U93: 17769 | V93: 17769 | W93: 26654 | X93: 0
A94: 1400001 | B94: 給油設備外溝土木工事 | C94: 構築物 | D94: 3 | E94: 一般管理費 | F94: 旧定額法 | G94: 15 | I94: 20001001 | J94: 旧定額法 | K94: 15 | M94: 20001001 | N94: 4804 | O94: 4804 | P94: 10 | Q94: NS/0109 | R94: 本社 全社・経費 | S94: 2000-119 | T94: 14412 | U94: 9608 | V94: 9608 | W94: 14412 | X94: 0
A95: 1401001 | B95: 本牧排水溝 | C95: 構築物 | D95: 3 | E95: 一般管理費 | F95: 旧定額法 | G95: 15 | I95: 20001001 | J95: 旧定額法 | K95: 15 | M95: 20001001 | N95: 4644 | O95: 4644 | P95: 10 | Q95: NS/0109 | R95: 本社 全社・経費 | S95: 2000-119 | T95: 13932 | U95: 9288 | V95: 9288 | W95: 13932 | X95: 0
A96: 1402001 | B96: 本牧事業所アスファルト舗装工事 | C96: 構築物 | D96: 3 | E96: 一般管理費 | F96: 旧定額法 | G96: 10 | I96: 20001001 | J96: 旧定額法 | K96: 10 | M96: 20001001 | N96: 0 | O96: 0 | P96: 10 | Q96: NS/0109 | R96: 本社 全社・経費 | S96: 2000-119 | T96: 0 | U96: 0 | V96: 0 | W96: 0 | X96: 0
A97: 1403001 | B97: 油配管設備 | C97: 構築物 | D97: 3 | E97: 一般管理費 | F97: 旧定額法 | G97: 15 | I97: 20001001 | J97: 旧定額法 | K97: 15 | M97: 20001001 | N97: 351 | O97: 351 | P97: 10 | Q97: NS/0109 | R97: 本社 全社・経費 | S97: 2000-119 | T97: 1054 | U97: 703 | V97: 703 | W97: 1054 | X97: 0
A98: 1404001 | B98: 自家給油設備地下タンク | C98: 構築物 | D98: 3 | E98: 一般管理費 | F98: 旧定額法 | G98: 15 | I98: 20001001 | J98: 旧定額法 | K98: 15 | M98: 20001001 | N98: 1187 | O98: 1187 | P98: 10 | Q98: NS/0109 | R98: 本社 全社・経費 | S98: 2000-119 | T98: 3561 | U98: 2374 | V98: 2374 | W98: 3561 | X98: 0
A99: 1405001 | B99: 給油設備地下タンク附属機器 | C99: 構築物 | D99: 3 | E99: 一般管理費 | F99: 旧定額法 | G99: 15 | I99: 20001001 | J99: 旧定額法 | K99: 15 | M99: 20001001 | N99: 845 | O99: 845 | P99: 10 | Q99: NS/0109 | R99: 本社 全社・経費 | S99: 2000-119 | T99: 2535 | U99: 1690 | V99: 1690 | W99: 2535 | X99: 0
A100: 5673001 | B100: 油水分離槽及び洗車場塗装工事 | C100: 構築物 | D100: 3 | E100: 一般管理費 | F100: 定額法 | G100: 2 | I100: 20210630 | J100: 定額法 | K100: 2 | M100: 20210630 | N100: 0 | O100: 0 | P100: 10 | Q100: NS/0109 | R100: 本社 全社・経費 | S100: 2020-取070 | T100: 0 | U100: 0 | V100: 0 | W100: 0 | X100: 0
A101: 5674001 | B101: 造池工事 | C101: 構築物 | D101: 3 | E101: 一般管理費 | F101: 定額法 | G101: 6 | I101: 20210630 | J101: 定額法 | K101: 6 | M101: 20210630 | N101: 313 | O101: 313 | P101: 10 | Q101: NS/0109 | R101: 本社 全社・経費 | S101: 2020-取070 | T101: 938 | U101: 625 | V101: 625 | W101: 938 | X101: 0
A102: 5675001 | B102: 万代塀 | C102: 構築物 | D102: 3 | E102: 一般管理費 | F102: 定額法 | G102: 3 | I102: 20210630 | J102: 定額法 | K102: 3 | M102: 20210630 | N102: 0 | O102: 0 | P102: 10 | Q102: NS/0109 | R102: 本社 全社・経費 | S102: 2020-取070 | T102: 0 | U102: 0 | V102: 0 | W102: 0 | X102: 0
A103: 5676001 | B103: 構内塗装工事代 | C103: 構築物 | D103: 3 | E103: 一般管理費 | F103: 定額法 | G103: 2 | I103: 20210630 | J103: 定額法 | K103: 2 | M103: 20210630 | N103: 0 | O103: 0 | P103: 10 | Q103: NS/0109 | R103: 本社 全社・経費 | S103: 2020-取070 | T103: 0 | U103: 0 | V103: 0 | W103: 0 | X103: 0
A104: 5677001 | B104: 洗車場弊塀工事代 | C104: 構築物 | D104: 3 | E104: 一般管理費 | F104: 定額法 | G104: 3 | I104: 20210630 | J104: 定額法 | K104: 3 | M104: 20210630 | N104: 0 | O104: 0 | P104: 10 | Q104: NS/0109 | R104: 本社 全社・経費 | S104: 2020-取070 | T104: 0 | U104: 0 | V104: 0 | W104: 0 | X104: 0
A105: 5678001 | B105: 万代塀補修工事代 | C105: 構築物 | D105: 3 | E105: 一般管理費 | F105: 定額法 | G105: 3 | I105: 20210630 | J105: 定額法 | K105: 3 | M105: 20210630 | N105: 0 | O105: 0 | P105: 10 | Q105: NS/0109 | R105: 本社 全社・経費 | S105: 2020-取070 | T105: 0 | U105: 0 | V105: 0 | W105: 0 | X105: 0
A106: 5679001 | B106: 構内舗装改修工事代 | C106: 構築物 | D106: 3 | E106: 一般管理費 | F106: 定額法 | G106: 2 | I106: 20210630 | J106: 定額法 | K106: 2 | M106: 20210630 | N106: 0 | O106: 0 | P106: 10 | Q106: NS/0109 | R106: 本社 全社・経費 | S106: 2020-取070 | T106: 0 | U106: 0 | V106: 0 | W106: 0 | X106: 0
A107: 5680001 | B107: 廃油地下タンク設置工事代 | C107: 構築物 | D107: 3 | E107: 一般管理費 | F107: 定額法 | G107: 3 | I107: 20210630 | J107: 定額法 | K107: 3 | M107: 20210630 | N107: 0 | O107: 0 | P107: 10 | Q107: NS/0109 | R107: 本社 全社・経費 | S107: 2020-取070 | T107: 0 | U107: 0 | V107: 0 | W107: 0 | X107: 0
A108: 5681001 | B108: 少量タンク設置工事代 | C108: 構築物 | D108: 3 | E108: 一般管理費 | F108: 定額法 | G108: 3 | I108: 20210630 | J108: 定額法 | K108: 3 | M108: 20210630 | N108: 0 | O108: 0 | P108: 10 | Q108: NS/0109 | R108: 本社 全社・経費 | S108: 2020-取070 | T108: 0 | U108: 0 | V108: 0 | W108: 0 | X108: 0
A109: 5682001 | B109: 境界塀改修工事代 | C109: 構築物 | D109: 3 | E109: 一般管理費 | F109: 定額法 | G109: 3 | I109: 20210630 | J109: 定額法 | K109: 3 | M109: 20210630 | N109: 2695 | O109: 2695 | P109: 10 | Q109: NS/0109 | R109: 本社 全社・経費 | S109: 2020-取070 | T109: 8085 | U109: 5390 | V109: 5390 | W109: 8085 | X109: 0
A110: 5683001 | B110: 南門扉堀取替工事 | C110: 構築物 | D110: 3 | E110: 一般管理費 | F110: 定額法 | G110: 2 | I110: 20210630 | J110: 定額法 | K110: 2 | M110: 20210630 | N110: 0 | O110: 0 | P110: 10 | Q110: NS/0109 | R110: 本社 全社・経費 | S110: 2020-取070 | T110: 0 | U110: 0 | V110: 0 | W110: 0 | X110: 0
A111: 5685001 | B111: 塩浜車庫門扉及びフェンス工事代 | C111: 構築物 | D111: 3 | E111: 一般管理費 | F111: 定額法 | G111: 2 | I111: 20210630 | J111: 定額法 | K111: 2 | M111: 20210630 | N111: 0 | O111: 0 | P111: 10 | Q111: NS/0109 | R111: 本社 全社・経費 | S111: 2020-取070 | T111: 0 | U111: 0 | V111: 0 | W111: 0 | X111: 0
A112: 1414001 | B112: 本牧給油設備機器 | C112: 機械及び装置 | D112: 3 | E112: 一般管理費 | F112: 旧定額法 | G112: 2 | I112: 20001001 | J112: 旧定額法 | K112: 2 | M112: 20001001 | N112: 0 | O112: 0 | P112: 10 | Q112: NS/0109 | R112: 本社 全社・経費 | S112: 2000-119 | T112: 0 | W112: 0 | X112: 0
A113: 3162001 | B113: D&B Viewer新規サーバ | C113: 工具・器具・備品 | D113: 3 | E113: 一般管理費 | F113: 定額法 | G113: 5 | I113: 20130430 | J113: 定額法 | K113: 5 | M113: 20130430 | N113: 0 | O113: 0 | P113: 10 | Q113: NS/0109 | R113: 本社 全社・経費 | S113: 2012-127 | T113: 0 | U113: 0 | V113: 0 | W113: 0 | X113: 0
A114: 4425001 | B114: 東扇島営業所 電話機 | C114: 工具・器具・備品 | D114: 3 | E114: 一般管理費 | F114: 定額法 | G114: 2 | I114: 20170430 | J114: 定額法 | K114: 2 | M114: 20170430 | N114: 3407 | O114: 3407 | P114: 10 | Q114: NS/0109 | R114: 本社 全社・経費 | S114: 2016-総096 | T114: 10221 | U114: 6814 | V114: 6814 | W114: 10221 | X114: 0
A115: 5939001 | B115: 半蔵門駅前ビル 無線アクセスポイント取付・入退館管理端末用LAN配線工事 | C115: 工具・器具・備品 | D115: 3 | E115: 一般管理費 | F115: 定額法 | G115: 5 | I115: 20220331 | J115: 定額法 | K115: 5 | M115: 20220331 | N115: 5200 | O115: 5200 | P115: 10 | Q115: NS/0109 | R115: 本社 全社・経費 | S115: 2021-総165 | T115: 15599 | U115: 10399 | V115: 10399 | W115: 15599 | X115: 0
A116: 5940001 | B116: 半蔵門駅前ビル クラウドPBX設備工事 | C116: 工具・器具・備品 | D116: 3 | E116: 一般管理費 | F116: 定額法 | G116: 5 | I116: 20220228 | J116: 定額法 | K116: 5 | M116: 20220228 | N116: 565044 | O116: 565044 | P116: 10 | Q116: NS/0109 | R116: 本社 全社・経費 | S116: 2021-144 | T116: 1695131 | U116: 1130087 | V116: 1130087 | W116: 1695131 | X116: 0
A117: 5941001 | B117: 半蔵門駅前ビル モニター・ディスプレイ購入設置 | C117: 工具・器具・備品 | D117: 3 | E117: 一般管理費 | F117: 定額法 | G117: 4 | I117: 20220228 | J117: 定額法 | K117: 4 | M117: 20220228 | N117: 73236 | O117: 73236 | P117: 10 | Q117: NS/0109 | R117: 本社 全社・経費 | S117: 2021-151-1 | T117: 219709 | U117: 146473 | V117: 146473 | W117: 219709 | X117: 0
A118: 5942001 | B118: 半蔵門駅前ビル 監視カメラ設置 | C118: 工具・器具・備品 | D118: 3 | E118: 一般管理費 | F118: 定額法 | G118: 5 | I118: 20220228 | J118: 定額法 | K118: 5 | M118: 20220228 | N118: 13559 | O118: 13559 | P118: 10 | Q118: NS/0109 | R118: 本社 全社・経費 | S118: 2021-151-1 | T118: 40677 | U118: 27118 | V118: 27118 | W118: 40677 | X118: 0
A119: 5943001 | B119: 半蔵門駅前ビル 電話配線工事 | C119: 工具・器具・備品 | D119: 3 | E119: 一般管理費 | F119: 定額法 | G119: 5 | I119: 20220228 | J119: 定額法 | K119: 5 | M119: 20220228 | N119: 49381 | O119: 49381 | P119: 10 | Q119: NS/0109 | R119: 本社 全社・経費 | S119: 2021-151-1 | T119: 148144 | U119: 98763 | V119: 98763 | W119: 148144 | X119: 0
A120: 5944001 | B120: 半蔵門駅前ビル LAN配線工事 | C120: 工具・器具・備品 | D120: 3 | E120: 一般管理費 | F120: 定額法 | G120: 5 | I120: 20220228 | J120: 定額法 | K120: 5 | M120: 20220228 | N120: 118472 | O120: 118472 | P120: 10 | Q120: NS/0109 | R120: 本社 全社・経費 | S120: 2021-151-1 | T120: 355415 | U120: 236943 | V120: 236943 | W120: 355415 | X120: 0
A121: 5946001 | B121: 半蔵門駅前ビル エントランス切り文字サイン | C121: 工具・器具・備品 | D121: 3 | E121: 一般管理費 | F121: 定額法 | G121: 4 | I121: 20220228 | J121: 定額法 | K121: 4 | M121: 20220228 | N121: 13774 | O121: 13774 | P121: 10 | Q121: NS/0109 | R121: 本社 全社・経費 | S121: 2021-220 | T121: 41321 | U121: 27547 | V121: 27547 | W121: 41321 | X121: 0
A122: 5947001 | B122: 半蔵門駅前ビル 世界地図 | C122: 工具・器具・備品 | D122: 3 | E122: 一般管理費 | F122: 定額法 | G122: 7 | I122: 20220228 | J122: 定額法 | K122: 7 | M122: 20220228 | N122: 2457 | O122: 2457 | P122: 10 | Q122: NS/0109 | R122: 本社 全社・経費 | S122: 2021-220 | T122: 7371 | U122: 4914 | V122: 4914 | W122: 7371 | X122: 0
A123: 6082001 | B123: 半蔵門駅前ビル リフレッシュエリア（6F ファミレスベンチ） | C123: 工具・器具・備品 | D123: 3 | E123: 一般管理費 | F123: 定額法 | G123: 8 | I123: 20220731 | J123: 定額法 | K123: 8 | M123: 20220731 | N123: 8031 | O123: 8031 | P123: 10 | Q123: NS/0109 | R123: 本社 全社・経費 | S123: 2022-58 | T123: 24094 | U123: 16063 | V123: 16063 | W123: 24094 | X123: 0
A124: 6389001 | B124: 横浜本店秘書室 インターホン設置 | C124: 工具・器具・備品 | D124: 3 | E124: 一般管理費 | F124: 定額法 | G124: 6 | I124: 20230531 | J124: 定額法 | K124: 6 | M124: 20230531 | N124: 4592 | O124: 4592 | P124: 10 | Q124: NS/0109 | R124: 本社 全社・経費 | S124: 2023-総31 | T124: 9184 | U124: 4592 | V124: 4592 | W124: 9184 | X124: 0
A125: 26001 | B125: 横浜市神奈川区恵比須町9-7 | C125: 土地 | D125: 1 | E125: 売上原価・直接費 | F125: 非償却 | G125: 0 | I125: 19310601 | J125: 非償却 | K125: 0 | M125: 19310601 | N125: 0 | O125: 0 | P125: 10 | Q125: NS/0109 | R125: 本社 全社・経費 | T125: 0 | U125: 0 | V125: 0 | W125: 0 | X125: 0
A126: 3467001 | B126: 横浜市神奈川区恵比須町5-14 | C126: 土地 | D126: 1 | E126: 売上原価・直接費 | F126: 非償却 | G126: 0 | I126: 20150331 | J126: 非償却 | K126: 0 | M126: 20150331 | N126: 0 | O126: 0 | P126: 10 | Q126: NS/0109 | R126: 本社 全社・経費 | S126: 2014-取037 | T126: 0 | U126: 0 | V126: 0 | W126: 0 | X126: 0
A127: 5658001 | B127: 横浜市鶴見区平安町1-46-1 | C127: 土地 | D127: 3 | E127: 一般管理費 | F127: 非償却 | G127: 0 | I127: 20210630 | J127: 非償却 | K127: 0 | M127: 20210630 | N127: 0 | O127: 0 | P127: 10 | Q127: NS/0109 | R127: 本社 全社・経費 | S127: 2020-取070 | T127: 0 | U127: 0 | V127: 0 | W127: 0 | X127: 0
A128: 5659001 | B128: 横浜市鶴見区平安町1-46-2 | C128: 土地 | D128: 3 | E128: 一般管理費 | F128: 非償却 | G128: 0 | I128: 20210630 | J128: 非償却 | K128: 0 | M128: 20210630 | N128: 0 | O128: 0 | P128: 10 | Q128: NS/0109 | R128: 本社 全社・経費 | S128: 2020-取070 | T128: 0 | U128: 0 | V128: 0 | W128: 0 | X128: 0
A129: 5660001 | B129: 川崎市川崎区塩浜2-12-6 | C129: 土地 | D129: 3 | E129: 一般管理費 | F129: 非償却 | G129: 0 | I129: 20210630 | J129: 非償却 | K129: 0 | M129: 20210630 | N129: 0 | O129: 0 | P129: 10 | Q129: NS/0109 | R129: 本社 全社・経費 | S129: 2020-取070 | T129: 0 | U129: 0 | V129: 0 | W129: 0 | X129: 0
A130: 5661001 | B130: 川崎市川崎区塩浜2-12-7 | C130: 土地 | D130: 3 | E130: 一般管理費 | F130: 非償却 | G130: 0 | I130: 20210630 | J130: 非償却 | K130: 0 | M130: 20210630 | N130: 0 | O130: 0 | P130: 10 | Q130: NS/0109 | R130: 本社 全社・経費 | S130: 2020-取070 | T130: 0 | U130: 0 | V130: 0 | W130: 0 | X130: =N130-O130 -> 0
A131: 5662001 | B131: 川崎市川崎区塩浜2-12-8 | C131: 土地 | D131: 3 | E131: 一般管理費 | F131: 非償却 | G131: 0 | I131: 20210630 | J131: 非償却 | K131: 0 | M131: 20210630 | N131: 0 | O131: 0 | P131: 10 | Q131: NS/0109 | R131: 本社 全社・経費 | S131: 2020-取070 | T131: 0 | U131: 0 | V131: 0 | W131: 0 | X131: 0
A132: 5720001 | B132: 固定資産税清算金（土地対象分） 塩浜 | C132: 土地 | D132: 3 | E132: 一般管理費 | F132: 非償却 | G132: 0 | I132: 20210630 | J132: 非償却 | K132: 0 | M132: 20210630 | N132: 0 | O132: 0 | P132: 10 | Q132: NS/0109 | R132: 本社 全社・経費 | S132: 2020-取070 | T132: 0 | U132: 0 | V132: 0 | W132: 0 | X132: 0
A133: 5722001 | B133: 固定資産税清算金（土地対象分） 平安町 | C133: 土地 | D133: 3 | E133: 一般管理費 | F133: 非償却 | G133: 0 | I133: 20210630 | J133: 非償却 | K133: 0 | M133: 20210630 | N133: 0 | O133: 0 | P133: 10 | Q133: NS/0109 | R133: 本社 全社・経費 | S133: 2020-取070 | T133: 0 | U133: 0 | V133: 0 | W133: 0 | X133: 0
A134: 480001 | B134: 大井倉庫 | C134: 借地権 | D134: 3 | E134: 一般管理費 | F134: 月割償却 | H134: 360 | I134: 19850701 | J134: 月割償却 | L134: 360 | M134: 19850701 | N134: 0 | O134: 0 | P134: 10 | Q134: NS/0109 | R134: 本社 全社・経費 | T134: 0 | U134: 0 | V134: 0 | W134: 0 | X134: 0
A135: 1606001 | B135: 千葉倉庫（土地賃貸借更新料） | C135: 借地権 | D135: 3 | E135: 一般管理費 | F135: 月割償却 | H135: 360 | I135: 20040301 | J135: 月割償却 | L135: 360 | M135: 20040301 | N135: 13427 | O135: 13427 | P135: 10 | Q135: NS/0109 | R135: 本社 全社・経費 | T135: 40279 | U135: 26852 | V135: 26852 | W135: 40279 | X135: 0
A136: 3085001 | B136: 大黒埠頭倉庫 土地権利金 | C136: 借地権 | D136: 3 | E136: 一般管理費 | F136: 月割償却 | H136: 360 | I136: 20120731 | J136: 月割償却 | L136: 360 | M136: 20120731 | N136: 270468 | O136: 270468 | P136: 10 | Q136: NS/0109 | R136: 本社 全社・経費 | S136: 2012-027 | T136: 811404 | U136: 540936 | V136: 540936 | W136: 811404 | X136: 0
A137: 3170001 | B137: D&B Veiwer (TSR) | C137: ソフトウェア | D137: 3 | E137: 一般管理費 | F137: 定額法 | G137: 5 | I137: 20130531 | J137: 定額法 | K137: 5 | M137: 20130531 | N137: 0 | O137: 0 | P137: 10 | Q137: NS/0109 | R137: 本社 全社・経費 | S137: 2012-127 | T137: 0 | U137: 0 | V137: 0 | W137: 0 | X137: 0
A138: 3335001 | B138: WEBサイト(ホームページ)英語版再構築 | C138: 長期前払費用 | D138: 3 | E138: 一般管理費 | F138: 月割償却 | H138: 60 | I138: 20140531 | J138: 月割償却 | L138: 60 | M138: 20140531 | N138: 0 | O138: 0 | P138: 10 | Q138: NS/0109 | R138: 本社 全社・経費 | S138: 2013-102 | T138: 0 | U138: 0 | V138: 0 | W138: 0 | X138: 0
A139: 4831001 | B139: 一般社団法人 横浜港ハーバーリゾート協会 入会金 | C139: 長期前払費用 | D139: 3 | E139: 一般管理費 | F139: 月割償却 | H139: 60 | I139: 20190930 | J139: 月割償却 | L139: 60 | M139: 20190930 | N139: 16667 | O139: 16667 | P139: 10 | Q139: NS/0109 | R139: 本社 全社・経費 | S139: 2019-34 | T139: 50000 | U139: 33333 | V139: 33333 | W139: 50000 | X139: 0
A140: I00117001 | B140: ニッセイビル備品 | C140: 工具・器具・備品(一括償却資産) | D140: 3 | E140: 一般管理費 | F140: 即時償却 | G140: 1 | I140: 20160229 | J140: 即時償却 | K140: 1 | M140: 20160229 | N140: 0 | O140: 0 | P140: 10 | Q140: NS/0109 | R140: 本社 全社・経費 | S140: 2015-購230 | T140: 0 | U140: 0 | V140: 0 | W140: 0 | X140: 0
A141: I00178001 | B141: マイク設備 | C141: 工具・器具・備品(一括償却資産) | D141: 3 | E141: 一般管理費 | F141: 即時償却 | G141: 1 | I141: 20170228 | J141: 即時償却 | K141: 1 | M141: 20170228 | N141: 0 | O141: 0 | P141: 10 | Q141: NS/0109 | R141: 本社 全社・経費 | T141: 0 | U141: 0 | V141: 0 | W141: 0 | X141: 0
A142: I00193001 | B142: 東扇島事務所内装工事(給気口・ダクト増設) | C142: 工具・器具・備品(一括償却資産) | D142: 3 | E142: 一般管理費 | F142: 即時償却 | G142: 1 | I142: 20170430 | J142: 即時償却 | K142: 1 | M142: 20170430 | N142: 0 | O142: 0 | P142: 10 | Q142: NS/0109 | R142: 本社 全社・経費 | S142: 2016-189 | T142: 0 | U142: 0 | V142: 0 | W142: 0 | X142: 0
A143: I00385001 | B143: ﾜｲﾔﾚｽ電話会議(ｺﾛﾅ対策) | C143: 工具・器具・備品(一括償却資産) | D143: 3 | E143: 一般管理費 | F143: 即時償却 | G143: 1 | I143: 20200731 | J143: 即時償却 | K143: 1 | M143: 20200731 | N143: 0 | O143: 0 | P143: 10 | Q143: NS/0109 | R143: 本社 全社・経費 | S143: 20-096K | T143: 0 | U143: 0 | V143: 0 | W143: 0 | X143: 0
A144: I00435001 | B144: WEB会議室ﾓﾆﾀｰ | C144: 工具・器具・備品(一括償却資産) | D144: 3 | E144: 一般管理費 | F144: 即時償却 | G144: 1 | I144: 20201031 | J144: 即時償却 | K144: 1 | M144: 20201031 | N144: 0 | O144: 0 | P144: 10 | Q144: NS/0109 | R144: 本社 全社・経費 | S144: 2020-097 | T144: 0 | U144: 0 | V144: 0 | W144: 0 | X144: 0
A145: I00436001 | B145: WEB会議室マイク | C145: 工具・器具・備品(一括償却資産) | D145: 3 | E145: 一般管理費 | F145: 即時償却 | G145: 1 | I145: 20201031 | J145: 即時償却 | K145: 1 | M145: 20201031 | N145: 0 | O145: 0 | P145: 10 | Q145: NS/0109 | R145: 本社 全社・経費 | S145: 2020-097 | T145: 0 | U145: 0 | V145: 0 | W145: 0 | X145: 0
A146: I00502001 | B146: スチールパーテーション設置 | C146: 工具・器具・備品(一括償却資産) | D146: 3 | E146: 一般管理費 | F146: 即時償却 | G146: 1 | I146: 20220131 | J146: 即時償却 | K146: 1 | M146: 20220131 | N146: 0 | O146: 0 | P146: 10 | Q146: NS/0109 | R146: 本社 全社・経費 | S146: 2021-157 | T146: 0 | U146: 0 | V146: 0 | W146: 0 | X146: 0
A147: I00503001 | B147: ローパーテーション設置 | C147: 工具・器具・備品(一括償却資産) | D147: 3 | E147: 一般管理費 | F147: 即時償却 | G147: 1 | I147: 20220131 | J147: 即時償却 | K147: 1 | M147: 20220131 | N147: 0 | O147: 0 | P147: 10 | Q147: NS/0109 | R147: 本社 全社・経費 | S147: 2021-157 | T147: 0 | U147: 0 | V147: 0 | W147: 0 | X147: 0
A148: I00530001 | B148: 43ｲﾝﾁﾓﾆﾀｰ（TV視聴）1式 | C148: 工具・器具・備品(一括償却資産) | D148: 3 | E148: 一般管理費 | F148: 即時償却 | G148: 1 | I148: 20220301 | J148: 即時償却 | K148: 1 | M148: 20220301 | N148: 0 | O148: 0 | P148: 10 | Q148: NS/0109 | R148: 本社 全社・経費 | S148: 2021-151-1 | T148: 0 | U148: 0 | V148: 0 | W148: 0 | X148: 0
A149: I00531001 | B149: 50ｲﾝﾁ自立ﾓﾆﾀｰ8式 | C149: 工具・器具・備品(一括償却資産) | D149: 3 | E149: 一般管理費 | F149: 即時償却 | G149: 1 | I149: 20220301 | J149: 即時償却 | K149: 1 | M149: 20220301 | N149: 0 | O149: 0 | P149: 10 | Q149: NS/0109 | R149: 本社 全社・経費 | S149: 2021-151-1 | T149: 0 | U149: 0 | V149: 0 | W149: 0 | X149: 0
A150: I00532001 | B150: 電動巻上ｽｸﾘｰﾝ1台 | C150: 工具・器具・備品(一括償却資産) | D150: 3 | E150: 一般管理費 | F150: 即時償却 | G150: 1 | I150: 20220301 | J150: 即時償却 | K150: 1 | M150: 20220301 | N150: 0 | O150: 0 | P150: 10 | Q150: NS/0109 | R150: 本社 全社・経費 | S150: 2021-151-1 | T150: 0 | U150: 0 | V150: 0 | W150: 0 | X150: 0
A151: I00533001 | B151: ﾃﾞｼﾞﾀﾙﾜｲﾔﾚｽｼｽﾃﾑﾏｲｸ附属1台 | C151: 工具・器具・備品(一括償却資産) | D151: 3 | E151: 一般管理費 | F151: 即時償却 | G151: 1 | I151: 20220301 | J151: 即時償却 | K151: 1 | M151: 20220301 | N151: 0 | O151: 0 | P151: 10 | Q151: NS/0109 | R151: 本社 全社・経費 | S151: 2021-151-1 | T151: 0 | U151: 0 | V151: 0 | W151: 0 | X151: 0
A152: 87101 | B152: 群馬日新 車庫壁補修 | C152: 修繕費 | D152: 3 | E152: 一般管理費 | F152: 非償却 | G152: 0 | I152: 20170930 | J152: 非償却 | K152: 0 | M152: 20170930 | N152: 0 | O152: 0 | P152: 10 | Q152: NS/0109 | R152: 本社 全社・経費 | S152: 2017-070 | T152: 0 | U152: 0 | V152: 0 | W152: 0 | X152: 0
A153: 403101 | B153: 苫小牧一本松倉庫 水銀灯取替工事 | C153: 修繕費 | D153: 3 | E153: 一般管理費 | F153: 非償却 | G153: 0 | I153: 20160531 | J153: 非償却 | K153: 0 | M153: 20160531 | N153: 0 | O153: 0 | P153: 10 | Q153: NS/0109 | R153: 本社 全社・経費 | S153: 2016-総008 | T153: 0 | U153: 0 | V153: 0 | W153: 0 | X153: 0
A154: 430101 | B154: 一本松倉庫 シャッター更新工事 | C154: 修繕費 | D154: 3 | E154: 一般管理費 | F154: 非償却 | G154: 0 | I154: 20170331 | J154: 非償却 | K154: 0 | M154: 20170331 | N154: 0 | O154: 0 | P154: 10 | Q154: NS/0109 | R154: 本社 全社・経費 | S154: 2016-199 | T154: 0 | U154: 0 | V154: 0 | W154: 0 | X154: 0
A155: 1986103 | B155: 成田ロジスティクスセンター法面の復旧工事 | C155: 修繕費 | D155: 3 | E155: 一般管理費 | F155: 非償却 | G155: 0 | I155: 20180430 | J155: 非償却 | K155: 0 | M155: 20180430 | N155: 0 | O155: 0 | P155: 10 | Q155: NS/0109 | R155: 本社 全社・経費 | S155: 43191 | T155: 0 | U155: 0 | V155: 0 | W155: 0 | X155: 0
A156: 3417101 | B156: 鎌倉由比ヶ浜社有地 除草作業及び北側フェンス補修工事 | C156: 修繕費 | D156: 3 | E156: 一般管理費 | F156: 非償却 | G156: 0 | I156: 20171231 | J156: 非償却 | K156: 0 | M156: 20171231 | N156: 0 | O156: 0 | P156: 10 | Q156: NS/0109 | R156: 本社 全社・経費 | S156: 2017-総112 | T156: 0 | U156: 0 | V156: 0 | W156: 0 | X156: 0
A157: 100000100 | B157: 平成27年度 本社レイアウト変更に伴う諸工事及び什器購入 | C157: 修繕費 | D157: 3 | E157: 一般管理費 | F157: 非償却 | G157: 0 | I157: 20150630 | J157: 非償却 | K157: 0 | M157: 20150630 | N157: 0 | O157: 0 | P157: 10 | Q157: NS/0109 | R157: 本社 全社・経費 | S157: 2015-25 | T157: 0 | U157: 0 | V157: 0 | W157: 0 | X157: 0
A158: 100000101 | B158: 本社(ニッセイ尾上町ビル) 2016年度レイアウト変更 | C158: 修繕費 | D158: 3 | E158: 一般管理費 | F158: 非償却 | G158: 0 | I158: 20160630 | J158: 非償却 | K158: 0 | M158: 20160630 | N158: 0 | O158: 0 | P158: 10 | Q158: NS/0109 | R158: 本社 全社・経費 | S158: 2016-026 | T158: 0 | U158: 0 | V158: 0 | W158: 0 | X158: 0
A159: 100000102 | B159: 本社(ニッセイ尾上町ビル) 2016年度レイアウト変更 | C159: 修繕費 | D159: 3 | E159: 一般管理費 | F159: 非償却 | G159: 0 | I159: 20160630 | J159: 非償却 | K159: 0 | M159: 20160630 | N159: 0 | O159: 0 | P159: 10 | Q159: NS/0109 | R159: 本社 全社・経費 | S159: 2016-027 | T159: 0 | U159: 0 | V159: 0 | W159: 0 | X159: 0
A160: 100000103 | B160: ニッセイビル 2017年度レイアウト変更(電話工事) | C160: 修繕費 | D160: 3 | E160: 一般管理費 | F160: 非償却 | G160: 0 | I160: 20170531 | J160: 非償却 | K160: 0 | M160: 20170531 | N160: 0 | O160: 0 | P160: 10 | Q160: NS/0109 | R160: 本社 全社・経費 | S160: 2017-029 | T160: 0 | U160: 0 | V160: 0 | W160: 0 | X160: 0
A161: 100001098 | B161: 平成27年度 東京事務所レイアウト変更に伴う諸工事及び什器購入 | C161: 修繕費 | D161: 3 | E161: 一般管理費 | F161: 非償却 | G161: 0 | I161: 20150630 | J161: 非償却 | K161: 0 | M161: 20150630 | N161: 0 | O161: 0 | P161: 10 | Q161: NS/0109 | R161: 本社 全社・経費 | S161: 2015-25 | T161: 0 | U161: 0 | V161: 0 | W161: 0 | X161: 0
A162: 100001099 | B162: 永新ビル6階北側日新梱包跡地会議室整備 | C162: 修繕費 | D162: 3 | E162: 一般管理費 | F162: 非償却 | G162: 0 | I162: 20150930 | J162: 非償却 | K162: 0 | M162: 20150930 | N162: 0 | O162: 0 | P162: 10 | Q162: NS/0109 | R162: 本社 全社・経費 | S162: 2015-35 | T162: 0 | U162: 0 | V162: 0 | W162: 0 | X162: 0
A163: 100001100 | B163: 永新ビル7階カーペット張替 | C163: 修繕費 | D163: 3 | E163: 一般管理費 | F163: 非償却 | G163: 0 | I163: 20150831 | J163: 非償却 | K163: 0 | M163: 20150831 | N163: 0 | O163: 0 | P163: 10 | Q163: NS/0109 | R163: 本社 全社・経費 | S163: 2015-総44 | T163: 0 | U163: 0 | V163: 0 | W163: 0 | X163: 0
A164: 100001101 | B164: 永新ビル 2016年度レイアウト変更 | C164: 修繕費 | D164: 3 | E164: 一般管理費 | F164: 非償却 | G164: 0 | I164: 20160630 | J164: 非償却 | K164: 0 | M164: 20160630 | N164: 0 | O164: 0 | P164: 10 | Q164: NS/0109 | R164: 本社 全社・経費 | S164: 2016-027 | T164: 0 | U164: 0 | V164: 0 | W164: 0 | X164: 0
A165: 100001103 | B165: 永新ビル5階・7階会議室改修工事 | C165: 修繕費 | D165: 3 | E165: 一般管理費 | F165: 非償却 | G165: 0 | I165: 20170430 | J165: 非償却 | K165: 0 | M165: 20170430 | N165: 0 | O165: 0 | P165: 10 | Q165: NS/0109 | R165: 本社 全社・経費 | S165: 2017-007 | T165: 0 | U165: 0 | V165: 0 | W165: 0 | X165: 0
A166: 100001104 | B166: 永新ビル7階会議室改修工事（カーペット張替・壁面補修） | C166: 修繕費 | D166: 3 | E166: 一般管理費 | F166: 非償却 | G166: 0 | I166: 20170430 | J166: 非償却 | K166: 0 | M166: 20170430 | N166: 0 | O166: 0 | P166: 10 | Q166: NS/0109 | R166: 本社 全社・経費 | S166: 2017-総012 | T166: 0 | U166: 0 | V166: 0 | W166: 0 | X166: 0
A167: 100001106 | B167: 永新ビル 2017年度レイアウト変更(電話工事) | C167: 修繕費 | D167: 3 | E167: 一般管理費 | F167: 非償却 | G167: 0 | I167: 20170531 | J167: 非償却 | K167: 0 | M167: 20170531 | N167: 0 | O167: 0 | P167: 10 | Q167: NS/0109 | R167: 本社 全社・経費 | S167: 2017-029 | T167: 0 | U167: 0 | V167: 0 | W167: 0 | X167: 0
A168: 100001107 | B168: 永新ビル 2017年度レイアウト変更(電気工事) | C168: 修繕費 | D168: 3 | E168: 一般管理費 | F168: 非償却 | G168: 0 | I168: 20170630 | J168: 非償却 | K168: 0 | M168: 20170630 | N168: 0 | O168: 0 | P168: 10 | Q168: NS/0109 | R168: 本社 全社・経費 | S168: 2017-039 | T168: 0 | U168: 0 | V168: 0 | W168: 0 | X168: 0
A169: 100001108 | B169: 2018年度 東京事務所、横浜本社 レイアウト変更に伴う電話工事および什器購入 | C169: 修繕費 | D169: 3 | E169: 一般管理費 | F169: 非償却 | G169: 0 | I169: 20180531 | J169: 非償却 | K169: 0 | M169: 20180531 | N169: 0 | O169: 0 | P169: 10 | Q169: NS/0109 | R169: 本社 全社・経費 | S169: 2018-23 | T169: 0 | U169: 0 | V169: 0 | W169: 0 | X169: 0
A170: 100001109 | B170: 2018年度 東京事務所、レイアウト変更にともなう電気工事 | C170: 修繕費 | D170: 3 | E170: 一般管理費 | F170: 非償却 | G170: 0 | I170: 20180630 | J170: 非償却 | K170: 0 | M170: 20180630 | N170: 0 | O170: 0 | P170: 10 | Q170: NS/0109 | R170: 本社 全社・経費 | S170: 2018-総28 | T170: 0 | U170: 0 | V170: 0 | W170: 0 | X170: 0
A171: 100001110 | B171: 東京事務所 708会議室カーペット張替工事の件 | C171: 修繕費 | D171: 3 | E171: 一般管理費 | F171: 非償却 | G171: 0 | I171: 20181031 | J171: 非償却 | K171: 0 | M171: 20181031 | N171: 0 | O171: 0 | P171: 10 | Q171: NS/0109 | R171: 本社 全社・経費 | S171: 2018-総107 | T171: 0 | U171: 0 | V171: 0 | W171: 0 | X171: 0
A172: 100001111 | B172: 役員応接室・会議室（804・805・809）内装改修工事 | C172: 修繕費 | D172: 3 | E172: 一般管理費 | F172: 非償却 | G172: 0 | I172: 20190228 | J172: 非償却 | K172: 0 | M172: 20190228 | N172: 0 | O172: 0 | P172: 10 | Q172: NS/0109 | R172: 本社 全社・経費 | S172: 2017-223 | T172: 0 | U172: 0 | V172: 0 | W172: 0 | X172: 0
A173: 2828001 | B173: SFA(営業支援)システム 自動データ集計装置 | C173: 工具・器具・備品 | D173: 3 | E173: 一般管理費 | F173: 定額法 | G173: 10 | I173: 20110531 | J173: 定額法 | K173: 10 | M173: 20110531 | N173: 0 | O173: 0 | P173: 11 | Q173: NS/0110 | R173: 情報システム部 本部 | S173: 2011-020 | T173: 0 | U173: 0 | V173: 0 | W173: 0 | X173: 0
A174: 3171001 | B174: 総合システム部連結デスク | C174: 工具・器具・備品 | D174: 3 | E174: 一般管理費 | F174: 定額法 | G174: 8 | I174: 20130531 | J174: 定額法 | K174: 8 | M174: 20130531 | N174: 0 | O174: 0 | P174: 11 | Q174: NS/0110 | R174: 情報システム部 本部 | S174: 2013-012 | T174: 0 | U174: 0 | V174: 0 | W174: 0 | X174: 0
A175: 3586001 | B175: カラー複合機(コニカミノルタ Bizhub C224e) | C175: 工具・器具・備品 | D175: 3 | E175: 一般管理費 | F175: 定額法 | G175: 5 | I175: 20151031 | J175: 定額法 | K175: 5 | M175: 20151031 | N175: 0 | O175: 0 | P175: 11 | Q175: NS/0110 | R175: 情報システム部 本部 | S175: 22-15J | T175: 0 | W175: 0 | X175: 0
A176: 6230001 | B176: カラー複合機(コニカミノルタ bizhub C250i) | C176: 工具・器具・備品 | D176: 3 | E176: 一般管理費 | F176: 定額法 | G176: 5 | I176: 20230131 | J176: 定額法 | K176: 5 | M176: 20230131 | N176: 9500 | O176: 9500 | P176: 11 | Q176: NS/0110 | R176: 情報システム部 本部 | S176: 22-15J | T176: 28500 | U176: 19000 | V176: 19000 | W176: 28500 | X176: 0
A177: 2627001 | B177: BPO業務（大連：DHC社）に関連したシステム構築（OCEAN-GATE) | C177: ソフトウェア | D177: 3 | E177: 一般管理費 | F177: 定額法 | G177: 5 | I177: 20100331 | J177: 定額法 | K177: 5 | M177: 20100331 | N177: 0 | O177: 0 | P177: 11 | Q177: NS/0110 | R177: 情報システム部 本部 | S177: 自社開発 | T177: 0 | U177: 0 | V177: 0 | W177: 0 | X177: 0
A178: 2628001 | B178: BPO業務（大連：DHC社）に関連したシステム構築 | C178: ソフトウェア | D178: 3 | E178: 一般管理費 | F178: 定額法 | G178: 5 | I178: 20100331 | J178: 定額法 | K178: 5 | M178: 20100331 | N178: 0 | O178: 0 | P178: 11 | Q178: NS/0110 | R178: 情報システム部 本部 | S178: 自社開発 | T178: 0 | U178: 0 | V178: 0 | W178: 0 | X178: 0
A179: 2902001 | B179: SFA(営業支援)システム | C179: ソフトウェア | D179: 3 | E179: 一般管理費 | F179: 定額法 | G179: 5 | I179: 20111101 | J179: 定額法 | K179: 5 | M179: 20111101 | N179: 0 | O179: 0 | P179: 11 | Q179: NS/0110 | R179: 情報システム部 本部 | S179: 2011-020 | T179: 0 | U179: 0 | V179: 0 | W179: 0 | X179: 0
A180: 2919001 | B180: SFA(営業支援)システム(ライセンス) | C180: ソフトウェア | D180: 3 | E180: 一般管理費 | F180: 定額法 | G180: 5 | I180: 20111001 | J180: 定額法 | K180: 5 | M180: 20111001 | N180: 0 | O180: 0 | P180: 11 | Q180: NS/0110 | R180: 情報システム部 本部 | S180: 2011-020 | T180: 0 | U180: 0 | V180: 0 | W180: 0 | X180: 0
A181: 3161001 | B181: SFA(営業支援)システム バージョンアップ | C181: ソフトウェア | D181: 3 | E181: 一般管理費 | F181: 定額法 | G181: 5 | I181: 20130331 | J181: 定額法 | K181: 5 | M181: 20130331 | N181: 0 | O181: 0 | P181: 11 | Q181: NS/0110 | R181: 情報システム部 本部 | S181: 2012-総089 | T181: 0 | U181: 0 | V181: 0 | W181: 0 | X181: 0
A182: 3133001 | B182: SFA(営業支援)システム（ユーザーライセンス） | C182: 長期前払費用 | D182: 3 | E182: 一般管理費 | F182: 月割償却 | H182: 60 | I182: 20121231 | J182: 月割償却 | L182: 60 | M182: 20121231 | N182: 0 | O182: 0 | P182: 11 | Q182: NS/0110 | R182: 情報システム部 本部 | S182: 2012-116 | T182: 0 | U182: 0 | V182: 0 | W182: 0 | X182: 0
A183: 4972001 | B183: 複合機(4段カセット) | C183: 工具・器具・備品(リース) | D183: 3 | E183: 一般管理費 | F183: 月割償却 | H183: 12 | I183: 20200430 | J183: 月割償却 | L183: 12 | M183: 20200430 | N183: 0 | O183: 0 | P183: 11 | Q183: NS/0110 | R183: 情報システム部 本部 | T183: 0 | W183: 0 | X183: 0
A184: 5453001 | B184: 複合機(4段カセット) | C184: 工具・器具・備品(リース) | D184: 3 | E184: 一般管理費 | F184: 月割償却 | H184: 12 | I184: 20210430 | J184: 月割償却 | L184: 12 | M184: 20210430 | N184: 0 | O184: 0 | P184: 11 | Q184: NS/0110 | R184: 情報システム部 本部 | T184: 0 | W184: 0 | X184: 0
A185: I00079001 | B185: 上海事務所備品 | C185: 工具・器具・備品(一括償却資産) | D185: 3 | E185: 一般管理費 | F185: 即時償却 | G185: 1 | I185: 20150430 | J185: 即時償却 | K185: 1 | M185: 20150430 | N185: 0 | O185: 0 | P185: 11 | Q185: NS/0110 | R185: 情報システム部 本部 | T185: 0 | U185: 0 | V185: 0 | W185: 0 | X185: 0
A186: I00416001 | B186: WiFiﾈｯﾄﾜｰｸ機器一式 | C186: 工具・器具・備品(一括償却資産) | D186: 3 | E186: 一般管理費 | F186: 即時償却 | G186: 1 | I186: 20200430 | J186: 即時償却 | K186: 1 | M186: 20200430 | N186: 0 | O186: 0 | P186: 11 | Q186: NS/0110 | R186: 情報システム部 本部 | S186: 2020-211 | T186: 0 | U186: 0 | V186: 0 | W186: 0 | X186: 0
A187: 6028001 | B187: 航空システム「ALSS」機器代替・環境構築 ハードウェア | C187: 工具・器具・備品 | D187: 3 | E187: 一般管理費 | F187: 定額法 | G187: 5 | I187: 20220531 | J187: 定額法 | K187: 5 | M187: 20220531 | N187: 487734 | O187: 487734 | P187: 11 | Q187: NS/0112 | R187: 情報システム部 システム管理課 | S187: 2021-114 | T187: 1463202 | U187: 975468 | V187: 975468 | W187: 1463202 | X187: 0
A188: 6031001 | B188: ドットプリンタ PR-D700JEN | C188: 工具・器具・備品 | D188: 3 | E188: 一般管理費 | F188: 定額法 | G188: 5 | I188: 20220531 | J188: 定額法 | K188: 5 | M188: 20220531 | N188: 3670 | O188: 3670 | P188: 11 | Q188: NS/0112 | R188: 情報システム部 システム管理課 | S188: 2021-120-1 | T188: 11010 | U188: 7340 | V188: 7340 | W188: 11010 | X188: 0
A189: 5695001 | B189: G19 ALSS対応 | C189: ソフトウェア | D189: 3 | E189: 一般管理費 | F189: 定額法 | G189: 5 | I189: 20210615 | J189: 定額法 | K189: 5 | M189: 20210615 | N189: 91680 | O189: 91680 | P189: 11 | Q189: NS/0112 | R189: 情報システム部 システム管理課 | S189: 2018-取003 | T189: 275040 | U189: 183360 | V189: 183360 | W189: 275040 | X189: 0
A190: 5814001 | B190: LESTER総合テスト追加支援対応 | C190: ソフトウェア | D190: 3 | E190: 一般管理費 | F190: 定額法 | G190: 5 | I190: 20211031 | J190: 定額法 | K190: 5 | M190: 20211031 | N190: 60000 | O190: 60000 | P190: 11 | Q190: NS/0112 | R190: 情報システム部 システム管理課 | S190: 2020-経009 | T190: 180000 | U190: 120000 | V190: 120000 | W190: 180000 | X190: 0
A191: 6029002 | B191: 航空システム「ALSS」機器代替 システムインテグレーション費用 | C191: ソフトウェア | D191: 3 | E191: 一般管理費 | F191: 定額法 | G191: 5 | I191: 20220531 | J191: 定額法 | K191: 5 | M191: 20220531 | N191: 116515 | O191: 116515 | P191: 11 | Q191: NS/0112 | R191: 情報システム部 システム管理課 | S191: 2021-114 | T191: 349545 | U191: 233030 | V191: 233030 | W191: 349545 | X191: 0
A192: 5433001 | B192: カラー複合機(MX4140FN) | C192: 工具・器具・備品(リース) | D192: 3 | E192: 一般管理費 | F192: 月割償却 | H192: 12 | I192: 20210331 | J192: 月割償却 | L192: 12 | M192: 20210331 | N192: 0 | O192: 0 | P192: 11 | Q192: NS/0112 | R192: 情報システム部 システム管理課 | T192: 0 | W192: 0 | X192: 0
A193: I00544001 | B193: レーザープリンタ（京セラ ECOSYS P4140dn） 2201② | C193: 工具・器具・備品(一括償却資産) | D193: 3 | E193: 一般管理費 | F193: 即時償却 | G193: 1 | I193: 20220430 | J193: 即時償却 | K193: 1 | M193: 20220430 | N193: 0 | O193: 0 | P193: 11 | Q193: NS/0112 | R193: 情報システム部 システム管理課 | S193: 2201-② | T193: 0 | U193: 0 | V193: 0 | W193: 0 | X193: 0
A194: 6210001 | B194: BASIE エクセル帳票バージョンアップ | C194: ソフトウェア | D194: 3 | E194: 一般管理費 | F194: 定額法 | G194: 5 | I194: 20221231 | J194: 定額法 | K194: 5 | M194: 20221231 | N194: 12434 | O194: 12434 | P194: 11 | Q194: NS/0113 | R194: 情報システム部 システム営業課 | S194: 自社開発 | T194: 37300 | U194: 24866 | V194: 24866 | W194: 37300 | X194: =N194-O194 -> 0
A195: 3504001 | B195: リターナブルケース管理システム用ハンディスキャナ(RFD5500/MC55A0) | C195: 工具・器具・備品 | D195: 3 | E195: 一般管理費 | F195: 定額法 | G195: 5 | I195: 20150731 | J195: 定額法 | K195: 5 | M195: 20150731 | N195: 0 | O195: 0 | P195: 11 | Q195: NS/0115 | R195: 情報システム部 国内システム課 | S195: 2015-総010 | T195: 0 | U195: 0 | V195: 0 | W195: 0 | X195: 0
A196: 1723001 | B196: WM for Windows ライセンス(シャープ中国倉庫システム関連) | C196: ソフトウェア | D196: 3 | E196: 一般管理費 | F196: 旧定額法 | G196: 5 | I196: 20050518 | J196: 旧定額法 | K196: 5 | M196: 20050518 | N196: 0 | O196: 0 | P196: 11 | Q196: NS/0115 | R196: 情報システム部 国内システム課 | S196: 2005-050 | T196: 0 | U196: 0 | V196: 0 | W196: 0 | X196: 0
A197: 1724001 | B197: WM for Windows ライセンス(シャープ中国倉庫システム関連) | C197: ソフトウェア | D197: 3 | E197: 一般管理費 | F197: 旧定額法 | G197: 5 | I197: 20050518 | J197: 旧定額法 | K197: 5 | M197: 20050518 | N197: 0 | O197: 0 | P197: 11 | Q197: NS/0115 | R197: 情報システム部 国内システム課 | S197: 2005-050 | T197: 0 | U197: 0 | V197: 0 | W197: 0 | X197: 0
A198: 2707001 | B198: Biz Designer Mobile 開発者ライセンス | C198: ソフトウェア | D198: 3 | E198: 一般管理費 | F198: 定額法 | G198: 5 | I198: 20100901 | J198: 定額法 | K198: 5 | M198: 20100901 | N198: 0 | O198: 0 | P198: 11 | Q198: NS/0115 | R198: 情報システム部 国内システム課 | S198: 2010-総040 | T198: 0 | U198: 0 | V198: 0 | W198: 0 | X198: 0
A199: 2857001 | B199: 統計資料（BW)用DBのORACLEデータベースへの移行 | C199: ソフトウェア | D199: 3 | E199: 一般管理費 | F199: 定額法 | G199: 5 | I199: 20110630 | J199: 定額法 | K199: 5 | M199: 20110630 | N199: 0 | O199: 0 | P199: 11 | Q199: NS/0115 | R199: 情報システム部 国内システム課 | S199: 自社開発 | T199: 0 | U199: 0 | V199: 0 | W199: 0 | X199: 0
A200: I00280001 | B200: ﾝﾃﾞｨﾀｰﾐﾅﾙBTW350(30-129) | C200: 工具・器具・備品(一括償却資産) | D200: 3 | E200: 一般管理費 | F200: 即時償却 | G200: 1 | I200: 20180831 | J200: 即時償却 | K200: 1 | M200: 20180831 | N200: 0 | O200: 0 | P200: 11 | Q200: NS/0115 | R200: 情報システム部 国内システム課 | T200: 0 | U200: 0 | V200: 0 | W200: 0 | X200: 0
... 2050 more rows

Sheet 勘定科目対応表 (hidden)
A1: FI勘定科目 コード | B1: 勘定マスタ一覧表 | C1: 月次調整 勘定科目 | D1: 科目名称
A2: 811100 | B2: 売上 | C2: 7700100 | D2: 月次-売上
A3: 811101 | B3: 売上(売上訂正） | C3: 7700100 | D3: 月次-売上
A4: 811111 | B4: 売上－海貨(輸出) | C4: 7700100 | D4: 月次-売上
A5: 811112 | B5: 売上－海貨(輸入) | C5: 7700100 | D5: 月次-売上
A6: 811121 | B6: 売上－ＮＶＯＣＣ(輸出) | C6: 7700100 | D6: 月次-売上
A7: 811122 | B7: 売上－ＮＶＯＣＣ(輸入) | C7: 7700100 | D7: 月次-売上
A8: 811131 | B8: 売上－航空混載(輸出) | C8: 7700100 | D8: 月次-売上
A9: 811132 | B9: 売上－航空混載(輸入) | C9: 7700100 | D9: 月次-売上
A10: 811141 | B10: 売上－航空ダイレクト(輸出) | C10: 7700100 | D10: 月次-売上
A11: 811142 | B11: 売上－航空ダイレクト(輸入) | C11: 7700100 | D11: 月次-売上
A12: 811150 | B12: 売上－陸運(社有車) | C12: 7700100 | D12: 月次-売上
A13: 811151 | B13: 売上－陸運(傭車) | C13: 7700100 | D13: 月次-売上
A14: 811152 | B14: 売上－陸運(通運) | C14: 7700100 | D14: 月次-売上
A15: 811160 | B15: 売上－倉庫 | C15: 7700100 | D15: 月次-売上
A16: 811170 | B16: 売上－海運(内航) | C16: 7700100 | D16: 月次-売上
A17: 811171 | B17: 売上－海運(代理店) | C17: 7700100 | D17: 月次-売上
A18: 811180 | B18: 売上－付帯(構内) | C18: 7700100 | D18: 月次-売上
A19: 811181 | B19: 売上－付帯(荷役・その他) | C19: 7700100 | D19: 月次-売上
A20: 811190 | B20: 売上－不動産 | C20: 7700100 | D20: 月次-売上
A21: 351000 | B21: 売上原価 | C21: 7700200 | D21: 月次-売上原価
A22: 351011 | B22: 売上原価－海貨(輸出) | C22: 7700200 | D22: 月次-売上原価
A23: 351012 | B23: 売上原価－海貨(輸入) | C23: 7700200 | D23: 月次-売上原価
A24: 351013 | B24: 売上原価－海貨(原価差額） | C24: 7700200 | D24: 月次-売上原価
A25: 351021 | B25: 売上原価－ＮＶＯＣＣ(輸出) | C25: 7700200 | D25: 月次-売上原価
A26: 351022 | B26: 売上原価－ＮＶＯＣＣ(輸入) | C26: 7700200 | D26: 月次-売上原価
A27: 351023 | B27: 売上原価－ＮＶＯＣＣ(原価差額） | C27: 7700200 | D27: 月次-売上原価
A28: 351031 | B28: 売上原価－航空混載(輸出) | C28: 7700200 | D28: 月次-売上原価
A29: 351032 | B29: 売上原価－航空混載(輸入) | C29: 7700200 | D29: 月次-売上原価
A30: 351033 | B30: 売上原価－航空混載(原価差額） | C30: 7700200 | D30: 月次-売上原価
A31: 351041 | B31: 売上原価－航空ダイレクト(輸出) | C31: 7700200 | D31: 月次-売上原価
A32: 351042 | B32: 売上原価－航空ダイレクト(輸入) | C32: 7700200 | D32: 月次-売上原価
A33: 351043 | B33: 売上原価－航空ダイレクト(原価差額) | C33: 7700200 | D33: 月次-売上原価
A34: 351050 | B34: 売上原価－陸運(社有車) | C34: 7700200 | D34: 月次-売上原価
A35: 351051 | B35: 売上原価－陸運(傭車) | C35: 7700200 | D35: 月次-売上原価
A36: 351052 | B36: 売上原価－陸運(通運) | C36: 7700200 | D36: 月次-売上原価
A37: 351053 | B37: 売上原価－陸運(原価差額） | C37: 7700200 | D37: 月次-売上原価
A38: 351060 | B38: 売上原価－倉庫 | C38: 7700200 | D38: 月次-売上原価
A39: 351061 | B39: 売上原価－倉庫(原価差額) | C39: 7700200 | D39: 月次-売上原価
A40: 351070 | B40: 売上原価－海運(内航) | C40: 7700200 | D40: 月次-売上原価
A41: 351071 | B41: 売上原価－海運(代理店) | C41: 7700200 | D41: 月次-売上原価
A42: 351072 | B42: 売上原価－海運(原価差額) | C42: 7700200 | D42: 月次-売上原価
A43: 351080 | B43: 売上原価－付帯(構内) | C43: 7700200 | D43: 月次-売上原価
A44: 351081 | B44: 売上原価－付帯(荷役・その他) | C44: 7700200 | D44: 月次-売上原価
A45: 351082 | B45: 売上原価－付帯(原価差額) | C45: 7700200 | D45: 月次-売上原価
A46: 351090 | B46: 売上原価－不動産 | C46: 7700200 | D46: 月次-売上原価
A47: 351091 | B47: 売上原価－不動産（原価差額） | C47: 7700200 | D47: 月次-売上原価
A48: 352470 | B48: 売上原価－直接費（一括償却資産） | C48: 7700200 | D48: 月次-売上原価
A49: 351211 | B49: 売上原価－陸運労務費(給与・賞与) | C49: 7700201 | D49: 月次-売上原価（労務費）
A50: 351212 | B50: 売上原価－陸運労務費(その他) | C50: 7700201 | D50: 月次-売上原価（労務費）
A51: 351213 | B51: 売上原価－海運労務費(給与・賞与) | C51: 7700201 | D51: 月次-売上原価（労務費）
A52: 351214 | B52: 売上原価－海運労務費(その他) | C52: 7700201 | D52: 月次-売上原価（労務費）
A53: 351215 | B53: 売上原価－倉庫労務費(給与・賞与) | C53: 7700201 | D53: 月次-売上原価（労務費）
A54: 351216 | B54: 売上原価－倉庫労務費(その他) | C54: 7700201 | D54: 月次-売上原価（労務費）
A55: 351231 | B55: 売上原価－陸運労務費（通勤費） | C55: 7700201 | D55: 月次-売上原価（労務費）
A56: 351233 | B56: 売上原価－海運労務費（通勤費） | C56: 7700201 | D56: 月次-売上原価（労務費）
A57: 351235 | B57: 売上原価－倉庫労務費（通勤費） | C57: 7700201 | D57: 月次-売上原価（労務費）
A58: 351232 | B58: 売上原価－陸運労務費（法定福利費） | C58: 7700202 | D58: 月次-売上原価（法定福利費）
A59: 351234 | B59: 売上原価－海運労務費（法定福利費） | C59: 7700202 | D59: 月次-売上原価（法定福利費）
A60: 351236 | B60: 売上原価－倉庫労務費（法定福利費） | C60: 7700202 | D60: 月次-売上原価（法定福利費）
A61: 352311 | B61: 売上原価－港保（諸税） | C61: 7700203 | D61: 月次-売上原価（諸税）
A62: 352312 | B62: 売上原価－航保（諸税） | C62: 7700203 | D62: 月次-売上原価（諸税）
A63: 352313 | B63: 売上原価－陸保（諸税） | C63: 7700203 | D63: 月次-売上原価（諸税）
A64: 352314 | B64: 売上原価－倉保（諸税） | C64: 7700203 | D64: 月次-売上原価（諸税）
A65: 352315 | B65: 売上原価－付保（諸税） | C65: 7700203 | D65: 月次-売上原価（諸税）
A66: 351410 | B66: 売上原価－港保（修繕費） | C66: 7700204 | D66: 月次-売上原価（修繕費）
A67: 351411 | B67: 売上原価－航保（修繕費） | C67: 7700204 | D67: 月次-売上原価（修繕費）
A68: 351412 | B68: 売上原価－陸保（修繕費） | C68: 7700204 | D68: 月次-売上原価（修繕費）
A69: 351413 | B69: 売上原価－倉保（修繕費） | C69: 7700204 | D69: 月次-売上原価（修繕費）
A70: 351414 | B70: 売上原価－付保（修繕費） | C70: 7700204 | D70: 月次-売上原価（修繕費）
A71: 352990 | B71: 売上原価－減価償却費 | C71: 7700205 | D71: 月次-売上原価（直接減価償却費）
A72: 824100 | B72: 一般管理費－役員報酬 | C72: 7700300 | D72: 月次-人件費（役員報酬）
A73: 824500 | B73: 一般管理費－役員賞与 | C73: 7700300 | D73: 月次-人件費（役員報酬）
A74: 351210 | B74: 売上原価－給与 | C74: 7700301 | D74: 月次-人件費（職員給与）
A75: 824200 | B75: 一般管理費－職員給与 | C75: 7700301 | D75: 月次-人件費（職員給与）
A76: 351220 | B76: 売上原価－雑給与 | C76: 7700302 | D76: 月次-人件費（雑給与）
A77: 824300 | B77: 一般管理費－雑給与 | C77: 7700302 | D77: 月次-人件費（雑給与）
A78: 351222 | B78: 売上原価－賞与引当金繰入額 | C78: 7700303 | D78: 月次-人件費（賞与）
A79: 351230 | B79: 売上原価－賞与 | C79: 7700303 | D79: 月次-人件費（賞与）
A80: 824600 | B80: 一般管理費－賞与引当金繰入額 | C80: 7700303 | D80: 月次-人件費（賞与）
A81: 824700 | B81: 一般管理費－賞与 | C81: 7700303 | D81: 月次-人件費（賞与）
A82: 351240 | B82: 売上原価－退職給付費用 | C82: 7700304 | D82: 月次-人件費（退職金）
A83: 351241 | B83: 売上原価－従業員退職金 | C83: 7700304 | D83: 月次-人件費（退職金）
A84: 824800 | B84: 一般管理費－退職給付費用 | C84: 7700304 | D84: 月次-人件費（退職金）
A85: 824810 | B85: 一般管理費－従業員退職金 | C85: 7700304 | D85: 月次-人件費（退職金）
A86: 825100 | B86: 一般管理費－役員退職慰労引当金繰入額 | C86: 7700304 | D86: 月次-人件費（退職金）
A87: 825110 | B87: 一般管理費－役員退職金 | C87: 7700304 | D87: 月次-人件費（退職金）
A88: 351250 | B88: 売上原価－法定福利費 | C88: 7700305 | D88: 月次-人件費（法定福利費）
A89: 824900 | B89: 一般管理費－法定福利費 | C89: 7700305 | D89: 月次-人件費（法定福利費）
A90: 351260 | B90: 売上原価－福利厚生費 | C90: 7700306 | D90: 月次-人件費（福利厚生費）
A91: 825000 | B91: 一般管理費－福利厚生費 | C91: 7700306 | D91: 月次-人件費（福利厚生費）
A92: 351221 | B92: 売上原価－派遣給与 | C92: 7700307 | D92: 月次-人件費（派遣給与）
A93: 824310 | B93: 一般管理費－派遣給与 | C93: 7700307 | D93: 月次-人件費（派遣給与）
A94: 351219 | B94: 売上原価－通勤費 | C94: 7700308 | D94: 月次-人件費（通勤費）
A95: 824320 | B95: 一般管理費－通勤費 | C95: 7700308 | D95: 月次-人件費（通勤費）
A96: 352600 | B96: 売上原価－交際費 | C96: 7700400 | D96: 月次-経費（交際費）
A97: 826800 | B97: 一般管理費－交際費 | C97: 7700400 | D97: 月次-経費（交際費）
A98: 352000 | B98: 売上原価－会議費 | C98: 7700401 | D98: 月次-経費（会議費）
A99: 826300 | B99: 一般管理費－会議費 | C99: 7700401 | D99: 月次-経費（会議費）
A100: 352920 | B100: 売上原価－雑費その他 | C100: 7700402 | D100: 月次-経費（雑費・その他）
A101: 827920 | B101: 一般管理費－雑費その他 | C101: 7700402 | D101: 月次-経費（雑費・その他）
A102: 351900 | B102: 売上原価－旅費交通費 | C102: 7700403 | D102: 月次-経費（旅費）
A103: 351910 | B103: 売上原価－国内旅費 | C103: 7700403 | D103: 月次-経費（旅費）
A104: 351920 | B104: 売上原価－海外旅費 | C104: 7700403 | D104: 月次-経費（旅費）
A105: 351940 | B105: 売上原価－タクシー | C105: 7700403 | D105: 月次-経費（旅費）
A106: 826200 | B106: 一般管理費－旅費交通費 | C106: 7700403 | D106: 月次-経費（旅費）
A107: 826210 | B107: 一般管理費－国内旅費 | C107: 7700403 | D107: 月次-経費（旅費）
A108: 826220 | B108: 一般管理費－海外旅費 | C108: 7700403 | D108: 月次-経費（旅費）
A109: 826240 | B109: 一般管理費－タクシー | C109: 7700403 | D109: 月次-経費（旅費）
A110: 352100 | B110: 売上原価－通信費 | C110: 7700404 | D110: 月次-経費（通信費）
A111: 352110 | B111: 売上原価－電話料 | C111: 7700404 | D111: 月次-経費（通信費）
A112: 352120 | B112: 売上原価－FAX料 | C112: 7700404 | D112: 月次-経費（通信費）
A113: 352130 | B113: 売上原価－郵便料 | C113: 7700404 | D113: 月次-経費（通信費）
A114: 352140 | B114: 売上原価－携帯電話料 | C114: 7700404 | D114: 月次-経費（通信費）
A115: 826400 | B115: 一般管理費－通信費 | C115: 7700404 | D115: 月次-経費（通信費）
A116: 826410 | B116: 一般管理費－電話料 | C116: 7700404 | D116: 月次-経費（通信費）
A117: 826420 | B117: 一般管理費－FAX料 | C117: 7700404 | D117: 月次-経費（通信費）
A118: 826430 | B118: 一般管理費－郵便料 | C118: 7700404 | D118: 月次-経費（通信費）
A119: 826440 | B119: 一般管理費－携帯電話料 | C119: 7700404 | D119: 月次-経費（通信費）
A120: 351300 | B120: 売上原価－光熱水道費 | C120: 7700405 | D120: 月次-経費（光熱費）
A121: 351310 | B121: 売上原価－電力費 | C121: 7700405 | D121: 月次-経費（光熱費）
A122: 351320 | B122: 売上原価－水道料 | C122: 7700405 | D122: 月次-経費（光熱費）
A123: 351330 | B123: 売上原価－ガス費 | C123: 7700405 | D123: 月次-経費（光熱費）
A124: 825200 | B124: 一般管理費－光熱水道費 | C124: 7700405 | D124: 月次-経費（光熱費）
A125: 825210 | B125: 一般管理費－電力料 | C125: 7700405 | D125: 月次-経費（光熱費）
A126: 825220 | B126: 一般管理費－水道料 | C126: 7700405 | D126: 月次-経費（光熱費）
A127: 825230 | B127: 一般管理費－ガス代 | C127: 7700405 | D127: 月次-経費（光熱費）
A128: 352400 | B128: 売上原価－用度品費 | C128: 7700406 | D128: 月次-経費（用度品費）
A129: 352410 | B129: 売上原価－備品 | C129: 7700406 | D129: 月次-経費（用度品費）
A130: 352420 | B130: 売上原価－事務用品代 | C130: 7700406 | D130: 月次-経費（用度品費）
A131: 352430 | B131: 売上原価－印刷代 | C131: 7700406 | D131: 月次-経費（用度品費）
A132: 352440 | B132: 売上原価－複写代 | C132: 7700406 | D132: 月次-経費（用度品費）
A133: 352450 | B133: 売上原価－用紙代 | C133: 7700406 | D133: 月次-経費（用度品費）
A134: 352460 | B134: 売上原価－間接費（一括償却資産） | C134: 7700406 | D134: 月次-経費（用度品費）
A135: 826700 | B135: 一般管理費－用度品費 | C135: 7700406 | D135: 月次-経費（用度品費）
A136: 826710 | B136: 一般管理費－備品 | C136: 7700406 | D136: 月次-経費（用度品費）
A137: 826720 | B137: 一般管理費－事務用品 | C137: 7700406 | D137: 月次-経費（用度品費）
A138: 826730 | B138: 一般管理費－印刷代 | C138: 7700406 | D138: 月次-経費（用度品費）
A139: 826740 | B139: 一般管理費－複写代 | C139: 7700406 | D139: 月次-経費（用度品費）
A140: 826750 | B140: 一般管理費－用紙代 | C140: 7700406 | D140: 月次-経費（用度品費）
A141: 826760 | B141: 一般管理費－用品（一括償却資産） | C141: 7700406 | D141: 月次-経費（用度品費）
A142: 352500 | B142: 売上原価－図書費 | C142: 7700407 | D142: 月次-経費（図書費）
A143: 826780 | B143: 一般管理費－図書費 | C143: 7700407 | D143: 月次-経費（図書費）
A144: 352800 | B144: 売上原価－会費 | C144: 7700408 | D144: 月次-経費（会費）
A145: 352810 | B145: 売上原価－会費加入費 | C145: 7700408 | D145: 月次-経費（会費）
A146: 352820 | B146: 売上原価－会費聴講費 | C146: 7700408 | D146: 月次-経費（会費）
A147: 826900 | B147: 一般管理費－会費 | C147: 7700408 | D147: 月次-経費（会費）
A148: 826910 | B148: 一般管理費－会費加入費 | C148: 7700408 | D148: 月次-経費（会費）
A149: 826920 | B149: 一般管理費－会費聴講費 | C149: 7700408 | D149: 月次-経費（会費）
A150: 352200 | B150: 売上原価－寄付金 | C150: 7700409 | D150: 月次-経費（寄付金）
A151: 352210 | B151: 売上原価－指定寄付金 | C151: 7700409 | D151: 月次-経費（寄付金）
A152: 352220 | B152: 売上原価－特定公益増進法人寄付金 | C152: 7700409 | D152: 月次-経費（寄付金）
A153: 826500 | B153: 一般管理費－寄付金 | C153: 7700409 | D153: 月次-経費（寄付金）
A154: 826510 | B154: 一般管理費－指定寄付金 | C154: 7700409 | D154: 月次-経費（寄付金）
A155: 826520 | B155: 一般管理費－特定公益増進法人寄付金 | C155: 7700409 | D155: 月次-経費（寄付金）
A156: 351500 | B156: 売上原価－広告宣伝費 | C156: 7700410 | D156: 月次-経費（広告宣伝費）
A157: 825700 | B157: 一般管理費－広告宣伝費 | C157: 7700410 | D157: 月次-経費（広告宣伝費）
A158: 351600 | B158: 売上原価－賃借料 | C158: 7700411 | D158: 月次-経費（賃借料）
A159: 351610 | B159: 売上原価－賃借事務所 | C159: 7700411 | D159: 月次-経費（賃借料）
A160: 351620 | B160: 売上原価－賃借事務器 | C160: 7700411 | D160: 月次-経費（賃借料）
A161: 351630 | B161: 売上原価－賃借端末 | C161: 7700411 | D161: 月次-経費（賃借料）
A162: 351640 | B162: 売上原価－賃借システム | C162: 7700411 | D162: 月次-経費（賃借料）
A163: 351650 | B163: 売上原価－賃借駐車場 | C163: 7700411 | D163: 月次-経費（賃借料）
A164: 825500 | B164: 一般管理費－賃借料 | C164: 7700411 | D164: 月次-経費（賃借料）
A165: 825510 | B165: 一般管理費－賃借事務所 | C165: 7700411 | D165: 月次-経費（賃借料）
A166: 825520 | B166: 一般管理費－賃借事務器 | C166: 7700411 | D166: 月次-経費（賃借料）
A167: 825530 | B167: 一般管理費－賃借端末 | C167: 7700411 | D167: 月次-経費（賃借料）
A168: 825540 | B168: 一般管理費－賃借システム | C168: 7700411 | D168: 月次-経費（賃借料）
A169: 825550 | B169: 一般管理費－賃借駐車場 | C169: 7700411 | D169: 月次-経費（賃借料）
A170: 351400 | B170: 売上原価－修繕費 | C170: 7700412 | D170: 月次-経費（修繕費）
A171: 351415 | B171: 売上原価－修繕費(ソフトウェア保守費) | C171: 7700412 | D171: 月次-経費（修繕費）
A172: 825600 | B172: 一般管理費－修繕費 | C172: 7700412 | D172: 月次-経費（修繕費）
A173: 825610 | B173: 一般管理費－修繕費(ソフトウェア保守費) | C173: 7700412 | D173: 月次-経費（修繕費）
A174: 351700 | B174: 売上原価－保険 | C174: 7700413 | D174: 月次-経費（保険料）
A175: 351710 | B175: 売上原価－火災保険 | C175: 7700413 | D175: 月次-経費（保険料）
A176: 351720 | B176: 売上原価－自動車保険 | C176: 7700413 | D176: 月次-経費（保険料）
A177: 826000 | B177: 一般管理費－保険料 | C177: 7700413 | D177: 月次-経費（保険料）
A178: 826010 | B178: 一般管理費－火災保険 | C178: 7700413 | D178: 月次-経費（保険料）
A179: 826020 | B179: 一般管理費－自動車保険 | C179: 7700413 | D179: 月次-経費（保険料）
A180: 351270 | B180: 売上原価－外部委託費 | C180: 7700414 | D180: 月次-経費（雑費）
A181: 352700 | B181: 売上原価－契約報酬 | C181: 7700414 | D181: 月次-経費（雑費）
A182: 352900 | B182: 売上原価－雑費 | C182: 7700414 | D182: 月次-経費（雑費）
A183: 825120 | B183: 一般管理費－外部委託費 | C183: 7700414 | D183: 月次-経費（雑費）
A184: 827300 | B184: 一般管理費－契約報酬 | C184: 7700414 | D184: 月次-経費（雑費）
A185: 352910 | B185: 売上原価－雑費金融 | C185: 7700415 | D185: 月次-経費（雑費金融）
A186: 827910 | B186: 一般管理費－雑費金融 | C186: 7700415 | D186: 月次-経費（雑費金融）
A187: 352310 | B187: 売上原価－租税公課 | C187: 7700416 | D187: 月次-経費（租税公課）
A188: 352320 | B188: 売上原価－事業所税 | C188: 7700416 | D188: 月次-経費（租税公課）
A189: 826600 | B189: 一般管理費－租税公課 | C189: 7700416 | D189: 月次-経費（租税公課）
A190: 826610 | B190: 一般管理費－事業所税 | C190: 7700416 | D190: 月次-経費（租税公課）
A191: 826620 | B191: 一般管理費－事業税 | C191: 7700416 | D191: 月次-経費（租税公課）
A192: 827900 | B192: 一般管理費－雑費 | C192: 7700414 | D192: 月次-経費（雑費）
A193: 827000 | B193: 一般管理費－減価償却費 | C193: 7700417 | D193: 月次-経費（間接減価償却費）
A194: 861000 | B194: 受取利息 | C194: 7700500 | D194: 月次-営業外収益
A195: 861200 | B195: 有価証券利息 | C195: 7700500 | D195: 月次-営業外収益
A196: 861400 | B196: スワップ受取利息 | C196: 7700500 | D196: 月次-営業外収益
A197: 862000 | B197: 受取配当金 | C197: 7700500 | D197: 月次-営業外収益
A198: 865510 | B198: 賃貸料 | C198: 7700500 | D198: 月次-営業外収益
A199: 865600 | B199: 受取手数料 | C199: 7700500 | D199: 月次-営業外収益
A200: 865710 | B200: 営業外収益－その他 | C200: 7700500 | D200: 月次-営業外収益
... 25 more rows
